NUMERO_MANDATO;RIGA_MANDATO;QUIET;IMPORTO_RIGA;IMPORTO_MANDATO;BENEFICIARIO;CIG;TITOLO_PAGAMENTO;DATA_MANDATO;CAPITOLO;ARTICOLO;NUMERO_IMPEGNO;TITOLO;DESCR_TITOLO;LIVELLO_II;DESCR_LIVELLO_II;LIVELLO_III;DESCR_LIVELLO_III;LIVELLO_IV;DESCR_LIVELLO_IV;LIVELLO_V;DESCR_LIVELLO_V;DATA_PAG_EFF
1;1;9999999;13,6;13,6;C/C/P 15453301 SERVIZIO DI TESORERIA COM; ;PRELEVAMENTO N. 1/2020 - DICEMBRE 2019 - PERIODO 10-31.12.2019;08/01/2020;146;0;0;1;Spese correnti;3;Acquisto di beni e servizi;2;Acquisto di servizi;17;Servizi finanziari;999;Spese per servizi finanziari n.a.c.;13/01/2020
2;1;9999999;100;100;DIVERSI CCP LAMPADE VOTIVE C/C/P 19041300; ;SPESE E COMMISSIONI CONTO CORRENTE POSTALE;08/01/2020;146;0;0;1;Spese correnti;3;Acquisto di beni e servizi;2;Acquisto di servizi;17;Servizi finanziari;999;Spese per servizi finanziari n.a.c.;13/01/2020
5;1;9999999;196,33;196,33;COMUNE DI VENEZIA-DIR.AFFARI GENERALI; ;I SEMESTRE 2019 RIMBORSO DELLE SPESE DI FUNZIONAMENTO DELLA 6 SOTTOCOMMISSIONE ELETTORALE CIRCONDARIALE DI MESTRE-VENEZIA;09/01/2020;651;0;1377;1;Spese correnti;4;Trasferimenti correnti;1;Trasferimenti correnti a Amministrazioni Pubbliche;2;Trasferimenti correnti a Amministrazioni Locali;3;Trasferimenti correnti a Comuni;13/01/2020
6;1;9999999;658,8;658,8;FORNITECNICA S.R.L.;ZEE2A4D0EF;Fatt.n. 000669PA19  del 11/12/2019 ACQUISTO N. 40 RIBBON BLU 110X74 PER UFFICIO PROTOCOLLO;09/01/2020;121;6;1103;1;Spese correnti;3;Acquisto di beni e servizi;1;Acquisto di beni;2;Altri beni di consumo;999;Altri beni e materiali di consumo n.a.c.;13/01/2020
7;1;9999999;901,04;901,04;EL BOTTEGON S.N.C.;Z172AA84C0;Fatt.n. 41  del 11/12/2019 FORNITURA VESTIARIO INVERNALE OPERAI;09/01/2020;521;0;1152;1;Spese correnti;3;Acquisto di beni e servizi;1;Acquisto di beni;2;Altri beni di consumo;4;Vestiario;13/01/2020
8;1;9999999;75,8;75,8;CANTAFIO ALESSANDRO-CARTOLERIA;Z8326B8C8F;Fatt.n. 273  del 30/12/2019 SERVIZIO XEROCOPIE DICEMBRE 2019;09/01/2020;521;6;24;1;Spese correnti;3;Acquisto di beni e servizi;1;Acquisto di beni;2;Altri beni di consumo;14;Stampati specialistici;13/01/2020
9;1;9999999;12,41;2.100,05;ENEL ENERGIA SPA;7376631C76;Fatt.n. 003083296042  del 11/12/2019 NOVEMBRE 2019 - CONSUMI ILLUMINAZIONE PUBBLICA;09/01/2020;3544;0;1165;1;Spese correnti;3;Acquisto di beni e servizi;2;Acquisto di servizi;15;Contratti di servizio pubblico;15;Contratti di servizio per l'illuminazione pubblica;13/01/2020
9;2;9999999;13,79;2.100,05;ENEL ENERGIA SPA;77999756FD;Fatt.n. 003083296051  del 11/12/2019 NOVEMBRE 2019 - CONSUMI ILLUMINAZIONE PUBBLICA;09/01/2020;3544;0;1165;1;Spese correnti;3;Acquisto di beni e servizi;2;Acquisto di servizi;15;Contratti di servizio pubblico;15;Contratti di servizio per l'illuminazione pubblica;13/01/2020
9;3;9999999;63,1;2.100,05;ENEL ENERGIA SPA;77999756FD;Fatt.n. 003083296045  del 11/12/2019 NOVEMBRE 2019 - CONSUMI ILLUMINAZIONE PUBBLICA;09/01/2020;3544;0;1165;1;Spese correnti;3;Acquisto di beni e servizi;2;Acquisto di servizi;15;Contratti di servizio pubblico;15;Contratti di servizio per l'illuminazione pubblica;13/01/2020
9;4;9999999;63,1;2.100,05;ENEL ENERGIA SPA;77999756FD;Fatt.n. 003083296043  del 11/12/2019 NOVEMBRE 2019 - CONSUMI ILLUMINAZIONE PUBBLICA;09/01/2020;3544;0;1165;1;Spese correnti;3;Acquisto di beni e servizi;2;Acquisto di servizi;15;Contratti di servizio pubblico;15;Contratti di servizio per l'illuminazione pubblica;13/01/2020
9;5;9999999;63,1;2.100,05;ENEL ENERGIA SPA;77999756FD;Fatt.n. 003083296047  del 11/12/2019 NOVEMBRE 2019 - CONSUMI ILLUMINAZIONE PUBBLICA;09/01/2020;3544;0;1165;1;Spese correnti;3;Acquisto di beni e servizi;2;Acquisto di servizi;15;Contratti di servizio pubblico;15;Contratti di servizio per l'illuminazione pubblica;13/01/2020
9;6;9999999;125,97;2.100,05;ENEL ENERGIA SPA;77999756FD;Fatt.n. 003083296044  del 11/12/2019 NOVEMBRE 2019 - CONSUMI ILLUMINAZIONE PUBBLICA;09/01/2020;3544;0;1165;1;Spese correnti;3;Acquisto di beni e servizi;2;Acquisto di servizi;15;Contratti di servizio pubblico;15;Contratti di servizio per l'illuminazione pubblica;13/01/2020
9;7;9999999;211,15;2.100,05;ENEL ENERGIA SPA;77999756FD;Fatt.n. 003083296050  del 11/12/2019 NOVEMBRE 2019 - CONSUMI ILLUMINAZIONE PUBBLICA;09/01/2020;3544;0;1165;1;Spese correnti;3;Acquisto di beni e servizi;2;Acquisto di servizi;15;Contratti di servizio pubblico;15;Contratti di servizio per l'illuminazione pubblica;13/01/2020
9;8;9999999;252,06;2.100,05;ENEL ENERGIA SPA;77999756FD;Fatt.n. 003083296046  del 11/12/2019 NOVEMBRE 2019 - CONSUMI ILLUMINAZIONE PUBBLICA;09/01/2020;3544;0;1165;1;Spese correnti;3;Acquisto di beni e servizi;2;Acquisto di servizi;15;Contratti di servizio pubblico;15;Contratti di servizio per l'illuminazione pubblica;13/01/2020
9;9;9999999;262,52;2.100,05;ENEL ENERGIA SPA;77999756FD;Fatt.n. 003083296052  del 11/12/2019 NOVEMBRE 2019 - CONSUMI ILLUMINAZIONE PUBBLICA;09/01/2020;3544;0;1165;1;Spese correnti;3;Acquisto di beni e servizi;2;Acquisto di servizi;15;Contratti di servizio pubblico;15;Contratti di servizio per l'illuminazione pubblica;13/01/2020
9;10;9999999;407,7;2.100,05;ENEL ENERGIA SPA;77999756FD;Fatt.n. 003083296048  del 11/12/2019 NOVEMBRE 2019 - CONSUMI ILLUMINAZIONE PUBBLICA;09/01/2020;3544;0;1165;1;Spese correnti;3;Acquisto di beni e servizi;2;Acquisto di servizi;15;Contratti di servizio pubblico;15;Contratti di servizio per l'illuminazione pubblica;13/01/2020
9;11;9999999;625,15;2.100,05;ENEL ENERGIA SPA;77999756FD;Fatt.n. 003083296049  del 11/12/2019 NOVEMBRE 2019 - CONSUMI ILLUMINAZIONE PUBBLICA;09/01/2020;3544;0;1165;1;Spese correnti;3;Acquisto di beni e servizi;2;Acquisto di servizi;15;Contratti di servizio pubblico;15;Contratti di servizio per l'illuminazione pubblica;13/01/2020
10;1;9999999;166,4;166,4;SOENERGY S.R.L.;7841279C1F;Fatt.n. 191317032  del 11/12/2019 NOVEMBRE 2019 - CONSUMI  MEDICINA DI GRUPPO - SEDE MUNICIPALE SMS;09/01/2020;134;30;248;1;Spese correnti;3;Acquisto di beni e servizi;2;Acquisto di servizi;5;Utenze e canoni;6;Gas;13/01/2020
11;1;9999999;146,09;146,09;SOENERGY S.R.L.;7841279C1F;Fatt.n. 191317023  del 11/12/2019 NOVEMBRE 2019 - CONSUMI VILLA FARSETTI;09/01/2020;134;31;249;1;Spese correnti;3;Acquisto di beni e servizi;2;Acquisto di servizi;5;Utenze e canoni;6;Gas;13/01/2020
12;1;9999999;22,89;22,89;SOENERGY S.R.L.;7841279C1F;Fatt.n. 191317033  del 11/12/2019 NOVEMBRE 2019 - CONSUMI ALLOGGIO VIA OLIMPIA SMS;09/01/2020;134;31;1154;1;Spese correnti;3;Acquisto di beni e servizi;2;Acquisto di servizi;5;Utenze e canoni;6;Gas;13/01/2020
13;1;9999999;916,33;916,33;SOENERGY S.R.L.;7841279C1F;Fatt.n. 191317032  del 11/12/2019 NOVEMBRE 2019 - CONSUMI  MEDICINA DI GRUPPO - SEDE MUNICIPALE SMS;09/01/2020;134;31;1154;1;Spese correnti;3;Acquisto di beni e servizi;2;Acquisto di servizi;5;Utenze e canoni;6;Gas;13/01/2020
14;1;9999999;415,79;415,79;SOENERGY S.R.L.;7841279C1F;Fatt.n. 191317021  del 11/12/2019 NOVEMBRE 2019 - CONSUMI PALESTRA SMS;09/01/2020;1334;30;250;1;Spese correnti;3;Acquisto di beni e servizi;2;Acquisto di servizi;5;Utenze e canoni;6;Gas;13/01/2020
15;1;9999999;370;370;SOENERGY S.R.L.;7841279C1F;Fatt.n. 191317020  del 11/12/2019 NOVEMBRE 2019 - CONSUMI SC. ELEM - PALESTRA STIGLIANO;09/01/2020;1334;30;250;1;Spese correnti;3;Acquisto di beni e servizi;2;Acquisto di servizi;5;Utenze e canoni;6;Gas;13/01/2020
16;1;9999999;318,97;318,97;SOENERGY S.R.L.;7841279C1F;Fatt.n. 191317020  del 11/12/2019 NOVEMBRE 2019 - CONSUMI SC. ELEM - PALESTRA STIGLIANO;09/01/2020;1334;30;250;1;Spese correnti;3;Acquisto di beni e servizi;2;Acquisto di servizi;5;Utenze e canoni;6;Gas;13/01/2020
17;1;9999999;1.407,79;1.407,79;SOENERGY S.R.L.;7841279C1F;Fatt.n. 191317022  del 11/12/2019 NOVEMBRE 2019 - CONSUMI SC. ELEM-SC. MEDIA SMS;09/01/2020;1334;30;250;1;Spese correnti;3;Acquisto di beni e servizi;2;Acquisto di servizi;5;Utenze e canoni;6;Gas;13/01/2020
18;1;9999999;1.652,14;1.652,14;SOENERGY S.R.L.;7841279C1F;Fatt.n. 191317024  del 11/12/2019 NOVEMBRE 2019 - CONSUMI SC. ELEM. CALTANA;09/01/2020;1334;30;250;1;Spese correnti;3;Acquisto di beni e servizi;2;Acquisto di servizi;5;Utenze e canoni;6;Gas;13/01/2020
19;1;9999999;380;380;SOENERGY S.R.L.;7841279C1F;Fatt.n. 191317027  del 11/12/2019 NOVEMBRE 2019 - CONSUMI SC. ELEM. - PALESTRA CASELLE;09/01/2020;1334;30;250;1;Spese correnti;3;Acquisto di beni e servizi;2;Acquisto di servizi;5;Utenze e canoni;6;Gas;13/01/2020
20;1;9999999;380;380;SOENERGY S.R.L.;7841279C1F;Fatt.n. 191317027  del 11/12/2019 NOVEMBRE 2019 - CONSUMI SC. ELEM. - PALESTRA CASELLE;09/01/2020;1334;30;250;1;Spese correnti;3;Acquisto di beni e servizi;2;Acquisto di servizi;5;Utenze e canoni;6;Gas;13/01/2020
21;1;9999999;1.154,11;1.154,11;SOENERGY S.R.L.;7841279C1F;Fatt.n. 191317027  del 11/12/2019 NOVEMBRE 2019 - CONSUMI SC. ELEM. - PALESTRA CASELLE;09/01/2020;1334;30;250;1;Spese correnti;3;Acquisto di beni e servizi;2;Acquisto di servizi;5;Utenze e canoni;6;Gas;13/01/2020
22;1;9999999;468,74;468,74;SOENERGY S.R.L.;7841279C1F;Fatt.n. 191317030  del 11/12/2019 NOVEMBRE 2019 - CONSUMI PALESTRA CALTANA;09/01/2020;1334;30;250;1;Spese correnti;3;Acquisto di beni e servizi;2;Acquisto di servizi;5;Utenze e canoni;6;Gas;13/01/2020
23;1;9999999;468,73;468,73;SOENERGY S.R.L.;7841279C1F;Fatt.n. 191317030  del 11/12/2019 NOVEMBRE 2019 - CONSUMI PALESTRA CALTANA;09/01/2020;1334;30;250;1;Spese correnti;3;Acquisto di beni e servizi;2;Acquisto di servizi;5;Utenze e canoni;6;Gas;13/01/2020
24;1;9999999;315;315;SOENERGY S.R.L.;7841279C1F;Fatt.n. 191317029  del 11/12/2019 NOVEMBRE 2019 - CONSUMI SC. ELEM - PALESTRA VETERNIGO;09/01/2020;1334;30;250;1;Spese correnti;3;Acquisto di beni e servizi;2;Acquisto di servizi;5;Utenze e canoni;6;Gas;13/01/2020
25;1;9999999;315;315;SOENERGY S.R.L.;7841279C1F;Fatt.n. 191317029  del 11/12/2019 NOVEMBRE 2019 - CONSUMI SC. ELEM - PALESTRA VETERNIGO;09/01/2020;1334;30;250;1;Spese correnti;3;Acquisto di beni e servizi;2;Acquisto di servizi;5;Utenze e canoni;6;Gas;13/01/2020
26;1;9999999;527,77;527,77;SOENERGY S.R.L.;7841279C1F;Fatt.n. 191317029  del 11/12/2019 NOVEMBRE 2019 - CONSUMI SC. ELEM - PALESTRA VETERNIGO;09/01/2020;1334;30;250;1;Spese correnti;3;Acquisto di beni e servizi;2;Acquisto di servizi;5;Utenze e canoni;6;Gas;13/01/2020
27;1;9999999;247;247;SOENERGY S.R.L.;7841279C1F;Fatt.n. 191317028  del 11/12/2019 NOVEMBRE 2019 - CONSUMI SC. ELEM-PALESTRA-ASILO S.ANGELO;09/01/2020;1334;30;250;1;Spese correnti;3;Acquisto di beni e servizi;2;Acquisto di servizi;5;Utenze e canoni;6;Gas;13/01/2020
28;1;9999999;247;247;SOENERGY S.R.L.;7841279C1F;Fatt.n. 191317028  del 11/12/2019 NOVEMBRE 2019 - CONSUMI SC. ELEM-PALESTRA-ASILO S.ANGELO;09/01/2020;1334;30;250;1;Spese correnti;3;Acquisto di beni e servizi;2;Acquisto di servizi;5;Utenze e canoni;6;Gas;13/01/2020
29;1;9999999;742,09;742,09;SOENERGY S.R.L.;7841279C1F;Fatt.n. 191317028  del 11/12/2019 NOVEMBRE 2019 - CONSUMI SC. ELEM-PALESTRA-ASILO S.ANGELO;09/01/2020;1334;30;250;1;Spese correnti;3;Acquisto di beni e servizi;2;Acquisto di servizi;5;Utenze e canoni;6;Gas;13/01/2020
30;1;9999999;1.864,61;1.864,61;SOENERGY S.R.L.;7841279C1F;Fatt.n. 191317023  del 11/12/2019 NOVEMBRE 2019 - CONSUMI VILLA FARSETTI;09/01/2020;1834;0;251;1;Spese correnti;3;Acquisto di beni e servizi;2;Acquisto di servizi;5;Utenze e canoni;6;Gas;13/01/2020
31;1;9999999;415,8;415,8;SOENERGY S.R.L.;7841279C1F;Fatt.n. 191317021  del 11/12/2019 NOVEMBRE 2019 - CONSUMI PALESTRA SMS;09/01/2020;1934;0;1156;1;Spese correnti;3;Acquisto di beni e servizi;2;Acquisto di servizi;5;Utenze e canoni;6;Gas;13/01/2020
32;1;9999999;370;370;SOENERGY S.R.L.;7841279C1F;Fatt.n. 191317020  del 11/12/2019 NOVEMBRE 2019 - CONSUMI SC. ELEM - PALESTRA STIGLIANO;09/01/2020;1934;0;1156;1;Spese correnti;3;Acquisto di beni e servizi;2;Acquisto di servizi;5;Utenze e canoni;6;Gas;13/01/2020
33;1;9999999;298,91;298,91;SOENERGY S.R.L.;7841279C1F;Fatt.n. 191317026  del 11/12/2019 NOVEMBRE 2019 + CONG. CONSUMI IMP. SPORT. CASELLE;09/01/2020;1934;0;1156;1;Spese correnti;3;Acquisto di beni e servizi;2;Acquisto di servizi;5;Utenze e canoni;6;Gas;13/01/2020
34;1;9999999;129,29;129,29;SOENERGY S.R.L.;7841279C1F;Fatt.n. 191317023  del 11/12/2019 NOVEMBRE 2019 - CONSUMI VILLA FARSETTI;09/01/2020;3534;0;253;1;Spese correnti;3;Acquisto di beni e servizi;2;Acquisto di servizi;5;Utenze e canoni;6;Gas;13/01/2020
35;1;9999999;149,01;149,01;SOENERGY S.R.L.;7841279C1F;Fatt.n. 191317031  del 11/12/2019 NOVEMBRE 2019 - CONSUMI MAGAZZINO COMUNALE;09/01/2020;3534;0;253;1;Spese correnti;3;Acquisto di beni e servizi;2;Acquisto di servizi;5;Utenze e canoni;6;Gas;13/01/2020
36;1;9999999;87,12;87,12;SOENERGY S.R.L.;7841279C1F;Fatt.n. 191317025  del 11/12/2019 NOVEMBRE 2019 - CONSUMI ALLOGGIO VIA DON GALLERANI;09/01/2020;3534;0;253;1;Spese correnti;3;Acquisto di beni e servizi;2;Acquisto di servizi;5;Utenze e canoni;6;Gas;13/01/2020
37;1;9999999;903,45;903,45;SOENERGY S.R.L.;7841279C1F;Fatt.n. 191317023  del 11/12/2019 NOVEMBRE 2019 - CONSUMI VILLA FARSETTI;09/01/2020;4234;0;254;1;Spese correnti;3;Acquisto di beni e servizi;2;Acquisto di servizi;5;Utenze e canoni;6;Gas;13/01/2020
39;1;9999999;30.750,00;30.750,00;V.E.R.I.T.A.S. SPA; ;GIRO CONTABILE IVA A DEBITO VERSO LERARIO SU FATTURA DI VENDITA N. 49/1/1 DEL 08.08.2019 IN SPLIT PAYMENT RELATIVA AI COSTI AMMINISTRATIVI COMUNALI TARIP - ESERCIZIO 2019 - REV. N. 44 DEL 10.01.2020;10/01/2020;291;0;1366;1;Spese correnti;10;Altre spese correnti;3;Versamenti IVA a debito;1;Versamenti IVA a debito per le gestioni commerciali;1;Versamenti IVA a debito per le gestioni commerciali;14/01/2020
40;1;9999999;695,27;695,27;AGENZIA DELLE ENTRATE - IVA; ;LIQUIDAZIONE IVA COMMERCIALE MESE DI DICEMBRE 2019;10/01/2020;291;0;18;1;Spese correnti;10;Altre spese correnti;3;Versamenti IVA a debito;1;Versamenti IVA a debito per le gestioni commerciali;1;Versamenti IVA a debito per le gestioni commerciali;15/01/2020
41;1;9999999;480;480;A.N.U.S.C.A. SRL;ZOD29CAE90;Fatt.n. 2717E  del 12/12/2019 PARTECIPAZIONE POMERIGGI DI STUDIO RIVOLTI AGLI OPERATORI DEI SERVIZI DEMOGRAFICI DELLA PROVINCIA SU TEMATICHE DI ATTUALITA' IN MATERIA DI ANAGRAFE E STATO CIVILE;13/01/2020;833;0;1003;1;Spese correnti;3;Acquisto di beni e servizi;2;Acquisto di servizi;4;Acquisto di servizi per formazione e addestramento del personale dell'ente;999;Acquisto di servizi per altre spese per formazione e addestramento n.a.c.;16/01/2020
42;1;9999999;412,26;412,26;TIM SPA;ZEB27AA043;Fatt.n. 7X04876756  del 13/12/2019 1BIM 2020 - CONVENZIONE CONSIP TELEFONIA MOBILE 7;14/01/2020;134;0;246;1;Spese correnti;3;Acquisto di beni e servizi;2;Acquisto di servizi;5;Utenze e canoni;2;Telefonia mobile;16/01/2020
43;1;9999999;1.097,98;1.097,98;TIM SPA;ZE027DF92B;Fatt.n. 4220420800053702  del 05/12/2019 1BIM 2020 - CONNETTIVITA FIBRA GBE;14/01/2020;134;0;379;1;Spese correnti;3;Acquisto di beni e servizi;2;Acquisto di servizi;5;Utenze e canoni;999;Utenze e canoni per altri servizi n.a.c.;16/01/2020
44;1;9999999;244;244;CRISTOFORETTI SERVIZI ENERGIA S.P.A.;Z9E29F91B3;Fatt.n. 0019006981  del 23/12/2019 PERIODO OTTOBRE-DICEMBRE 2019 SERVIZIO DI CONDUZIONE E MANUTENZIONE ORDINARIA DEGLI IMPIANTI TERMICI MEDICINA STAGIONE 2019/2020 (INTEGRAZIONE IVA REVERSE CHARGE);14/01/2020;134;31;1035;1;Spese correnti;3;Acquisto di beni e servizi;2;Acquisto di servizi;5;Utenze e canoni;6;Gas;16/01/2020
45;1;9999999;1.655,20;1.655,20;CRISTOFORETTI SERVIZI ENERGIA S.P.A.;Z9E29F91B3;Fatt.n. 0019006983  del 23/12/2019  PERIODO OTT DIC 19 - SERVIZIO DI CONDUZIONE E MANUTENZIONE ORDINARIA IMPIANTI TERMICI;14/01/2020;134;31;1035;1;Spese correnti;3;Acquisto di beni e servizi;2;Acquisto di servizi;5;Utenze e canoni;6;Gas;16/01/2020
46;1;9999999;679,14;679,14;ASTON ENERGY SRL;Z7C281D20F;Fatt.n. 000043/PA  del 29/11/2019 MANUT. PERIODICA GRUPPI UPS SEDE MUNICIPALE;14/01/2020;548;0;539;1;Spese correnti;3;Acquisto di beni e servizi;2;Acquisto di servizi;9;Manutenzione ordinaria e riparazioni;4;Manutenzione ordinaria e riparazioni di impianti e macchinari;16/01/2020
47;1;9999999;817,4;817,4;BOZZA GROUP SRL;ZCF282C313;Fatt.n. 0000007/PA  del 20/12/2019 NOLEGGIO PIATTAFORMA AEREA ANNO 2019;14/01/2020;548;0;541;1;Spese correnti;3;Acquisto di beni e servizi;2;Acquisto di servizi;9;Manutenzione ordinaria e riparazioni;8;Manutenzione ordinaria e riparazioni di beni immobili;16/01/2020
48;1;9999999;517,63;517,63;ARIA SPA;ZD1295C99A;Fatt.n. 1619004516  del 29/11/2019 UTILIZZO  PIATTAFORMA SINTEL DI ARCA LOMBARDIA SPA ACCONTO 50%;14/01/2020;549;0;811;1;Spese correnti;3;Acquisto di beni e servizi;2;Acquisto di servizi;99;Altri servizi;999;Altri servizi diversi n.a.c.;16/01/2020
49;1;9999999;2.737,68;2.737,68;FORINT SPA;ZAD2A8E252;Fatt.n. 2019H03560  del 23/12/2019 FORNITURA VESTIARIO INVERNALE PER LA POLIZIA LOCALE;14/01/2020;1121;6;1146;1;Spese correnti;3;Acquisto di beni e servizi;1;Acquisto di beni;2;Altri beni di consumo;4;Vestiario;16/01/2020
50;1;9999999;928;928;CRISTOFORETTI SERVIZI ENERGIA S.P.A.;Z9E29F91B3;Fatt.n. 0019006982  del 23/12/2019 PERIODO OTTOBRE-DICEMBRE 2019 SERVIZIO DI CONDUZIONE E MANUTENZIONE ORDINARIA DEGLI IMPIANTI TERMICI PALESTRE COMUNALI STAGIONE 2019/2020 (INTEGRAZIONE IVA REVERSE CHARGE);14/01/2020;1334;30;1036;1;Spese correnti;3;Acquisto di beni e servizi;2;Acquisto di servizi;5;Utenze e canoni;6;Gas;16/01/2020
51;1;9999999;5.072,00;5.072,00;CRISTOFORETTI SERVIZI ENERGIA S.P.A.;Z9E29F91B3;Fatt.n. 0019006983  del 23/12/2019  PERIODO OTT DIC 19 - SERVIZIO DI CONDUZIONE E MANUTENZIONE ORDINARIA IMPIANTI TERMICI;14/01/2020;1334;30;1036;1;Spese correnti;3;Acquisto di beni e servizi;2;Acquisto di servizi;5;Utenze e canoni;6;Gas;16/01/2020
52;1;9999999;5.000,00;5.000,00;MANENTE SPURGHI SRL;Z21294E8B3;Fatt.n. 01954/2019  del 20/12/2019 SERVIZIO DI DISINTASAMENTO CAMERETTE STRADALI E TRATTI DI CONDUTTURE DEI FABBRICATI COMUNALI;14/01/2020;1338;0;810;1;Spese correnti;3;Acquisto di beni e servizi;2;Acquisto di servizi;9;Manutenzione ordinaria e riparazioni;8;Manutenzione ordinaria e riparazioni di beni immobili;16/01/2020
53;1;9999999;2.000,00;2.000,00;CRISTOFORETTI SERVIZI ENERGIA S.P.A.;Z9E29F91B3;Fatt.n. 0019006982  del 23/12/2019 PERIODO OTTOBRE-DICEMBRE 2019 SERVIZIO DI CONDUZIONE E MANUTENZIONE ORDINARIA DEGLI IMPIANTI TERMICI PALESTRE COMUNALI STAGIONE 2019/2020 (INTEGRAZIONE IVA REVERSE CHARGE);14/01/2020;1934;0;1037;1;Spese correnti;3;Acquisto di beni e servizi;2;Acquisto di servizi;5;Utenze e canoni;6;Gas;16/01/2020
54;1;9999999;35,11;108,43;SONEPAR ITALIA  SPA;Z7D27E04B9;Fatt.n. 0031257304  del 20/12/2019 MATERIALE ELETTRICO VARIO PER MANUTENZIONI;14/01/2020;1949;0;621;1;Spese correnti;3;Acquisto di beni e servizi;2;Acquisto di servizi;99;Altri servizi;999;Altri servizi diversi n.a.c.;16/01/2020
54;2;9999999;73,32;108,43;SONEPAR ITALIA  SPA;Z7D27E04B9;Fatt.n. 0031257303  del 20/12/2019 MATERIALE ELETTRICO PER MANUTENZIONI;14/01/2020;1949;0;621;1;Spese correnti;3;Acquisto di beni e servizi;2;Acquisto di servizi;99;Altri servizi;999;Altri servizi diversi n.a.c.;16/01/2020
55;1;9999999;23;23;MUFFATO CLAUDIO;ZF92792B89;Fatt.n. 413  del 18/12/2019 MANUTENZIONE MOTOSEGA ECHO CS350TES SN.36022838;14/01/2020;2538;0;864;1;Spese correnti;3;Acquisto di beni e servizi;2;Acquisto di servizi;9;Manutenzione ordinaria e riparazioni;5;Manutenzione ordinaria e riparazioni di attrezzature;16/01/2020
56;1;9999999;2.049,60;2.049,60;ITALSIA SRL;ZE528F64B5;Fatt.n. 85/PA  del 17/12/2019 INTERVENTI  ESEGUITI PRESSO IL TERRITORIO COMUNALE;14/01/2020;2549;0;726;1;Spese correnti;3;Acquisto di beni e servizi;2;Acquisto di servizi;99;Altri servizi;9;Acquisto di sevizi per verde e arredo urbano;16/01/2020
57;1;9999999;300;300;CRISTOFORETTI SERVIZI ENERGIA S.P.A.;Z9E29F91B3;Fatt.n. 0019006983  del 23/12/2019  PERIODO OTT DIC 19 - SERVIZIO DI CONDUZIONE E MANUTENZIONE ORDINARIA IMPIANTI TERMICI;14/01/2020;3534;0;1038;1;Spese correnti;3;Acquisto di beni e servizi;2;Acquisto di servizi;5;Utenze e canoni;6;Gas;16/01/2020
58;1;9999999;121,73;121,73;IDRONORD SRL;Z8128184F8;Fatt.n. 1782/1  del 23/12/2019 MATERIALI EDILI PER MANUTENZIONI;14/01/2020;3538;0;500;1;Spese correnti;3;Acquisto di beni e servizi;2;Acquisto di servizi;9;Manutenzione ordinaria e riparazioni;8;Manutenzione ordinaria e riparazioni di beni immobili;16/01/2020
59;1;9999999;164,26;164,26;PNEUS EVOLUTION SRL;Z352B332BC;Fatt.n. 425  del 23/12/2019 SOSTITUZIONE E RIPARAZIONE PNEUMATICI SUI MEZZI COMUNALI - REVISIONE;14/01/2020;3538;0;1369;1;Spese correnti;3;Acquisto di beni e servizi;2;Acquisto di servizi;9;Manutenzione ordinaria e riparazioni;1;Manutenzione ordinaria e riparazioni di mezzi di trasporto ad uso civile, di sicurezza e ordine pubblico;16/01/2020
60;1;9999999;14.145,62;14.145,62;ARTEA  SNC DI LION & SALVIATO;Z872792552;Fatt.n. 45-2019/PA  del 23/12/2019 OPERAZIONI EFFETTUATE NEI CIMITERI DEL COMUNE DI SANTA MARIA DI SALA NEL MESE DI NOVEMBRE E LAVORI DI ESUMAZIONE NEL CIMITERO DI VETERNIGO;14/01/2020;4438;0;263;1;Spese correnti;3;Acquisto di beni e servizi;2;Acquisto di servizi;9;Manutenzione ordinaria e riparazioni;8;Manutenzione ordinaria e riparazioni di beni immobili;16/01/2020
61;1;9999999;6.039,00;6.039,00;MZ DI ZENNARO MATTEO;Z0B2AE7B3E;Fatt.n. 49  del 23/12/2019 FORNITURA E POSA IN OPERA PAVIMENTAZIONE SOPRAELEVATA SCUOLA MEDIA;14/01/2020;7681;0;1261;2;Spese in conto capitale;2;Investimenti fissi lordi e acquisto di terreni;1;Beni materiali;9;Beni immobili;3;Fabbricati ad uso scolastico;16/01/2020
62;1;9999999;686,96;686,96;KYOCERA DOCUMENT SOLUTIONS ITALIA SPA;Z3517CFFA1;Fatt.n. 1010585828  del 18/12/2019 FOTOCOPIATRICI 24 - LOTTO 4 - 60 MESI - CANONE PERIODO DAL 19.09 AL 18.12.2019;14/01/2020;748;0;17;1;Spese correnti;3;Acquisto di beni e servizi;2;Acquisto di servizi;19;Servizi informatici e di telecomunicazioni;5;Servizi per i sistemi e relativa manutenzione;16/01/2020
63;1;9999999;488;488;NE-T BY TELERETE NORDEST SRL;Z0A26D5242;Fatt.n. 2019-0000231/01  del 16/12/2019 RINNOVO CASELLA PEC santamariadisala@cert.legalmail.it.  CANONE ANNO 2019;14/01/2020;748;0;73;1;Spese correnti;3;Acquisto di beni e servizi;2;Acquisto di servizi;19;Servizi informatici e di telecomunicazioni;3;Servizi per l'interoperabilità e la cooperazione;16/01/2020
64;1;9999999;15.250,00;15.250,00;HALLEY VENETO SRL;Z3F246FD4E;Fatt.n. 1/191724  del 24/12/2019 ATTIVITA ANNO 2019 RELATIVA AL PROGETTO MOC - MODELLO ORGANIZZATIVO COMUNALE;14/01/2020;748;0;860;1;Spese correnti;3;Acquisto di beni e servizi;2;Acquisto di servizi;19;Servizi informatici e di telecomunicazioni;11;Processi trasversali alle classi di servizio;16/01/2020
65;1;9999999;6.003,62;6.003,62;CONVERGE SPA;Z292A598CC;Fatt.n. 19310339  del 19/12/2019 SOSTITUZIONE SERVER;14/01/2020;7440;0;1115;2;Spese in conto capitale;2;Investimenti fissi lordi e acquisto di terreni;1;Beni materiali;7;Hardware;1;Server;16/01/2020
66;1;9999999;3.999,16;3.999,16;TELEGAMMA SAS DI GAMMA DIVIDINO & C.;Z862A9E95C;Fatt.n. 2019150000135  del 11/12/2019 MATERIALE DI MANUTENZIONE IMPIANTO DI VIDEOSORVEGLIANZA;14/01/2020;7440;0;1149;2;Spese in conto capitale;2;Investimenti fissi lordi e acquisto di terreni;1;Beni materiali;7;Hardware;999;Hardware n.a.c.;16/01/2020
67;1;9999999;2.476,60;2.476,60;BRUNATO GUIDO E FIGLI SRL;ZA82AF5029;Fatt.n. 298  del 23/12/2019 INTERVENTO DI FRESATURA STRADE BIANCHE IN AREA COMUNALE;14/01/2020;8558;0;1283;2;Spese in conto capitale;2;Investimenti fissi lordi e acquisto di terreni;1;Beni materiali;9;Beni immobili;12;Infrastrutture stradali;16/01/2020
68;1;9999999;8.186,72;8.186,72;DIVERSI-AMMINISTRATORI COM.LI; ;STIPENDI MESE DI GENNAIO 20;15/01/2020;30;99;0;1;Spese correnti;3;Acquisto di beni e servizi;2;Acquisto di servizi;1;Organi e incarichi istituzionali dell'amministrazione;1;Organi istituzionali dell'amministrazione - Indennità;24/01/2020
137;1;0;120;120;OMESSO NOMINATIVO NEL RISPETTO DELLA NORMATIVA SULLA PROTEZIONE DATI PERSONALI; ;BORSA DI STUDIO - A PARZIALE SOSTEGNO DELLE SPESE SCOLASTICHE AGLI ALUNNI CHE HANNO OTTENUTO VOTAZIONE FINALE 10 O 10 CON LODE ALLESAME DI TERZA MEDIA NELLANNO SCOLASTICO 2018/2019.;17/01/2020;1355;0;36;1;Spese correnti;4;Trasferimenti correnti;2;Trasferimenti correnti a Famiglie;3;Borse di studio, dottorati di ricerca e contratti di formazione specialistica area medica;1;Borse di studio;17/01/2020
138;1;9999999;120;120;OMESSO NOMINATIVO NEL RISPETTO DELLA NORMATIVA SULLA PROTEZIONE DATI PERSONALI; ;BORSA DI STUDIO - A PARZIALE SOSTEGNO DELLE SPESE SCOLASTICHE AGLI ALUNNI CHE HANNO OTTENUTO VOTAZIONE FINALE 10 O 10 CON LODE ALLESAME DI TERZA MEDIA NELLANNO SCOLASTICO 2018/2019.;17/01/2020;1355;0;37;1;Spese correnti;4;Trasferimenti correnti;2;Trasferimenti correnti a Famiglie;3;Borse di studio, dottorati di ricerca e contratti di formazione specialistica area medica;1;Borse di studio;30/01/2020
139;1;9999999;120;120;OMESSO NOMINATIVO NEL RISPETTO DELLA NORMATIVA SULLA PROTEZIONE DATI PERSONALI; ;BORSA DI STUDIO - A PARZIALE SOSTEGNO DELLE SPESE SCOLASTICHE AGLI ALUNNI CHE HANNO OTTENUTO VOTAZIONE FINALE 10 O 10 CON LODE ALLESAME DI TERZA MEDIA NELLANNO SCOLASTICO 2018/2019.;17/01/2020;1355;0;38;1;Spese correnti;4;Trasferimenti correnti;2;Trasferimenti correnti a Famiglie;3;Borse di studio, dottorati di ricerca e contratti di formazione specialistica area medica;1;Borse di studio;03/02/2020
140;1;0;120;120;OMESSO NOMINATIVO NEL RISPETTO DELLA NORMATIVA SULLA PROTEZIONE DATI PERSONALI; ;BORSA DI STUDIO - A PARZIALE SOSTEGNO DELLE SPESE SCOLASTICHE AGLI ALUNNI CHE HANNO OTTENUTO VOTAZIONE FINALE 10 O 10 CON LODE ALLESAME DI TERZA MEDIA NELLANNO SCOLASTICO 2018/2019.;17/01/2020;1355;0;39;1;Spese correnti;4;Trasferimenti correnti;2;Trasferimenti correnti a Famiglie;3;Borse di studio, dottorati di ricerca e contratti di formazione specialistica area medica;1;Borse di studio;17/01/2020
141;1;0;120;120;OMESSO NOMINATIVO NEL RISPETTO DELLA NORMATIVA SULLA PROTEZIONE DATI PERSONALI; ;BORSA DI STUDIO - A PARZIALE SOSTEGNO DELLE SPESE SCOLASTICHE AGLI ALUNNI CHE HANNO OTTENUTO VOTAZIONE FINALE 10 O 10 CON LODE ALLESAME DI TERZA MEDIA NELLANNO SCOLASTICO 2018/2019.;17/01/2020;1355;0;40;1;Spese correnti;4;Trasferimenti correnti;2;Trasferimenti correnti a Famiglie;3;Borse di studio, dottorati di ricerca e contratti di formazione specialistica area medica;1;Borse di studio;17/01/2020
142;1;9999999;120;120;OMESSO NOMINATIVO NEL RISPETTO DELLA NORMATIVA SULLA PROTEZIONE DATI PERSONALI; ;BORSA DI STUDIO - A PARZIALE SOSTEGNO DELLE SPESE SCOLASTICHE AGLI ALUNNI CHE HANNO OTTENUTO VOTAZIONE FINALE 10 O 10 CON LODE ALLESAME DI TERZA MEDIA NELLANNO SCOLASTICO 2018/2019.;17/01/2020;1355;0;41;1;Spese correnti;4;Trasferimenti correnti;2;Trasferimenti correnti a Famiglie;3;Borse di studio, dottorati di ricerca e contratti di formazione specialistica area medica;1;Borse di studio;27/01/2020
143;1;9999999;120;120;OMESSO NOMINATIVO NEL RISPETTO DELLA NORMATIVA SULLA PROTEZIONE DATI PERSONALI; ;BORSA DI STUDIO - A PARZIALE SOSTEGNO DELLE SPESE SCOLASTICHE AGLI ALUNNI CHE HANNO OTTENUTO VOTAZIONE FINALE 10 O 10 CON LODE ALLESAME DI TERZA MEDIA NELLANNO SCOLASTICO 2018/2019.;17/01/2020;1355;0;42;1;Spese correnti;4;Trasferimenti correnti;2;Trasferimenti correnti a Famiglie;3;Borse di studio, dottorati di ricerca e contratti di formazione specialistica area medica;1;Borse di studio;28/02/2020
144;1;9999999;150;150;OMESSO NOMINATIVO NEL RISPETTO DELLA NORMATIVA SULLA PROTEZIONE DATI PERSONALI; ;BORSA DI STUDIO - A PARZIALE SOSTEGNO DELLE SPESE SCOLASTICHE AGLI ALUNNI CHE HANNO OTTENUTO VOTAZIONE FINALE 10 O 10 CON LODE ALLESAME DI TERZA MEDIA NELLANNO SCOLASTICO 2018/2019.;17/01/2020;1355;0;43;1;Spese correnti;4;Trasferimenti correnti;2;Trasferimenti correnti a Famiglie;3;Borse di studio, dottorati di ricerca e contratti di formazione specialistica area medica;1;Borse di studio;20/01/2020
145;1;9999999;150;150;OMESSO NOMINATIVO NEL RISPETTO DELLA NORMATIVA SULLA PROTEZIONE DATI PERSONALI; ;BORSA DI STUDIO - A PARZIALE SOSTEGNO DELLE SPESE SCOLASTICHE AGLI ALUNNI CHE HANNO OTTENUTO VOTAZIONE FINALE 10 O 10 CON LODE ALLESAME DI TERZA MEDIA NELLANNO SCOLASTICO 2018/2019.;17/01/2020;1355;0;44;1;Spese correnti;4;Trasferimenti correnti;2;Trasferimenti correnti a Famiglie;3;Borse di studio, dottorati di ricerca e contratti di formazione specialistica area medica;1;Borse di studio;20/01/2020
146;1;9999999;150;150;OMESSO NOMINATIVO NEL RISPETTO DELLA NORMATIVA SULLA PROTEZIONE DATI PERSONALI; ;BORSA DI STUDIO - A PARZIALE SOSTEGNO DELLE SPESE SCOLASTICHE AGLI ALUNNI CHE HANNO OTTENUTO VOTAZIONE FINALE 10 O 10 CON LODE ALLESAME DI TERZA MEDIA NELLANNO SCOLASTICO 2018/2019.;17/01/2020;1355;0;45;1;Spese correnti;4;Trasferimenti correnti;2;Trasferimenti correnti a Famiglie;3;Borse di studio, dottorati di ricerca e contratti di formazione specialistica area medica;1;Borse di studio;31/01/2020
147;1;9999999;150;150;OMESSO NOMINATIVO NEL RISPETTO DELLA NORMATIVA SULLA PROTEZIONE DATI PERSONALI; ;BORSA DI STUDIO - A PARZIALE SOSTEGNO DELLE SPESE SCOLASTICHE AGLI ALUNNI CHE HANNO OTTENUTO VOTAZIONE FINALE 10 O 10 CON LODE ALLESAME DI TERZA MEDIA NELLANNO SCOLASTICO 2018/2019.;17/01/2020;1355;0;46;1;Spese correnti;4;Trasferimenti correnti;2;Trasferimenti correnti a Famiglie;3;Borse di studio, dottorati di ricerca e contratti di formazione specialistica area medica;1;Borse di studio;28/01/2020
148;1;0;150;150;OMESSO NOMINATIVO NEL RISPETTO DELLA NORMATIVA SULLA PROTEZIONE DATI PERSONALI; ;BORSA DI STUDIO - A PARZIALE SOSTEGNO DELLE SPESE SCOLASTICHE AGLI ALUNNI CHE HANNO OTTENUTO VOTAZIONE FINALE 10 O 10 CON LODE ALLESAME DI TERZA MEDIA NELLANNO SCOLASTICO 2018/2019.;17/01/2020;1355;0;47;1;Spese correnti;4;Trasferimenti correnti;2;Trasferimenti correnti a Famiglie;3;Borse di studio, dottorati di ricerca e contratti di formazione specialistica area medica;1;Borse di studio;17/01/2020
149;1;9999999;150;150;OMESSO NOMINATIVO NEL RISPETTO DELLA NORMATIVA SULLA PROTEZIONE DATI PERSONALI; ;BORSA DI STUDIO - A PARZIALE SOSTEGNO DELLE SPESE SCOLASTICHE AGLI ALUNNI CHE HANNO OTTENUTO VOTAZIONE FINALE 10 O 10 CON LODE ALLESAME DI TERZA MEDIA NELLANNO SCOLASTICO 2018/2019.;17/01/2020;1355;0;48;1;Spese correnti;4;Trasferimenti correnti;2;Trasferimenti correnti a Famiglie;3;Borse di studio, dottorati di ricerca e contratti di formazione specialistica area medica;1;Borse di studio;22/01/2020
150;1;9999999;150;150;OMESSO NOMINATIVO NEL RISPETTO DELLA NORMATIVA SULLA PROTEZIONE DATI PERSONALI; ;BORSA DI STUDIO - A PARZIALE SOSTEGNO DELLE SPESE SCOLASTICHE AGLI ALUNNI CHE HANNO OTTENUTO VOTAZIONE FINALE 10 O 10 CON LODE ALLESAME DI TERZA MEDIA NELLANNO SCOLASTICO 2018/2019.;17/01/2020;1355;0;49;1;Spese correnti;4;Trasferimenti correnti;2;Trasferimenti correnti a Famiglie;3;Borse di studio, dottorati di ricerca e contratti di formazione specialistica area medica;1;Borse di studio;02/03/2020
151;1;9999999;150;150;OMESSO NOMINATIVO NEL RISPETTO DELLA NORMATIVA SULLA PROTEZIONE DATI PERSONALI; ;BORSA DI STUDIO - A PARZIALE SOSTEGNO DELLE SPESE SCOLASTICHE AGLI ALUNNI CHE HANNO OTTENUTO VOTAZIONE FINALE 10 O 10 CON LODE ALLESAME DI TERZA MEDIA NELLANNO SCOLASTICO 2018/2019.;17/01/2020;1355;0;50;1;Spese correnti;4;Trasferimenti correnti;2;Trasferimenti correnti a Famiglie;3;Borse di studio, dottorati di ricerca e contratti di formazione specialistica area medica;1;Borse di studio;23/01/2020
152;1;9999999;3.131,93;3.131,93;COOP.SOCIALE PRIMAVERA SOC.COOP.SOC.ONLUS;ZC628289BE;Fatt.n. 441/PA  del 30/12/2019 DICEMBRE 2019 - SERVIZIO DI PULIZIAE SANIFICAZIONE UFFICI COMUNALI;20/01/2020;142;0;535;1;Spese correnti;3;Acquisto di beni e servizi;2;Acquisto di servizi;13;Servizi ausiliari per il funzionamento dell'ente;2;Servizi di pulizia e lavanderia;22/01/2020
153;1;9999999;771,43;771,43;BORTOLATO SAS DI BORTOLATO ONORINO & C.;Z4C2791666;Fatt.n. 000004/PA  del 27/12/2019 SALE SALGEMMA INDUST. STRADALE;20/01/2020;521;0;243;1;Spese correnti;3;Acquisto di beni e servizi;1;Acquisto di beni;2;Altri beni di consumo;999;Altri beni e materiali di consumo n.a.c.;22/01/2020
154;1;9999999;323,5;323,5;C.E.I.F. DI BESSEGA VANNI;Z35272022D;Fatt.n. 1-14  del 24/12/2019  MATERIALE VARIO DI FERRAMENTA PER MANUTENZIONI;20/01/2020;521;0;1266;1;Spese correnti;3;Acquisto di beni e servizi;1;Acquisto di beni;2;Altri beni di consumo;999;Altri beni e materiali di consumo n.a.c.;22/01/2020
155;1;9999999;488;488;VENICE AMBITEC SCARL;Z632B3A12E;Fatt.n. 78/001  del 24/12/2019 VERIFICA STATICA VISIVA SU ALBERATURE PARCO  VETERNIGO;20/01/2020;2549;0;1372;1;Spese correnti;3;Acquisto di beni e servizi;2;Acquisto di servizi;99;Altri servizi;9;Acquisto di sevizi per verde e arredo urbano;22/01/2020
156;1;9999999;6.039,00;6.039,00;SOCIETA'AGRICOLA VIVAI GARDIN S.S.;ZC72B4CBB9;Fatt.n. 126/M  del 30/12/2019 INTERVENTO DI POTATURA MECCANICA SIEPI VILLA FARSETTI;20/01/2020;2549;0;1389;1;Spese correnti;3;Acquisto di beni e servizi;2;Acquisto di servizi;99;Altri servizi;9;Acquisto di sevizi per verde e arredo urbano;22/01/2020
157;1;9999999;6.039,00;6.039,00;SCANTAMBURLO PIETRO;Z622B4DAA9;Fatt.n. 110  del 30/12/2019 POTATURA ALBERATURE TERRITORIO COMUNALE;20/01/2020;2549;0;1391;1;Spese correnti;3;Acquisto di beni e servizi;2;Acquisto di servizi;99;Altri servizi;9;Acquisto di sevizi per verde e arredo urbano;22/01/2020
158;1;9999999;2.163,40;2.163,40;P. & G. AUTOSERVICE SNC;Z392B332D5;Fatt.n. 7/PA  del 27/12/2019 MANUTENZIONE AUTOMEZZI COMUNALI;20/01/2020;3538;0;1370;1;Spese correnti;3;Acquisto di beni e servizi;2;Acquisto di servizi;9;Manutenzione ordinaria e riparazioni;1;Manutenzione ordinaria e riparazioni di mezzi di trasporto ad uso civile, di sicurezza e ordine pubblico;22/01/2020
159;1;9999999;7.890,28;49.840,55;SOC. SOCIOCULTURALE COOP. SOCIALE;80171200B8;Fatt.n. 4619 PAS  del 17/12/2019 MESE DI LUGLIO 2019  - PERIODO 16-31-07-2019 - ASSISTENZA DOMICILIARE E TRASPORTO;20/01/2020;3944;0;975;1;Spese correnti;3;Acquisto di beni e servizi;2;Acquisto di servizi;15;Contratti di servizio pubblico;9;Contratti di servizio di assistenza sociale domiciliare;22/01/2020
159;2;9999999;13.296,75;49.840,55;SOC. SOCIOCULTURALE COOP. SOCIALE;80171200B8;Fatt.n. 4622 PAS  del 17/12/2019 MESE DI OTTOBRE 2019 - ASSISTENZA DOMICILIARE E TRASPORTO;20/01/2020;3944;0;975;1;Spese correnti;3;Acquisto di beni e servizi;2;Acquisto di servizi;15;Contratti di servizio pubblico;9;Contratti di servizio di assistenza sociale domiciliare;22/01/2020
159;3;9999999;13.655,55;49.840,55;SOC. SOCIOCULTURALE COOP. SOCIALE;80171200B8;Fatt.n. 4620 PAS  del 17/12/2019 MESE DI AGOSTO 2019 - ASSISTENZA DOMICILIARE E TRASPORTO;20/01/2020;3944;0;975;1;Spese correnti;3;Acquisto di beni e servizi;2;Acquisto di servizi;15;Contratti di servizio pubblico;9;Contratti di servizio di assistenza sociale domiciliare;22/01/2020
159;4;9999999;14.997,97;49.840,55;SOC. SOCIOCULTURALE COOP. SOCIALE;80171200B8;Fatt.n. 4621 PAS  del 17/12/2019 MESE DI SETTEMBRE 2019 - ASSISTENZA DOMICILIARE E TRASPORTO;20/01/2020;3944;0;975;1;Spese correnti;3;Acquisto di beni e servizi;2;Acquisto di servizi;15;Contratti di servizio pubblico;9;Contratti di servizio di assistenza sociale domiciliare;22/01/2020
160;1;9999999;4.910,40;4.910,40;GOTTARDO DINO & C.SNC;ZA82A22068;Fatt.n. 5/19/E  del 24/12/2019 ESECUZIONE LAVORI PER OPERE DA FABBRO O ASSIMILABILI NEI FABBRICATI COMUNALI;20/01/2020;7681;0;1071;2;Spese in conto capitale;2;Investimenti fissi lordi e acquisto di terreni;1;Beni materiali;9;Beni immobili;3;Fabbricati ad uso scolastico;22/01/2020
161;1;9999999;507,76;507,76;COOP.SOCIALE PRIMAVERA SOC.COOP.SOC.ONLUS;ZC628289BE;Fatt.n. 441/PA  del 30/12/2019 DICEMBRE 2019 - SERVIZIO DI PULIZIAE SANIFICAZIONE UFFICI COMUNALI;20/01/2020;142;0;535;1;Spese correnti;3;Acquisto di beni e servizi;2;Acquisto di servizi;13;Servizi ausiliari per il funzionamento dell'ente;2;Servizi di pulizia e lavanderia;22/01/2020
162;1;9999999;393,16;393,16;AVANGATE ITALIA SRL;Z752B6DCA5;Fatt.n. 172/2020  del 10/01/2020 ESTENSIONE LICENZA SOFTWARE ANTIVIRUS;20/01/2020;748;0;1;1;Spese correnti;3;Acquisto di beni e servizi;2;Acquisto di servizi;19;Servizi informatici e di telecomunicazioni;6;Servizi di sicurezza;22/01/2020
164;1;9999999;1.150,00;1.150,00;LABS LABORATORIO SOLIDALE ONLUS; ;SALDO ULTERIORE CONTRIBUTO ANNO 2019;20/01/2020;4059;0;1201;1;Spese correnti;4;Trasferimenti correnti;4;Trasferimenti correnti a Istituzioni Sociali Private;1;Trasferimenti correnti a Istituzioni Sociali Private;1;Trasferimenti correnti a Istituzioni Sociali Private;22/01/2020
165;1;9999999;195,42;195,42;CONSULT 3 SAS PER CONTO CONDOM.AL SOLE; ;LIQUIDAZIONE E PAGAMENTO CONTRIBUTO CONDOMINIALE 2019/20;20/01/2020;549;0;812;1;Spese correnti;3;Acquisto di beni e servizi;2;Acquisto di servizi;99;Altri servizi;999;Altri servizi diversi n.a.c.;22/01/2020
166;1;9999999;1.850,00;1.850,00;OMESSO NOMINATIVO NEL RISPETTO DELLA NORMATIVA SULLA PROTEZIONE DATI PERSONALI; ;CONTRIBUTO A FAVORE DI UTENTE IN SITUAZIONE DI DISAGIO ECONOMICO - GIRO CONTABILE;20/01/2020;4157;0;1345;1;Spese correnti;4;Trasferimenti correnti;2;Trasferimenti correnti a Famiglie;2;Interventi assistenziali;999;Altri assegni e sussidi assistenziali;23/01/2020
167;1;9999999;55;55;CITTA' METROPOLITANA DI VENEZIA; ;L.R.19/1996 RIMBORSO QUOTE ANNO 2019;20/01/2020;3851;0;385;1;Spese correnti;4;Trasferimenti correnti;1;Trasferimenti correnti a Amministrazioni Pubbliche;2;Trasferimenti correnti a Amministrazioni Locali;4;Trasferimenti correnti a Città metropolitane e Roma capitale;22/01/2020
168;1;9999999;1.038,00;2.869,00;OMESSO NOMINATIVO NEL RISPETTO DELLA NORMATIVA SULLA PROTEZIONE DATI PERSONALI; ;OTTOBRE 2019 INT. RETTA RSA MARIUTTO;20/01/2020;3844;0;1098;1;Spese correnti;3;Acquisto di beni e servizi;2;Acquisto di servizi;15;Contratti di servizio pubblico;8;Contratti di servizio di assistenza sociale residenziale e semiresidenziale;22/01/2020
168;2;9999999;1.831,00;2.869,00;OMESSO NOMINATIVO NEL RISPETTO DELLA NORMATIVA SULLA PROTEZIONE DATI PERSONALI; ;NOVEMBRE 2019 INT. RETTA RSA MARIUTTO;20/01/2020;3844;0;1098;1;Spese correnti;3;Acquisto di beni e servizi;2;Acquisto di servizi;15;Contratti di servizio pubblico;8;Contratti di servizio di assistenza sociale residenziale e semiresidenziale;22/01/2020
169;1;9999999;200;200;OMESSO NOMINATIVO NEL RISPETTO DELLA NORMATIVA SULLA PROTEZIONE DATI PERSONALI; ;DICEMBRE 2019 PROGETTO RIA;20/01/2020;3957;54;1099;1;Spese correnti;4;Trasferimenti correnti;2;Trasferimenti correnti a Famiglie;5;Altri trasferimenti a famiglie;999;Altri trasferimenti a famiglie n.a.c.;22/01/2020
170;1;9999999;200;200;OMESSO NOMINATIVO NEL RISPETTO DELLA NORMATIVA SULLA PROTEZIONE DATI PERSONALI; ;DICEMBRE 2019 PROGETTO RIA;20/01/2020;3957;54;1099;1;Spese correnti;4;Trasferimenti correnti;2;Trasferimenti correnti a Famiglie;5;Altri trasferimenti a famiglie;999;Altri trasferimenti a famiglie n.a.c.;22/01/2020
171;1;9999999;200;200;OMESSO NOMINATIVO NEL RISPETTO DELLA NORMATIVA SULLA PROTEZIONE DATI PERSONALI; ;DICEMBRE 2019 PROGETTO RIA;20/01/2020;3957;54;1099;1;Spese correnti;4;Trasferimenti correnti;2;Trasferimenti correnti a Famiglie;5;Altri trasferimenti a famiglie;999;Altri trasferimenti a famiglie n.a.c.;30/01/2020
172;1;9999999;200;200;OMESSO NOMINATIVO NEL RISPETTO DELLA NORMATIVA SULLA PROTEZIONE DATI PERSONALI; ;DICEMBRE 2019 PROGETTO RIA;20/01/2020;3957;54;1099;1;Spese correnti;4;Trasferimenti correnti;2;Trasferimenti correnti a Famiglie;5;Altri trasferimenti a famiglie;999;Altri trasferimenti a famiglie n.a.c.;22/01/2020
173;1;9999999;200;200;OMESSO NOMINATIVO NEL RISPETTO DELLA NORMATIVA SULLA PROTEZIONE DATI PERSONALI; ;DICEMBRE 2019 PROGETTO RIA;20/01/2020;3957;54;1099;1;Spese correnti;4;Trasferimenti correnti;2;Trasferimenti correnti a Famiglie;5;Altri trasferimenti a famiglie;999;Altri trasferimenti a famiglie n.a.c.;29/01/2020
174;1;9999999;200;200;OMESSO NOMINATIVO NEL RISPETTO DELLA NORMATIVA SULLA PROTEZIONE DATI PERSONALI; ;DICEMBRE 2019 PROGETTO RIA;20/01/2020;3957;54;1099;1;Spese correnti;4;Trasferimenti correnti;2;Trasferimenti correnti a Famiglie;5;Altri trasferimenti a famiglie;999;Altri trasferimenti a famiglie n.a.c.;22/01/2020
175;1;9999999;200;200;OMESSO NOMINATIVO NEL RISPETTO DELLA NORMATIVA SULLA PROTEZIONE DATI PERSONALI; ;DICEMBRE 2019 PROGETTO RIA;20/01/2020;3957;54;1099;1;Spese correnti;4;Trasferimenti correnti;2;Trasferimenti correnti a Famiglie;5;Altri trasferimenti a famiglie;999;Altri trasferimenti a famiglie n.a.c.;22/01/2020
176;1;9999999;200;200;OMESSO NOMINATIVO NEL RISPETTO DELLA NORMATIVA SULLA PROTEZIONE DATI PERSONALI; ;DICEMBRE 2019 PROGETTO RIA;20/01/2020;3957;54;1099;1;Spese correnti;4;Trasferimenti correnti;2;Trasferimenti correnti a Famiglie;5;Altri trasferimenti a famiglie;999;Altri trasferimenti a famiglie n.a.c.;22/01/2020
177;1;9999999;200;200;OMESSO NOMINATIVO NEL RISPETTO DELLA NORMATIVA SULLA PROTEZIONE DATI PERSONALI; ;DICEMBRE 2019 PROGETTO RIA;20/01/2020;3957;54;1099;1;Spese correnti;4;Trasferimenti correnti;2;Trasferimenti correnti a Famiglie;5;Altri trasferimenti a famiglie;999;Altri trasferimenti a famiglie n.a.c.;22/01/2020
178;1;9999999;150;150;OMESSO NOMINATIVO NEL RISPETTO DELLA NORMATIVA SULLA PROTEZIONE DATI PERSONALI; ;GENNAIO 2020 MINIMO VITALE - EROGAZIONE CONTRIBUTO;20/01/2020;4157;0;33;1;Spese correnti;4;Trasferimenti correnti;2;Trasferimenti correnti a Famiglie;2;Interventi assistenziali;999;Altri assegni e sussidi assistenziali;05/02/2020
179;1;9999999;200;200;OMESSO NOMINATIVO NEL RISPETTO DELLA NORMATIVA SULLA PROTEZIONE DATI PERSONALI; ;GENNAIO 2020 MINIMO VITALE - EROGAZIONE CONTRIBUTO;20/01/2020;4157;0;34;1;Spese correnti;4;Trasferimenti correnti;2;Trasferimenti correnti a Famiglie;2;Interventi assistenziali;999;Altri assegni e sussidi assistenziali;23/01/2020
180;1;9999999;130;130;OMESSO NOMINATIVO NEL RISPETTO DELLA NORMATIVA SULLA PROTEZIONE DATI PERSONALI; ;GENNAIO 2020 MINIMO VITALE - EROGAZIONE CONTRIBUTO;20/01/2020;4157;0;32;1;Spese correnti;4;Trasferimenti correnti;2;Trasferimenti correnti a Famiglie;2;Interventi assistenziali;999;Altri assegni e sussidi assistenziali;30/01/2020
181;1;9999999;250;250;OMESSO NOMINATIVO NEL RISPETTO DELLA NORMATIVA SULLA PROTEZIONE DATI PERSONALI; ;GENNAIO 2020 MINIMO VITALE - EROGAZIONE CONTRIBUTO;20/01/2020;4157;0;35;1;Spese correnti;4;Trasferimenti correnti;2;Trasferimenti correnti a Famiglie;2;Interventi assistenziali;999;Altri assegni e sussidi assistenziali;29/01/2020
182;1;9999999;100;100;OMESSO NOMINATIVO NEL RISPETTO DELLA NORMATIVA SULLA PROTEZIONE DATI PERSONALI; ;GENNAIO 2020 MINIMO VITALE - EROGAZIONE CONTRIBUTO;20/01/2020;4157;0;1077;1;Spese correnti;4;Trasferimenti correnti;2;Trasferimenti correnti a Famiglie;2;Interventi assistenziali;999;Altri assegni e sussidi assistenziali;31/01/2020
183;1;9999999;250;250;OMESSO NOMINATIVO NEL RISPETTO DELLA NORMATIVA SULLA PROTEZIONE DATI PERSONALI; ;GENNAIO 2020 MINIMO VITALE - EROGAZIONE CONTRIBUTO;20/01/2020;4157;0;1079;1;Spese correnti;4;Trasferimenti correnti;2;Trasferimenti correnti a Famiglie;2;Interventi assistenziali;999;Altri assegni e sussidi assistenziali;05/02/2020
184;1;9999999;100;100;OMESSO NOMINATIVO NEL RISPETTO DELLA NORMATIVA SULLA PROTEZIONE DATI PERSONALI; ;GENNAIO 2020 MINIMO VITALE - EROGAZIONE CONTRIBUTO;20/01/2020;4157;0;830;1;Spese correnti;4;Trasferimenti correnti;2;Trasferimenti correnti a Famiglie;2;Interventi assistenziali;999;Altri assegni e sussidi assistenziali;07/02/2020
185;1;9999999;600;600;OMESSO NOMINATIVO NEL RISPETTO DELLA NORMATIVA SULLA PROTEZIONE DATI PERSONALI; ;GENNAIO 2020 PROGETTO A RILEVANZA SOCIALE;20/01/2020;4157;0;31;1;Spese correnti;4;Trasferimenti correnti;2;Trasferimenti correnti a Famiglie;2;Interventi assistenziali;999;Altri assegni e sussidi assistenziali;22/01/2020
186;1;9999999;1.200,00;1.200,00;OMESSO NOMINATIVO NEL RISPETTO DELLA NORMATIVA SULLA PROTEZIONE DATI PERSONALI; ;CONTRIBUTO ICD M 3 TRIMESTRE 2019 - EROGAZIONE;20/01/2020;3957;50;1285;1;Spese correnti;4;Trasferimenti correnti;2;Trasferimenti correnti a Famiglie;2;Interventi assistenziali;999;Altri assegni e sussidi assistenziali;22/01/2020
187;1;9999999;1.200,00;1.200,00;OMESSO NOMINATIVO NEL RISPETTO DELLA NORMATIVA SULLA PROTEZIONE DATI PERSONALI; ;CONTRIBUTO ICD M 3 TRIMESTRE 2019 - EROGAZIONE;20/01/2020;3957;50;1286;1;Spese correnti;4;Trasferimenti correnti;2;Trasferimenti correnti a Famiglie;2;Interventi assistenziali;999;Altri assegni e sussidi assistenziali;22/01/2020
188;1;9999999;1.200,00;1.200,00;OMESSO NOMINATIVO NEL RISPETTO DELLA NORMATIVA SULLA PROTEZIONE DATI PERSONALI; ;CONTRIBUTO ICD M 3 TRIMESTRE 2019 - EROGAZIONE;20/01/2020;3957;50;1287;1;Spese correnti;4;Trasferimenti correnti;2;Trasferimenti correnti a Famiglie;2;Interventi assistenziali;999;Altri assegni e sussidi assistenziali;22/01/2020
189;1;9999999;1.200,00;1.200,00;OMESSO NOMINATIVO NEL RISPETTO DELLA NORMATIVA SULLA PROTEZIONE DATI PERSONALI; ;CONTRIBUTO ICD M 3 TRIMESTRE 2019 - EROGAZIONE;20/01/2020;3957;50;1288;1;Spese correnti;4;Trasferimenti correnti;2;Trasferimenti correnti a Famiglie;2;Interventi assistenziali;999;Altri assegni e sussidi assistenziali;22/01/2020
190;1;9999999;27,91;27,91;C/C/P 15453301 SERVIZIO DI TESORERIA COM; ;PRELEVAMENTO N. 2/2020 - GENNAIO 2020 - PERIODO 01-15.01.2020;20/01/2020;146;0;0;1;Spese correnti;3;Acquisto di beni e servizi;2;Acquisto di servizi;17;Servizi finanziari;999;Spese per servizi finanziari n.a.c.;22/01/2020
191;1;9999999;1.200,00;1.200,00;OMESSO NOMINATIVO NEL RISPETTO DELLA NORMATIVA SULLA PROTEZIONE DATI PERSONALI; ;CONTRIBUTO ICD M 3 TRIMESTRE 2019 - EROGAZIONE;20/01/2020;3957;50;1290;1;Spese correnti;4;Trasferimenti correnti;2;Trasferimenti correnti a Famiglie;2;Interventi assistenziali;999;Altri assegni e sussidi assistenziali;22/01/2020
192;1;9999999;1.200,00;1.200,00;OMESSO NOMINATIVO NEL RISPETTO DELLA NORMATIVA SULLA PROTEZIONE DATI PERSONALI; ;CONTRIBUTO ICD M 3 TRIMESTRE 2019 - EROGAZIONE;20/01/2020;3957;50;1291;1;Spese correnti;4;Trasferimenti correnti;2;Trasferimenti correnti a Famiglie;2;Interventi assistenziali;999;Altri assegni e sussidi assistenziali;22/01/2020
193;1;9999999;1.200,00;1.200,00;OMESSO NOMINATIVO NEL RISPETTO DELLA NORMATIVA SULLA PROTEZIONE DATI PERSONALI; ;CONTRIBUTO ICD M 3 TRIMESTRE 2019 - EROGAZIONE;20/01/2020;3957;50;1292;1;Spese correnti;4;Trasferimenti correnti;2;Trasferimenti correnti a Famiglie;2;Interventi assistenziali;999;Altri assegni e sussidi assistenziali;22/01/2020
194;1;9999999;1.200,00;1.200,00;OMESSO NOMINATIVO NEL RISPETTO DELLA NORMATIVA SULLA PROTEZIONE DATI PERSONALI; ;CONTRIBUTO ICD M 3 TRIMESTRE 2019 - EROGAZIONE;20/01/2020;3957;50;1293;1;Spese correnti;4;Trasferimenti correnti;2;Trasferimenti correnti a Famiglie;2;Interventi assistenziali;999;Altri assegni e sussidi assistenziali;22/01/2020
195;1;9999999;1.200,00;1.200,00;OMESSO NOMINATIVO NEL RISPETTO DELLA NORMATIVA SULLA PROTEZIONE DATI PERSONALI; ;CONTRIBUTO ICD M 3 TRIMESTRE 2019 - EROGAZIONE;20/01/2020;3957;50;1294;1;Spese correnti;4;Trasferimenti correnti;2;Trasferimenti correnti a Famiglie;2;Interventi assistenziali;999;Altri assegni e sussidi assistenziali;22/01/2020
196;1;9999999;1.200,00;1.200,00;OMESSO NOMINATIVO NEL RISPETTO DELLA NORMATIVA SULLA PROTEZIONE DATI PERSONALI; ;CONTRIBUTO ICD M 3 TRIMESTRE 2019 - EROGAZIONE;20/01/2020;3957;50;1295;1;Spese correnti;4;Trasferimenti correnti;2;Trasferimenti correnti a Famiglie;2;Interventi assistenziali;999;Altri assegni e sussidi assistenziali;22/01/2020
197;1;9999999;1.200,00;1.200,00;OMESSO NOMINATIVO NEL RISPETTO DELLA NORMATIVA SULLA PROTEZIONE DATI PERSONALI; ;CONTRIBUTO ICD M 3 TRIMESTRE 2019 - EROGAZIONE;20/01/2020;3957;50;1297;1;Spese correnti;4;Trasferimenti correnti;2;Trasferimenti correnti a Famiglie;2;Interventi assistenziali;999;Altri assegni e sussidi assistenziali;22/01/2020
198;1;9999999;1.200,00;1.200,00;OMESSO NOMINATIVO NEL RISPETTO DELLA NORMATIVA SULLA PROTEZIONE DATI PERSONALI; ;CONTRIBUTO ICD M 3 TRIMESTRE 2019 - EROGAZIONE;20/01/2020;3957;50;1298;1;Spese correnti;4;Trasferimenti correnti;2;Trasferimenti correnti a Famiglie;2;Interventi assistenziali;999;Altri assegni e sussidi assistenziali;22/01/2020
199;1;9999999;1.200,00;1.200,00;OMESSO NOMINATIVO NEL RISPETTO DELLA NORMATIVA SULLA PROTEZIONE DATI PERSONALI; ;CONTRIBUTO ICD M 3 TRIMESTRE 2019 - EROGAZIONE;20/01/2020;3957;50;1299;1;Spese correnti;4;Trasferimenti correnti;2;Trasferimenti correnti a Famiglie;2;Interventi assistenziali;999;Altri assegni e sussidi assistenziali;22/01/2020
200;1;9999999;1.200,00;1.200,00;OMESSO NOMINATIVO NEL RISPETTO DELLA NORMATIVA SULLA PROTEZIONE DATI PERSONALI; ;CONTRIBUTO ICD M 3 TRIMESTRE 2019 - EROGAZIONE;20/01/2020;3957;50;1301;1;Spese correnti;4;Trasferimenti correnti;2;Trasferimenti correnti a Famiglie;2;Interventi assistenziali;999;Altri assegni e sussidi assistenziali;22/01/2020
201;1;9999999;1.200,00;1.200,00;OMESSO NOMINATIVO NEL RISPETTO DELLA NORMATIVA SULLA PROTEZIONE DATI PERSONALI; ;CONTRIBUTO ICD M 3 TRIMESTRE 2019 - EROGAZIONE;20/01/2020;3957;50;1302;1;Spese correnti;4;Trasferimenti correnti;2;Trasferimenti correnti a Famiglie;2;Interventi assistenziali;999;Altri assegni e sussidi assistenziali;22/01/2020
202;1;9999999;1.200,00;1.200,00;OMESSO NOMINATIVO NEL RISPETTO DELLA NORMATIVA SULLA PROTEZIONE DATI PERSONALI; ;CONTRIBUTO ICD M 3 TRIMESTRE 2019 - EROGAZIONE;20/01/2020;3957;50;1303;1;Spese correnti;4;Trasferimenti correnti;2;Trasferimenti correnti a Famiglie;2;Interventi assistenziali;999;Altri assegni e sussidi assistenziali;22/01/2020
203;1;9999999;400;400;OMESSO NOMINATIVO NEL RISPETTO DELLA NORMATIVA SULLA PROTEZIONE DATI PERSONALI; ;CONTRIBUTO ICD M 3 TRIMESTRE 2019 - EROGAZIONE;20/01/2020;3957;50;1304;1;Spese correnti;4;Trasferimenti correnti;2;Trasferimenti correnti a Famiglie;2;Interventi assistenziali;999;Altri assegni e sussidi assistenziali;22/01/2020
204;1;9999999;74,75;74,75;ABACO S.P.A.;766214493F;SALDO Fatt.n. 2020120000007  del 07/01/2020 AGGIO RISCOSSIONE ICP E DPA CONTO ABACO SPA RENDICONTO DELLA GESTIONE DAL 01/12/2019 A 31/12/2019 CIG.766214493F;20/01/2020;332;0;1228;1;Spese correnti;3;Acquisto di beni e servizi;2;Acquisto di servizi;3;Aggi di riscossione;999;Altri aggi di riscossione n.a.c.;23/01/2020
205;1;9999999;7,02;7,02;ABACO S.P.A.;Z4B0FF1CA6;SALDO Fatt.n. 2020140000028  del 02/01/2020 AGGIO RISCOSSIONE COATTIVA CDS LOTTO 1 RENDICONTO DICEMBRE 2019 CIG.Z4B0FF1CA6;20/01/2020;332;0;0;1;Spese correnti;3;Acquisto di beni e servizi;2;Acquisto di servizi;3;Aggi di riscossione;999;Altri aggi di riscossione n.a.c.;23/01/2020
206;1;9999999;29,02;29,02;ABACO S.P.A.;5325258DE8;SALDO Fatt.n. 2020140000029  del 02/01/2020 AGGIO RISCOSSIONE COATTIVA ICI IMU LOTTO 2 RENDICONTO DICEMBRE 2019 CIG. 5325258DE8;20/01/2020;332;0;0;1;Spese correnti;3;Acquisto di beni e servizi;2;Acquisto di servizi;3;Aggi di riscossione;999;Altri aggi di riscossione n.a.c.;23/01/2020
207;1;9999999;99,82;99,82;ABACO S.P.A.;5325258DE8;SALDO Fatt.n. 2020140000030  del 02/01/2020 AGGIO RISCOSSIONE COATTIVA ICI IMU LOTTO 3 SAR RENDICONTO DICEMBRE 2019 CIG. 5325258DE8;20/01/2020;332;0;0;1;Spese correnti;3;Acquisto di beni e servizi;2;Acquisto di servizi;3;Aggi di riscossione;999;Altri aggi di riscossione n.a.c.;23/01/2020
208;1;9999999;261,8;261,8;ABACO S.P.A.;5325258DE8;SALDO Fatt.n. 2020140000031  del 02/01/2020 AGGIO RISCOSSIONE COATTIVA ICI IMU E TASI LOTTO 5 RENDICONTO DICEMBRE 2019 CIG. 5325258DE8;20/01/2020;332;0;0;1;Spese correnti;3;Acquisto di beni e servizi;2;Acquisto di servizi;3;Aggi di riscossione;999;Altri aggi di riscossione n.a.c.;23/01/2020
209;1;9999999;173,23;173,23;ABACO S.P.A.;5325258DE8;SALDO Fatt.n. 2020140000032  del 02/01/2020 AGGIO RISCOSSIONE COATTIVA ICI IMU E TASI LOTTO 6 RENDICONTO DICEMBRE 2019 CIG. 5325258DE8;20/01/2020;332;0;0;1;Spese correnti;3;Acquisto di beni e servizi;2;Acquisto di servizi;3;Aggi di riscossione;999;Altri aggi di riscossione n.a.c.;23/01/2020
210;1;9999999;49,84;49,84;ABACO S.P.A.;5325258DE8;SALDO Fatt.n. 2020140000033  del 02/01/2020 AGGIO RISCOSSIONE COATTIVA ICI IMU E TASI LOTTO 8 RENDICONTO DICEMBRE 2019 CIG. 5325258DE8;20/01/2020;332;0;0;1;Spese correnti;3;Acquisto di beni e servizi;2;Acquisto di servizi;3;Aggi di riscossione;999;Altri aggi di riscossione n.a.c.;23/01/2020
211;1;9999999;1.200,00;1.200,00;OMESSO NOMINATIVO NEL RISPETTO DELLA NORMATIVA SULLA PROTEZIONE DATI PERSONALI; ;CONTRIBUTO ICD M 3 TRIMESTRE 2019;21/01/2020;3957;50;1300;1;Spese correnti;4;Trasferimenti correnti;2;Trasferimenti correnti a Famiglie;2;Interventi assistenziali;999;Altri assegni e sussidi assistenziali;22/01/2020
212;1;9999999;855,17;855,17;VALEX SPA; ;LIQUIDAZIONE DITTA VALEX RIMBORSO ASSENZE RETRIBUITE VICE SINDACO ARPI ALESSANDRO MESI DI NOVEMBRE E DICEMBRE 2019.;21/01/2020;30;99;113;1;Spese correnti;3;Acquisto di beni e servizi;2;Acquisto di servizi;1;Organi e incarichi istituzionali dell'amministrazione;2;Organi istituzionali dell'amministrazione - Rimborsi;23/01/2020
213;1;9999999;35,38;82,96;TIM SPA;ZD51D16E0C;Fatt.n. 8E00976373  del 05/12/2019 1 BIM 2020- UTENZA FAX POLIZIA LOCALE;21/01/2020;134;0;52;1;Spese correnti;3;Acquisto di beni e servizi;2;Acquisto di servizi;5;Utenze e canoni;1;Telefonia fissa;23/01/2020
213;2;9999999;47,58;82,96;TIM SPA;ZD51D16E0C;Fatt.n. 8E00977015  del 05/12/2019 1 BIM 2020 - UTENZA SERVIZI SOCIALI;21/01/2020;134;0;52;1;Spese correnti;3;Acquisto di beni e servizi;2;Acquisto di servizi;5;Utenze e canoni;1;Telefonia fissa;23/01/2020
214;1;9999999;536,8;536,8;DISMA SAS DI ANGELO RIGO & C.;Z8D28FE8E2;Fatt.n. 104/2019  del 31/12/2019 SERVIZIO INFORMAGIOVANI DECEMBRE 2019;21/01/2020;2049;0;745;1;Spese correnti;3;Acquisto di beni e servizi;2;Acquisto di servizi;99;Altri servizi;999;Altri servizi diversi n.a.c.;23/01/2020
215;1;9999999;11.578,59;34.249,82;SOC. SOCIOCULTURALE COOP. SOCIALE;65887432BA;Fatt.n. 4478 PAS  del 02/12/2019 MESE DI LUGLIO 2019  - PERIODO 01-15-07-2019 - ASSISTENZA DOMICILIARE E TRASPORTO;21/01/2020;3944;0;207;1;Spese correnti;3;Acquisto di beni e servizi;2;Acquisto di servizi;15;Contratti di servizio pubblico;9;Contratti di servizio di assistenza sociale domiciliare;23/01/2020
215;2;9999999;22.671,23;34.249,82;SOC. SOCIOCULTURALE COOP. SOCIALE;65887432BA;Fatt.n. 4307 PAS  del 20/11/2019 MESE DI GIUGNO 2019 - ASSISTENZA DOMICILIARE E TRASPORTO;21/01/2020;3944;0;207;1;Spese correnti;3;Acquisto di beni e servizi;2;Acquisto di servizi;15;Contratti di servizio pubblico;9;Contratti di servizio di assistenza sociale domiciliare;23/01/2020
216;1;9999999;500;500;MANO AMICA - GRUPPO SALESE DI IMPEGNO SOCIALE O.D.V.; ;CONTRIBUTI ECONOMICI ALLE ASSOCIAZIONI CULTURALI DEL TERRITORIO;21/01/2020;1859;0;1380;1;Spese correnti;4;Trasferimenti correnti;4;Trasferimenti correnti a Istituzioni Sociali Private;1;Trasferimenti correnti a Istituzioni Sociali Private;1;Trasferimenti correnti a Istituzioni Sociali Private;23/01/2020
217;1;9999999;500;500;A SE STANTE APS; ;CONTRIBUTI ECONOMICI ALLE ASSOCIAZIONI CULTURALI DEL TERRITORIO;21/01/2020;1859;0;1381;1;Spese correnti;4;Trasferimenti correnti;4;Trasferimenti correnti a Istituzioni Sociali Private;1;Trasferimenti correnti a Istituzioni Sociali Private;1;Trasferimenti correnti a Istituzioni Sociali Private;23/01/2020
218;1;9999999;400;400;ASS.MUSICALE MAGNIFICAT; ;CONTRIBUTI ECONOMICI ALLE ASSOCIAZIONI CULTURALI DEL TERRITORIO;21/01/2020;1859;0;1382;1;Spese correnti;4;Trasferimenti correnti;4;Trasferimenti correnti a Istituzioni Sociali Private;1;Trasferimenti correnti a Istituzioni Sociali Private;1;Trasferimenti correnti a Istituzioni Sociali Private;23/01/2020
219;1;9999999;2.400,00;2.400,00;ASS.NE DI PROMOZIONE SOC. LA CASA SULL' ALBERO; ;CONTRIBUTI ECONOMICI ALLE ASSOCIAZIONI CULTURALI DEL TERRITORIO;21/01/2020;1859;0;1383;1;Spese correnti;4;Trasferimenti correnti;4;Trasferimenti correnti a Istituzioni Sociali Private;1;Trasferimenti correnti a Istituzioni Sociali Private;1;Trasferimenti correnti a Istituzioni Sociali Private;23/01/2020
220;1;9999999;1.000,00;1.000,00;PARROCCHIA DELLA  NATIVITA' B. VERGINE MARIA S.M.SALA; ;CONTRIBUTI ECONOMICI ALLE ASSOCIAZIONI CULTURALI DEL TERRITORIO;21/01/2020;1859;0;1384;1;Spese correnti;4;Trasferimenti correnti;4;Trasferimenti correnti a Istituzioni Sociali Private;1;Trasferimenti correnti a Istituzioni Sociali Private;1;Trasferimenti correnti a Istituzioni Sociali Private;23/01/2020
221;1;9999999;1.000,00;1.000,00;ORCHESTRA DI FIATI DEL VENETO; ;CONTRIBUTI ECONOMICI ALLE ASSOCIAZIONI CULTURALI DEL TERRITORIO;21/01/2020;1859;0;1385;1;Spese correnti;4;Trasferimenti correnti;4;Trasferimenti correnti a Istituzioni Sociali Private;1;Trasferimenti correnti a Istituzioni Sociali Private;1;Trasferimenti correnti a Istituzioni Sociali Private;23/01/2020
222;1;9999999;867,98;867,98;CENTRO BIBLIOTECHE LOVAT SRL;Z13295599A;Fatt.n. 1374-19  del 18/12/2019 VOLUMI PER BIBLIOTECA;21/01/2020;1820;0;807;1;Spese correnti;3;Acquisto di beni e servizi;1;Acquisto di beni;1;Giornali, riviste e pubblicazioni;1;Giornali e riviste;23/01/2020
223;1;9999999;409,19;409,19;NEOPOST RENTAL ITALIA SRL;Z5221D3B79;Fatt.n. 2019.8351  del 28/12/2019 CANONE NOLEGGIO ANNO 2020  AFFRANCATRICE  IS 280;22/01/2020;145;0;24;1;Spese correnti;3;Acquisto di beni e servizi;2;Acquisto di servizi;16;Servizi amministrativi;2;Spese postali;23/01/2020
224;1;9999999;519,72;519,72;FORINT SPA;ZAD2A8E252;Fatt.n. 2019H03607  del 31/12/2019 SALDO FORNITURA VESTIARIO INVERNALE PER LA POLIZIA LOCALE;22/01/2020;1121;6;1146;1;Spese correnti;3;Acquisto di beni e servizi;1;Acquisto di beni;2;Altri beni di consumo;4;Vestiario;23/01/2020
225;1;9999999;13.219,80;13.219,80;BONAVENTURA EXPRESS SRL;7888588CBE;Fatt.n. 550PA  del 31/12/2019 DICEMBRE 2019 - TRASPORTO SCOLASTICO;22/01/2020;1344;0;542;1;Spese correnti;3;Acquisto di beni e servizi;2;Acquisto di servizi;15;Contratti di servizio pubblico;2;Contratti di servizio di trasporto scolastico;23/01/2020
226;1;9999999;3.761,80;20.405,80;SODEXO ITALIA SPA;78886743B9;Fatt.n. 6400059926  del 31/12/2019 MESE DI DICEMBRE 2019 PASTI SCUOLE ELEMENTARI E MATERNE BAMBINI ED INSEGNANTI;22/01/2020;1344;0;543;1;Spese correnti;3;Acquisto di beni e servizi;2;Acquisto di servizi;15;Contratti di servizio pubblico;6;Contratti di servizio per le mense scolastiche;23/01/2020
226;2;9999999;16.644,00;20.405,80;SODEXO ITALIA SPA;78886743B9;Fatt.n. 6400059927  del 31/12/2019 MESE DI DICEMBRE 2019 - PASTI TRASPORTATI SCUOLE BAMBINI ED INSEGNANTI;22/01/2020;1344;0;543;1;Spese correnti;3;Acquisto di beni e servizi;2;Acquisto di servizi;15;Contratti di servizio pubblico;6;Contratti di servizio per le mense scolastiche;23/01/2020
227;1;9999999;122,65;122,65;SONEPAR ITALIA  SPA;Z7D27E04B9;Fatt.n. 0031267144  del 31/12/2019 MATERIALE ELETTRICO PER MANUTENZIONI;22/01/2020;1949;0;621;1;Spese correnti;3;Acquisto di beni e servizi;2;Acquisto di servizi;99;Altri servizi;999;Altri servizi diversi n.a.c.;23/01/2020
228;1;9999999;233,73;233,73;MEB SRL;Z4527E035B;Fatt.n. 066149  del 30/12/2019 MATERIALE ELETTRICO VARIO PER MANUTENZIONI;22/01/2020;3538;0;396;1;Spese correnti;3;Acquisto di beni e servizi;2;Acquisto di servizi;9;Manutenzione ordinaria e riparazioni;4;Manutenzione ordinaria e riparazioni di impianti e macchinari;23/01/2020
229;1;9999999;495;495;PNEUS EVOLUTION SRL;ZF12B3B7C4;Fatt.n. 3  del 04/01/2020 SOSTITUZIONE PNEUMATICI NISSAN BV340BC;22/01/2020;3538;0;1373;1;Spese correnti;3;Acquisto di beni e servizi;2;Acquisto di servizi;9;Manutenzione ordinaria e riparazioni;1;Manutenzione ordinaria e riparazioni di mezzi di trasporto ad uso civile, di sicurezza e ordine pubblico;23/01/2020
230;1;9999999;8.975,91;8.975,91;MY CONSTRUCTION SRL;Z8E2B4001C;Fatt.n. 002041900039  del 31/12/2019 INTERVENTI URGENTI DI CONSOLIDAMENTO E RESTAURO BALAUSTRE VILLA FARSETTI;22/01/2020;7450;1;1378;2;Spese in conto capitale;2;Investimenti fissi lordi e acquisto di terreni;1;Beni materiali;10;Beni immobili di valore culturale, storico ed artistico;999;Beni immobili di valore culturale, storico ed artistico n.a.c.;23/01/2020
231;1;9999999;8.103,24;8.103,24;TIM SPA;Z1E29CE526;Fatt.n. 6820200105000013  del 02/01/2020 FORNITURA  ED INSTALLAZIONE CENTRALINO ALCATEL OMNIPCX OFFICE;22/01/2020;7440;0;992;2;Spese in conto capitale;2;Investimenti fissi lordi e acquisto di terreni;1;Beni materiali;7;Hardware;4;Apparati di telecomunicazione;23/01/2020
233;1;9999999;72,5;72,5;TNE SRL TUTTO NORMEL;Z3A2BA2E7F;ABBONAMENTO RIVISTA TUTTONORMEL SPIN T.N.E. S.R.L. ANNO 2020.;24/01/2020;120;0;70;1;Spese correnti;3;Acquisto di beni e servizi;1;Acquisto di beni;1;Giornali, riviste e pubblicazioni;1;Giornali e riviste;28/01/2020
234;1;9999999;124,8;124,8;ORTOFRUTTA TOMAELLO E GIORNALI DI TOMAELLO G.CARLO;Z88271E0A9;Fatt.n. 12/PA  del 31/12/2019 MESE DI DICEMBRE 2019 - FORNITURA QUOTIDIANI;24/01/2020;1820;0;1306;1;Spese correnti;3;Acquisto di beni e servizi;1;Acquisto di beni;1;Giornali, riviste e pubblicazioni;1;Giornali e riviste;28/01/2020
235;1;9999999;354,21;354,21;COMUNE DI S.MARIA DI SALA; ;CONTRIBUTO IFEL RENDICONTO DICEMBRE 2019;24/01/2020;332;0;1228;1;Spese correnti;3;Acquisto di beni e servizi;2;Acquisto di servizi;3;Aggi di riscossione;999;Altri aggi di riscossione n.a.c.;29/01/2020
236;1;9999999;1.647,00;1.647,00;NOISICURI PROJECT S.R.L.;Z512AF5525;Fatt.n. 318/001  del 31/12/2019 SERVIZIO DI SUPPORTO ALLA POLIZIA LOCALE PER CONTROLLO VELOCITA' - DICEMBRE 2019;27/01/2020;1149;0;1278;1;Spese correnti;3;Acquisto di beni e servizi;2;Acquisto di servizi;99;Altri servizi;999;Altri servizi diversi n.a.c.;29/01/2020
237;1;9999999;-140,06;253,18;SONEPAR ITALIA  SPA;Z7D27E04B9;Fatt.n. 0034000083  del 17/01/2020 NOTA DI ACCREDITO PER ERRATA CONSEGNA;27/01/2020;1949;0;621;1;Spese correnti;3;Acquisto di beni e servizi;2;Acquisto di servizi;99;Altri servizi;999;Altri servizi diversi n.a.c.;29/01/2020
237;2;9999999;393,24;253,18;SONEPAR ITALIA  SPA;Z7D27E04B9;Fatt.n. 0031267145  del 31/12/2019 MATERIALE ELETTRICO PER MANUTENZIONI;27/01/2020;1949;0;621;1;Spese correnti;3;Acquisto di beni e servizi;2;Acquisto di servizi;99;Altri servizi;999;Altri servizi diversi n.a.c.;29/01/2020
238;1;9999999;79,6;79,6;SONEPAR ITALIA  SPA;Z7D27E04B9;Fatt.n. 0031267146  del 31/12/2019 MATERIALE ELETTRICO PER MANUTENZIONI;27/01/2020;1949;0;621;1;Spese correnti;3;Acquisto di beni e servizi;2;Acquisto di servizi;99;Altri servizi;999;Altri servizi diversi n.a.c.;29/01/2020
239;1;9999999;6.041,44;6.041,44;L'ISOLA SOC. COOPERATIVA SOCIALE;Z192B44F5E;Fatt.n. 12/PA  del 31/12/2019 INTERVENTI DI PULIZIA E RIORDINO AREE VERDI;27/01/2020;2549;0;1390;1;Spese correnti;3;Acquisto di beni e servizi;2;Acquisto di servizi;99;Altri servizi;9;Acquisto di sevizi per verde e arredo urbano;29/01/2020
240;1;9999999;59,48;59,48;SONEPAR ITALIA  SPA;Z7D27E04B9;Fatt.n. 0031267146  del 31/12/2019 MATERIALE ELETTRICO PER MANUTENZIONI;27/01/2020;3538;0;399;1;Spese correnti;3;Acquisto di beni e servizi;2;Acquisto di servizi;9;Manutenzione ordinaria e riparazioni;4;Manutenzione ordinaria e riparazioni di impianti e macchinari;29/01/2020
241;1;9999999;178,12;178,12;SONEPAR ITALIA  SPA;Z7D27E04B9;Fatt.n. 0031000078  del 20/01/2020 MATERIALE ELETTRICO PER MANUTENZIONI;27/01/2020;3538;0;399;1;Spese correnti;3;Acquisto di beni e servizi;2;Acquisto di servizi;9;Manutenzione ordinaria e riparazioni;4;Manutenzione ordinaria e riparazioni di impianti e macchinari;29/01/2020
242;1;9999999;1.352,86;1.352,86;EPIU' SRL - COSTRUIRE INSIEME;ZF028172D8;Fatt.n. 28135  del 31/12/2019 MATERIALI EDILI PER MANUTENZIONI;27/01/2020;3538;0;863;1;Spese correnti;3;Acquisto di beni e servizi;2;Acquisto di servizi;9;Manutenzione ordinaria e riparazioni;8;Manutenzione ordinaria e riparazioni di beni immobili;29/01/2020
243;1;9999999;215;215;GOLFETTO GIOVANNI;ZF52B229CB;Fatt.n. 6  del 09/01/2020 ACQUISTO FRIGORIFERO SC.STIGLIANO;27/01/2020;7581;0;51;2;Spese in conto capitale;2;Investimenti fissi lordi e acquisto di terreni;1;Beni materiali;5;Attrezzature;999;Attrezzature n.a.c.;29/01/2020
244;1;9999999;86;86;SOENERGY S.R.L.;7841279C1F;Fatt.n. 201001814  del 10/01/2020 DICEMBRE 2019 + CONG. CONSUMI MEDICINA DI GRUPPO - SEDE MUNICIPALE;27/01/2020;134;30;1153;1;Spese correnti;3;Acquisto di beni e servizi;2;Acquisto di servizi;5;Utenze e canoni;6;Gas;29/01/2020
245;1;9999999;41,16;41,16;SOENERGY S.R.L.;7841279C1F;Fatt.n. 201001815  del 10/01/2020 DICEMBRE 2019 + CONG. CONSUMI ALLOGGIO VIA OLIMPIA SMS;27/01/2020;134;31;1154;1;Spese correnti;3;Acquisto di beni e servizi;2;Acquisto di servizi;5;Utenze e canoni;6;Gas;29/01/2020
246;1;9999999;348,67;348,67;SOENERGY S.R.L.;7841279C1F;Fatt.n. 201001814  del 10/01/2020 DICEMBRE 2019 + CONG. CONSUMI MEDICINA DI GRUPPO - SEDE MUNICIPALE;27/01/2020;134;31;1154;1;Spese correnti;3;Acquisto di beni e servizi;2;Acquisto di servizi;5;Utenze e canoni;6;Gas;29/01/2020
247;1;9999999;1.738,66;1.738,66;SOENERGY S.R.L.;7841279C1F;Fatt.n. 201001814  del 10/01/2020 DICEMBRE 2019 + CONG. CONSUMI MEDICINA DI GRUPPO - SEDE MUNICIPALE;27/01/2020;134;31;1154;1;Spese correnti;3;Acquisto di beni e servizi;2;Acquisto di servizi;5;Utenze e canoni;6;Gas;29/01/2020
248;1;9999999;4.436,85;4.436,85;SOENERGY S.R.L.;7841279C1F;Fatt.n. 201001805  del 10/01/2020 DICEMBRE 2019 + CONG. CONSUMI VILLA FARSETTI;27/01/2020;134;31;1154;1;Spese correnti;3;Acquisto di beni e servizi;2;Acquisto di servizi;5;Utenze e canoni;6;Gas;29/01/2020
249;1;9999999;2.985,10;2.985,10;SOENERGY S.R.L.;7841279C1F;Fatt.n. 201001804  del 10/01/2020 DICEMBRE 2019 + CONG. CONSUMI SC. ELEM - MEDIE SMS;27/01/2020;1334;30;250;1;Spese correnti;3;Acquisto di beni e servizi;2;Acquisto di servizi;5;Utenze e canoni;6;Gas;29/01/2020
250;1;9999999;2.320,40;2.320,40;SOENERGY S.R.L.;7841279C1F;Fatt.n. 201001806  del 10/01/2020 DICEMBRE 2019 + CONG. CONSUMI SC. ELEM. CALTANA;27/01/2020;1334;30;250;1;Spese correnti;3;Acquisto di beni e servizi;2;Acquisto di servizi;5;Utenze e canoni;6;Gas;29/01/2020
251;1;9999999;675;675;SOENERGY S.R.L.;7841279C1F;Fatt.n. 201001811  del 10/01/2020 DICEMBRE 2019 + CONG. CONSUMI SC. ELEM-PALESTRA VETERNIGO;27/01/2020;1334;30;250;1;Spese correnti;3;Acquisto di beni e servizi;2;Acquisto di servizi;5;Utenze e canoni;6;Gas;29/01/2020
252;1;9999999;1.103,65;1.103,65;SOENERGY S.R.L.;7841279C1F;Fatt.n. 201001811  del 10/01/2020 DICEMBRE 2019 + CONG. CONSUMI SC. ELEM-PALESTRA VETERNIGO;27/01/2020;1334;30;250;1;Spese correnti;3;Acquisto di beni e servizi;2;Acquisto di servizi;5;Utenze e canoni;6;Gas;29/01/2020
253;1;9999999;590;590;SOENERGY S.R.L.;7841279C1F;Fatt.n. 201001810  del 10/01/2020 DICEMBRE 2019 + CONG. CONSUMI SC. ELEM-PALESTRA-ASILO S.ANGELO;27/01/2020;1334;30;250;1;Spese correnti;3;Acquisto di beni e servizi;2;Acquisto di servizi;5;Utenze e canoni;6;Gas;29/01/2020
254;1;9999999;1.772,39;1.772,39;SOENERGY S.R.L.;7841279C1F;Fatt.n. 201001810  del 10/01/2020 DICEMBRE 2019 + CONG. CONSUMI SC. ELEM-PALESTRA-ASILO S.ANGELO;27/01/2020;1334;30;250;1;Spese correnti;3;Acquisto di beni e servizi;2;Acquisto di servizi;5;Utenze e canoni;6;Gas;29/01/2020
255;1;9999999;573,88;573,88;SOENERGY S.R.L.;7841279C1F;Fatt.n. 201001812  del 10/01/2020 DICEMBRE 2019 + CONG. CONSUMI PALESTRA CALTANA;27/01/2020;1334;30;250;1;Spese correnti;3;Acquisto di beni e servizi;2;Acquisto di servizi;5;Utenze e canoni;6;Gas;29/01/2020
256;1;9999999;971,51;971,51;SOENERGY S.R.L.;7841279C1F;Fatt.n. 201001812  del 10/01/2020 DICEMBRE 2019 + CONG. CONSUMI PALESTRA CALTANA;27/01/2020;1334;30;250;1;Spese correnti;3;Acquisto di beni e servizi;2;Acquisto di servizi;5;Utenze e canoni;6;Gas;29/01/2020
257;1;9999999;1.224,04;1.224,04;SOENERGY S.R.L.;7841279C1F;Fatt.n. 201001808  del 10/01/2020 DICEMBRE 2019 + CONG. CONSUMI IMP. SPORT. CASELLE;27/01/2020;1334;30;250;1;Spese correnti;3;Acquisto di beni e servizi;2;Acquisto di servizi;5;Utenze e canoni;6;Gas;29/01/2020
258;1;9999999;1.481,00;1.481,00;SOENERGY S.R.L.;7841279C1F;Fatt.n. 201001803  del 10/01/2020 DICEMBRE 2019 + CONG. CONSUMI PALESTRA SMS;27/01/2020;1334;30;250;1;Spese correnti;3;Acquisto di beni e servizi;2;Acquisto di servizi;5;Utenze e canoni;6;Gas;29/01/2020
259;1;9999999;1.481,00;1.481,00;SOENERGY S.R.L.;7841279C1F;Fatt.n. 201001803  del 10/01/2020 DICEMBRE 2019 + CONG. CONSUMI PALESTRA SMS;27/01/2020;1334;30;250;1;Spese correnti;3;Acquisto di beni e servizi;2;Acquisto di servizi;5;Utenze e canoni;6;Gas;29/01/2020
260;1;9999999;774;774;SOENERGY S.R.L.;7841279C1F;Fatt.n. 201001802  del 10/01/2020 DICEMBRE 2019 + CONG. CONSUMI SC. ELEM - PALESTRA STIGLIANO;27/01/2020;1334;30;250;1;Spese correnti;3;Acquisto di beni e servizi;2;Acquisto di servizi;5;Utenze e canoni;6;Gas;29/01/2020
261;1;9999999;774;774;SOENERGY S.R.L.;7841279C1F;Fatt.n. 201001802  del 10/01/2020 DICEMBRE 2019 + CONG. CONSUMI SC. ELEM - PALESTRA STIGLIANO;27/01/2020;1334;30;250;1;Spese correnti;3;Acquisto di beni e servizi;2;Acquisto di servizi;5;Utenze e canoni;6;Gas;29/01/2020
262;1;9999999;663,3;663,3;SOENERGY S.R.L.;7841279C1F;Fatt.n. 201001802  del 10/01/2020 DICEMBRE 2019 + CONG. CONSUMI SC. ELEM - PALESTRA STIGLIANO;27/01/2020;1334;30;250;1;Spese correnti;3;Acquisto di beni e servizi;2;Acquisto di servizi;5;Utenze e canoni;6;Gas;29/01/2020
263;1;9999999;772;772;SOENERGY S.R.L.;7841279C1F;Fatt.n. 201001809  del 10/01/2020 DICEMBRE 2019 + CONG. CONSUMI SC. ELEM - PALESTRA CASELLE;27/01/2020;1334;30;250;1;Spese correnti;3;Acquisto di beni e servizi;2;Acquisto di servizi;5;Utenze e canoni;6;Gas;29/01/2020
264;1;9999999;772;772;SOENERGY S.R.L.;7841279C1F;Fatt.n. 201001809  del 10/01/2020 DICEMBRE 2019 + CONG. CONSUMI SC. ELEM - PALESTRA CASELLE;27/01/2020;1334;30;250;1;Spese correnti;3;Acquisto di beni e servizi;2;Acquisto di servizi;5;Utenze e canoni;6;Gas;29/01/2020
265;1;9999999;2.317,30;2.317,30;SOENERGY S.R.L.;7841279C1F;Fatt.n. 201001809  del 10/01/2020 DICEMBRE 2019 + CONG. CONSUMI SC. ELEM - PALESTRA CASELLE;27/01/2020;1334;30;250;1;Spese correnti;3;Acquisto di beni e servizi;2;Acquisto di servizi;5;Utenze e canoni;6;Gas;29/01/2020
266;1;9999999;675;675;SOENERGY S.R.L.;7841279C1F;Fatt.n. 201001811  del 10/01/2020 DICEMBRE 2019 + CONG. CONSUMI SC. ELEM-PALESTRA VETERNIGO;27/01/2020;1934;0;1156;1;Spese correnti;3;Acquisto di beni e servizi;2;Acquisto di servizi;5;Utenze e canoni;6;Gas;29/01/2020
267;1;9999999;590;590;SOENERGY S.R.L.;7841279C1F;Fatt.n. 201001810  del 10/01/2020 DICEMBRE 2019 + CONG. CONSUMI SC. ELEM-PALESTRA-ASILO S.ANGELO;27/01/2020;1934;0;1156;1;Spese correnti;3;Acquisto di beni e servizi;2;Acquisto di servizi;5;Utenze e canoni;6;Gas;29/01/2020
268;1;9999999;397,62;397,62;SOENERGY S.R.L.;7841279C1F;Fatt.n. 201001812  del 10/01/2020 DICEMBRE 2019 + CONG. CONSUMI PALESTRA CALTANA;27/01/2020;1934;0;1156;1;Spese correnti;3;Acquisto di beni e servizi;2;Acquisto di servizi;5;Utenze e canoni;6;Gas;29/01/2020
269;1;9999999;325,22;325,22;SOENERGY S.R.L.;7841279C1F;Fatt.n. 201001813  del 10/01/2020 DICEMBRE 2019 + CONG. CONSUMI MAGAZZINO COMUNALE;27/01/2020;3534;0;253;1;Spese correnti;3;Acquisto di beni e servizi;2;Acquisto di servizi;5;Utenze e canoni;6;Gas;29/01/2020
270;1;9999999;143,61;143,61;SOENERGY S.R.L.;7841279C1F;Fatt.n. 201001807  del 10/01/2020 DICEMBRE 2019 + CONG. CONSUMI ALLOGGIO VIA DON GALLERANI - CALTANA;27/01/2020;3534;0;253;1;Spese correnti;3;Acquisto di beni e servizi;2;Acquisto di servizi;5;Utenze e canoni;6;Gas;29/01/2020
271;1;9999999;1.063,00;1.063,00;OMESSO NOMINATIVO NEL RISPETTO DELLA NORMATIVA SULLA PROTEZIONE DATI PERSONALI; ;OTTOBRE NOVEMBRE DICEMBRE 2019 PROGETTO PERSONALIZZATO DINTERVENTO SOCIO-ASSISTENZIALE;27/01/2020;3757;0;1346;1;Spese correnti;4;Trasferimenti correnti;2;Trasferimenti correnti a Famiglie;5;Altri trasferimenti a famiglie;999;Altri trasferimenti a famiglie n.a.c.;29/01/2020
272;1;9999999;1.217,80;1.217,80;MCTC MINISTERO INFRASTRUTTURE TRASPORTI; ;CANONE ANNO 2020 UTENZA DPR 634/94 CAPO XV CAPITOLO 2454 ART.5;28/01/2020;1134;0;82;1;Spese correnti;3;Acquisto di beni e servizi;2;Acquisto di servizi;5;Utenze e canoni;3;Accesso a banche dati e a pubblicazioni on line;30/01/2020
273;1;9999999;352,89;352,89;S.AR.HA SOC.COOP.SOCIALE ONLUS;Z97271A9E0;Fatt.n. 2/PA  del 14/01/2020 TRASCRIZIONE CONSIGLIO COMUNALE DEL 18 NOVEMBRE 2019;03/02/2020;49;0;126;1;Spese correnti;3;Acquisto di beni e servizi;2;Acquisto di servizi;99;Altri servizi;999;Altri servizi diversi n.a.c.;05/02/2020
274;1;9999999;2.135,00;2.135,00;MPS SPA;Z9117B13B8;Fatt.n. 3020007501  del 16/01/2020 COMP.SERV. DI TESORERIA 2 SEMESTRE 2019;03/02/2020;146;0;852;1;Spese correnti;3;Acquisto di beni e servizi;2;Acquisto di servizi;17;Servizi finanziari;2;Oneri per servizio di tesoreria;05/02/2020
275;1;9999999;75,25;75,25;ABACO S.P.A.;766214493F;Fatt.n. 2020120000008  del 07/01/2020 AGGIO RISCOSSIONE ICP E DPA CONTO ENTE RENDICONTO DELLA GESTIONE DAL 01/12/2019 A 31/12/2019 CIG.766214493F;03/02/2020;332;0;1228;1;Spese correnti;3;Acquisto di beni e servizi;2;Acquisto di servizi;3;Aggi di riscossione;999;Altri aggi di riscossione n.a.c.;05/02/2020
276;1;9999999;3.000,00;3.000,00;PESARESI GRAZIANO; ;LIQUIDAZIONE COMPENSO ANNO 2019 DOTT. GRAZIANO PESARESI PER INCARICO NUCLEO DI VALUTAZIONE IN COMPOSIZIONE MONOCRATICA TRIENNIO 2018/2020.;03/02/2020;830;0;400;1;Spese correnti;3;Acquisto di beni e servizi;2;Acquisto di servizi;1;Organi e incarichi istituzionali dell'amministrazione;8;Compensi agli organi istituzionali di revisione, di controllo ed altri incarichi istituzionali dell'amministrazione;05/02/2020
277;1;9999999;221,4;221,4;EGAF EDIZIONI SRL;Z8A2B8E21C;Fatt.n. 2020-V-VS2-694  del 21/01/2020 PRONTUARIO DELLE VIOLAZIONI ALLA CIRCOLAZIONE STRADALE -  ABBONAMENTO ANNO 2020;03/02/2020;1121;6;55;1;Spese correnti;3;Acquisto di beni e servizi;1;Acquisto di beni;2;Altri beni di consumo;14;Stampati specialistici;05/02/2020
278;1;9999999;1.525,00;1.525,00;PIOVESAN EMANUELA;ZA22918861;Fatt.n. FE-2020-000001  del 12/01/2020 PROGETTO DI PREVENZIONE AL BULLISMO 2019 B.A.S.T.A.;03/02/2020;1840;0;1267;1;Spese correnti;3;Acquisto di beni e servizi;2;Acquisto di servizi;11;Prestazioni professionali e specialistiche;2;Assistenza psicologica, sociale e religiosa;06/02/2020
279;1;9999999;103,95;103,95;BALDAN ARTURO; ;Fatt.n. 2  del 21/01/2020 COMPETENZE A SALDO PER INDENNITA DI PRESENZA QUALE COMPONENTE DELLA COMMISSIONE PER IL PAESAGGIO ANNO 2019;03/02/2020;2430;0;118;1;Spese correnti;3;Acquisto di beni e servizi;2;Acquisto di servizi;1;Organi e incarichi istituzionali dell'amministrazione;1;Organi istituzionali dell'amministrazione - Indennità;05/02/2020
280;1;9999999;76,09;76,09;MARTIGNON MASSIMILIANO; ;Fatt.n. FPA 1/20  del 14/01/2020 INDENNITA PRESENZA COMMISSIONE PER IL PAESAGGIO 2019;03/02/2020;2430;0;119;1;Spese correnti;3;Acquisto di beni e servizi;2;Acquisto di servizi;1;Organi e incarichi istituzionali dell'amministrazione;1;Organi istituzionali dell'amministrazione - Indennità;05/02/2020
281;1;9999999;7.240,00;7.240,00;SO.GE.DI.CO. SRL-IMPIANTI COSTR.GENERALI;ZB51C49AA8;Fatt.n. 7FEP  del 17/01/2020  AMPLIAMENTO RETE DI ILLUMINAZIONE PUBBLICA VIE AQUILEIA - FRATELLA - CAVIN DEL DO - CARAVAGGIO;03/02/2020;8567;0;785;2;Spese in conto capitale;2;Investimenti fissi lordi e acquisto di terreni;1;Beni materiali;9;Beni immobili;12;Infrastrutture stradali;05/02/2020
282;1;9999999;3.000,00;3.000,00;LABS LABORATORIO SOLIDALE ONLUS; ;EROGAZIONE SALDO ANNO 2019;03/02/2020;4059;0;1352;1;Spese correnti;4;Trasferimenti correnti;4;Trasferimenti correnti a Istituzioni Sociali Private;1;Trasferimenti correnti a Istituzioni Sociali Private;1;Trasferimenti correnti a Istituzioni Sociali Private;05/02/2020
283;1;9999999;3.000,00;3.000,00;OMESSO NOMINATIVO NEL RISPETTO DELLA NORMATIVA SULLA PROTEZIONE DATI PERSONALI; ;EROGAZIONE SALDO ANNO 2019;03/02/2020;4059;0;1350;1;Spese correnti;4;Trasferimenti correnti;4;Trasferimenti correnti a Istituzioni Sociali Private;1;Trasferimenti correnti a Istituzioni Sociali Private;1;Trasferimenti correnti a Istituzioni Sociali Private;05/02/2020
284;1;9999999;900;900;A.N.U.T.E.L.-ASS.NAZ.UFF.TRIBUTI ENTI L.;Z702BA82AA;VERSAMENTO QUOTA ASSOCIATIVA A.N.U.T.E.L. ANNO 2020;03/02/2020;349;0;79;1;Spese correnti;3;Acquisto di beni e servizi;2;Acquisto di servizi;99;Altri servizi;999;Altri servizi diversi n.a.c.;05/02/2020
285;1;9999999;650;650;IST.COMPR.STAT.F.E P.CORDENONS; ;CONTRIBUTO PER  REALIZZAZIONE DEL CONCORSO NATALE SOLIDALE 2019  RIVOLTO A TUTTE LE SCUOLE DEL TERRITORIO;03/02/2020;1350;0;58;1;Spese correnti;4;Trasferimenti correnti;1;Trasferimenti correnti a Amministrazioni Pubbliche;1;Trasferimenti correnti a Amministrazioni Centrali;2;Trasferimenti correnti a Ministero dell'Istruzione - Istituzioni scolastiche;05/02/2020
286;1;9999999;125;125;ASILO INFANTILE F.T.CROVATO; ;CONTRIBUTO PER  REALIZZAZIONE DEL CONCORSO NATALE SOLIDALE 2019  RIVOLTO A TUTTE LE SCUOLE DEL TERRITORIO;03/02/2020;1259;0;56;1;Spese correnti;4;Trasferimenti correnti;4;Trasferimenti correnti a Istituzioni Sociali Private;1;Trasferimenti correnti a Istituzioni Sociali Private;1;Trasferimenti correnti a Istituzioni Sociali Private;05/02/2020
287;1;9999999;125;125;SCUOLA DELL'INFANZIA SACRO CUORE; ;CONTRIBUTO PER  REALIZZAZIONE DEL CONCORSO NATALE SOLIDALE 2019  RIVOLTO A TUTTE LE SCUOLE DEL TERRITORIO;03/02/2020;1259;0;57;1;Spese correnti;4;Trasferimenti correnti;4;Trasferimenti correnti a Istituzioni Sociali Private;1;Trasferimenti correnti a Istituzioni Sociali Private;1;Trasferimenti correnti a Istituzioni Sociali Private;05/02/2020
288;1;9999999;631,27;631,27;ANCI VENETO;ZAF2BA9987;QUOTA ASSOCIATIVA ALLA.N.C.I. VENETO ANNO 2020.;03/02/2020;833;0;73;1;Spese correnti;3;Acquisto di beni e servizi;2;Acquisto di servizi;4;Acquisto di servizi per formazione e addestramento del personale dell'ente;999;Acquisto di servizi per altre spese per formazione e addestramento n.a.c.;05/02/2020
289;1;9999999;958,59;958,59;ANCI VENETO;ZAF2BA9987;QUOTA ASSOCIATIVA ALLA.N.C.I. VENETO ANNO 2020.;03/02/2020;49;0;72;1;Spese correnti;3;Acquisto di beni e servizi;2;Acquisto di servizi;99;Altri servizi;3;Quote di associazioni;05/02/2020
309;1;9999999;24,91;24,91;C/C/P 1039683022 ICP - PUBB.AFFISSIONI; ;SPESE RENDICONTO ICP E DPA RENDICONTO DICEMBRE 2019;04/02/2020;146;0;0;1;Spese correnti;3;Acquisto di beni e servizi;2;Acquisto di servizi;17;Servizi finanziari;999;Spese per servizi finanziari n.a.c.;06/02/2020
310;1;9999999;7.939,50;7.939,50;PISTORE MARINO; ;RESTITUZIONE DEL CONTRIBUTO DI COSTRUZIONE   RELATIVO AL PERMESSO DI COSTRUIRE N.9019/6 DEL 24/07/15;05/02/2020;8820;0;89;2;Spese in conto capitale;5;Altre spese in conto capitale;99;Altre spese in conto capitale n.a.c.;99;Altre spese in conto capitale n.a.c.;999;Altre spese in conto capitale n.a.c.;06/02/2020
311;1;9999999;30;30;AUTORITA'VIGILANZA SUI CONTRATTI PUBBLIC; ;QUOTA AUTORITADI VIGILANZA COD.GARA 7535306;05/02/2020;8558;0;851;2;Spese in conto capitale;2;Investimenti fissi lordi e acquisto di terreni;1;Beni materiali;9;Beni immobili;12;Infrastrutture stradali;06/02/2020
312;1;9999999;30;30;AUTORITA'VIGILANZA SUI CONTRATTI PUBBLIC;8037761A33;QUOTE AUTORITA DI VIGILANZA COD.GARA N. 7542224;05/02/2020;8503;0;1006;2;Spese in conto capitale;2;Investimenti fissi lordi e acquisto di terreni;1;Beni materiali;9;Beni immobili;12;Infrastrutture stradali;06/02/2020
313;1;9999999;30;30;AUTORITA'VIGILANZA SUI CONTRATTI PUBBLIC;803987069B;QUOTA AUTORITA DI VIGILANZA COD.GARA 7544027;05/02/2020;7630;0;995;2;Spese in conto capitale;2;Investimenti fissi lordi e acquisto di terreni;1;Beni materiali;9;Beni immobili;3;Fabbricati ad uso scolastico;06/02/2020
314;1;9999999;30;30;AUTORITA'VIGILANZA SUI CONTRATTI PUBBLIC;Z2625E6DE6;QUOTA AUTORITA DI VIGILANZA COD.GARA 7549555;05/02/2020;8560;0;1370;2;Spese in conto capitale;2;Investimenti fissi lordi e acquisto di terreni;1;Beni materiali;9;Beni immobili;12;Infrastrutture stradali;06/02/2020
315;1;9999999;5,44;5,44;C/C/P 15453301 SERVIZIO DI TESORERIA COM; ;PRELEVAMENTO N. 3/2020 - GENNAIO 2020 - PERIODO 16-31.01.2020;06/02/2020;146;0;0;1;Spese correnti;3;Acquisto di beni e servizi;2;Acquisto di servizi;17;Servizi finanziari;999;Spese per servizi finanziari n.a.c.;07/02/2020
316;1;9999999;1.892,00;1.892,00;BULLO GABRIELE; ;DICEMBRE 2019 PAGAMENTO RETTA RSA L.MARIUTTO DI MIRANO A FAVORE DI UTENTE IN SITUAZIONE DI FRAGILITA SOCIALE;06/02/2020;3844;0;102;1;Spese correnti;3;Acquisto di beni e servizi;2;Acquisto di servizi;15;Contratti di servizio pubblico;8;Contratti di servizio di assistenza sociale residenziale e semiresidenziale;07/02/2020
317;1;9999999;118,66;118,66;ENI SPA DIVISIONE REFINING & MARKETING;Z0026BE9B1;ACCONTO Fatt.n. 30449775  del 31/12/2019 DICEMBRE 2019 - FORNITURA METANO;10/02/2020;4121;0;63;1;Spese correnti;3;Acquisto di beni e servizi;1;Acquisto di beni;2;Altri beni di consumo;2;Carburanti, combustibili e lubrificanti;13/02/2020
318;1;9999999;21,05;21,05;ENI SPA DIVISIONE REFINING & MARKETING;Z0026BE9B1;SALDO Fatt.n. 30449775  del 31/12/2019 DICEMBRE 2019 - FORNITURA METANO;10/02/2020;4121;0;63;1;Spese correnti;3;Acquisto di beni e servizi;1;Acquisto di beni;2;Altri beni di consumo;2;Carburanti, combustibili e lubrificanti;14/02/2020
320;1;9999999;294,89;294,89;CENTRO BIBLIOTECHE LOVAT SRL;Z13295599A;Fatt.n. 67-20  del 23/01/2020 FORNITURA VOLUMI PER BIBLIOTECA;10/02/2020;1820;0;807;1;Spese correnti;3;Acquisto di beni e servizi;1;Acquisto di beni;1;Giornali, riviste e pubblicazioni;1;Giornali e riviste;13/02/2020
321;1;9999999;112,24;112,24;F.I.V.E. SRL;ZC82B1E4CC;Fatt.n. 2020/V2/000000260  del 30/01/2020 ETIC. ADESIVE PER CODIFICA VOLUMI BIBLIOTECA;10/02/2020;1820;0;1342;1;Spese correnti;3;Acquisto di beni e servizi;1;Acquisto di beni;1;Giornali, riviste e pubblicazioni;2;Pubblicazioni;13/02/2020
322;1;9999999;1.525,00;1.525,00;GRIGGIO ANDREA;Z02291837E;Fatt.n. FE-2020-000001  del 14/01/2020 PROGETTO DI PREVENZIONE AL BULLISMO 2019 B.A.S.T.A.;10/02/2020;1840;0;1284;1;Spese correnti;3;Acquisto di beni e servizi;2;Acquisto di servizi;11;Prestazioni professionali e specialistiche;2;Assistenza psicologica, sociale e religiosa;13/02/2020
323;1;9999999;6.344,00;6.344,00;BERTOLIN SAMUEL;Z5229CE475;Fatt.n. 1/20  del 13/01/2020 SERVIZI DI INGEGNERIA - PROGETTO DI FATTIBILITA' MESSA IN SICUREZZA DELL'INTERSEZIONE S.R.515 NOALESE  -  STIGLIANO;10/02/2020;8699;10;996;2;Spese in conto capitale;2;Investimenti fissi lordi e acquisto di terreni;3;Beni immateriali;99;Spese di investimento per beni immateriali n.a.c.;1;Spese di investimento per beni immateriali n.a.c.;13/02/2020
324;1;9999999;3.849,42;3.849,42;AGENZIA DELLE ENTRATE - IVA; ;LIQUIDAZIONE IVA COMMERCIALE MESE DI GENNAIO 2020;10/02/2020;291;0;130;1;Spese correnti;10;Altre spese correnti;3;Versamenti IVA a debito;1;Versamenti IVA a debito per le gestioni commerciali;1;Versamenti IVA a debito per le gestioni commerciali;17/02/2020
325;1;9999999;843,31;843,31;ENI SPA DIVISIONE REFINING & MARKETING;Z992594BB1;Fatt.n. 19899204  del 16/01/2020 ACQUISTO BENZINA E GASOLIO - CONVENZIONE CONSIP RETE BUONI ACQUISTO 7 -;11/02/2020;121;7;19;1;Spese correnti;3;Acquisto di beni e servizi;1;Acquisto di beni;2;Altri beni di consumo;2;Carburanti, combustibili e lubrificanti;13/02/2020
326;1;9999999;1.350,00;1.350,00;ENI SPA DIVISIONE REFINING & MARKETING;Z992594BB1;Fatt.n. 19899204  del 16/01/2020 ACQUISTO BENZINA E GASOLIO - CONVENZIONE CONSIP RETE BUONI ACQUISTO 7 -;11/02/2020;521;0;21;1;Spese correnti;3;Acquisto di beni e servizi;1;Acquisto di beni;2;Altri beni di consumo;2;Carburanti, combustibili e lubrificanti;13/02/2020
327;1;9999999;157,58;157,58;VENETO STRADE SPA; ;Fatt.n. 11  del 03/02/2020 SPESE DI SOPRALLUOGO - REALIZZAZIONE PISTA - CICLO-PEDONALE - SR 515 VIA NOALESE SMS;11/02/2020;549;0;88;1;Spese correnti;3;Acquisto di beni e servizi;2;Acquisto di servizi;99;Altri servizi;999;Altri servizi diversi n.a.c.;13/02/2020
328;1;9999999;1.500,00;1.500,00;ENI SPA DIVISIONE REFINING & MARKETING;Z992594BB1;Fatt.n. 19899204  del 16/01/2020 ACQUISTO BENZINA E GASOLIO - CONVENZIONE CONSIP RETE BUONI ACQUISTO 7 -;11/02/2020;1121;7;20;1;Spese correnti;3;Acquisto di beni e servizi;1;Acquisto di beni;2;Altri beni di consumo;2;Carburanti, combustibili e lubrificanti;13/02/2020
329;1;9999999;2.500,00;2.500,00;ENI SPA DIVISIONE REFINING & MARKETING;Z992594BB1;Fatt.n. 19899204  del 16/01/2020 ACQUISTO BENZINA E GASOLIO - CONVENZIONE CONSIP RETE BUONI ACQUISTO 7 -;11/02/2020;3521;0;22;1;Spese correnti;3;Acquisto di beni e servizi;1;Acquisto di beni;2;Altri beni di consumo;2;Carburanti, combustibili e lubrificanti;13/02/2020
330;1;9999999;527,65;527,65;SUPERBETON SPA;Z322817B71;Fatt.n. VP/1367  del 31/12/2019 FORNITURA ASFALTO LIMENA;11/02/2020;3538;0;499;1;Spese correnti;3;Acquisto di beni e servizi;2;Acquisto di servizi;9;Manutenzione ordinaria e riparazioni;8;Manutenzione ordinaria e riparazioni di beni immobili;13/02/2020
331;1;9999999;3.650,00;3.650,00;ENI SPA DIVISIONE REFINING & MARKETING;Z992594BB1;Fatt.n. 19899204  del 16/01/2020 ACQUISTO BENZINA E GASOLIO - CONVENZIONE CONSIP RETE BUONI ACQUISTO 7 -;11/02/2020;4121;0;23;1;Spese correnti;3;Acquisto di beni e servizi;1;Acquisto di beni;2;Altri beni di consumo;2;Carburanti, combustibili e lubrificanti;13/02/2020
332;1;9999999;11.511,58;11.511,58;BADO S.R.L.;Z3D2B301E8;Fatt.n. 1/14  del 05/02/2020 SOSTITUZIONE POLTRONCINE TEATRO COMUNALE;11/02/2020;7450;5;1387;2;Spese in conto capitale;2;Investimenti fissi lordi e acquisto di terreni;1;Beni materiali;99;Altri beni materiali;999;Altri beni materiali diversi;13/02/2020
333;1;9999999;12.442,49;12.442,49;MOBILFERRO SRL;Z222B481D6;Fatt.n. 215  del 30/01/2020 FORNITURA ARMADI METALLICI PER SCUOLA MEDIA SMS - PRIMA TRANCHE;11/02/2020;7581;0;1351;2;Spese in conto capitale;2;Investimenti fissi lordi e acquisto di terreni;1;Beni materiali;5;Attrezzature;999;Attrezzature n.a.c.;13/02/2020
334;1;9999999;89,6;89,6;GOTTARDO DINO & C.SNC;ZA82A22068;Fatt.n. 01/20/E  del 31/01/2020 LAVORI PER OPERE DA FABBRO O ASSIMILABILI NEI FABBRICATI COMUNALI - SALDO LAVORI ANNO 2019;11/02/2020;7681;0;1071;2;Spese in conto capitale;2;Investimenti fissi lordi e acquisto di terreni;1;Beni materiali;9;Beni immobili;3;Fabbricati ad uso scolastico;13/02/2020
335;1;9999999;4.905,50;4.905,50;GOTTARDO DINO & C.SNC;ZA82A22068;Fatt.n. 01/20/E  del 31/01/2020 LAVORI PER OPERE DA FABBRO O ASSIMILABILI NEI FABBRICATI COMUNALI - SALDO LAVORI ANNO 2019;11/02/2020;8469;0;1072;2;Spese in conto capitale;2;Investimenti fissi lordi e acquisto di terreni;1;Beni materiali;9;Beni immobili;16;Impianti sportivi;13/02/2020
336;1;9999999;335,5;335,5;BIBLIO SRL;Z552B1E628;Fatt.n. 3  del 16/01/2020 FORNITURA  DI ETICHETTE INTESTATE CON ADESIVO PER STAMPANTE LASER  PER LA BIBLIOTECA;11/02/2020;1820;0;1337;1;Spese correnti;3;Acquisto di beni e servizi;1;Acquisto di beni;1;Giornali, riviste e pubblicazioni;2;Pubblicazioni;13/02/2020
337;1;9999999;866,11;866,11;FALEGNAMERIA DAL CORSO SNC;Z342A0EDA1;Fatt.n. 3  del 15/01/2020 INTERVENTI DI FALEGNAMERIA SU FABBRICATI COMUNALI;11/02/2020;522;0;1067;1;Spese correnti;3;Acquisto di beni e servizi;1;Acquisto di beni;2;Altri beni di consumo;8;Strumenti tecnico-specialistici non sanitari;13/02/2020
338;1;9999999;5.500,00;5.500,00;FALEGNAMERIA DAL CORSO SNC;Z342A0EDA1;Fatt.n. 3  del 15/01/2020 INTERVENTI DI FALEGNAMERIA SU FABBRICATI COMUNALI;11/02/2020;548;0;1068;1;Spese correnti;3;Acquisto di beni e servizi;2;Acquisto di servizi;9;Manutenzione ordinaria e riparazioni;8;Manutenzione ordinaria e riparazioni di beni immobili;13/02/2020
339;1;9999999;5.000,00;5.000,00;FALEGNAMERIA DAL CORSO SNC;Z342A0EDA1;Fatt.n. 3  del 15/01/2020 INTERVENTI DI FALEGNAMERIA SU FABBRICATI COMUNALI;11/02/2020;1338;0;1069;1;Spese correnti;3;Acquisto di beni e servizi;2;Acquisto di servizi;9;Manutenzione ordinaria e riparazioni;8;Manutenzione ordinaria e riparazioni di beni immobili;13/02/2020
340;1;9999999;2.500,00;2.500,00;FALEGNAMERIA DAL CORSO SNC;Z342A0EDA1;Fatt.n. 3  del 15/01/2020 INTERVENTI DI FALEGNAMERIA SU FABBRICATI COMUNALI;11/02/2020;1938;0;1070;1;Spese correnti;3;Acquisto di beni e servizi;2;Acquisto di servizi;9;Manutenzione ordinaria e riparazioni;8;Manutenzione ordinaria e riparazioni di beni immobili;13/02/2020
341;1;9999999;7,05;7,05;ABACO S.P.A.;Z4B0FF1CA6;SALDO Fatt.n. 2020140000606  del 04/02/2020 AGGIO RISCOSSIONE COATTIVA CDS RENDICONTO DELLA GESTIONE AL 31/01/2020 CIG. Z4B0FF1CA6;11/02/2020;332;0;0;1;Spese correnti;3;Acquisto di beni e servizi;2;Acquisto di servizi;3;Aggi di riscossione;999;Altri aggi di riscossione n.a.c.;14/02/2020
342;1;9999999;14,57;14,57;ABACO S.P.A.;5325258DE8;SALDO Fatt.n. 2020140000607  del 04/02/2020 AGGIO RISCOSSIONE COATTIVA ICI IMU LOTTO 2 RENDICONTO DELLA GESTIONE AL 31/01/2020 ABACO SPA CIG. 5325258DE8;11/02/2020;332;0;0;1;Spese correnti;3;Acquisto di beni e servizi;2;Acquisto di servizi;3;Aggi di riscossione;999;Altri aggi di riscossione n.a.c.;14/02/2020
343;1;9999999;250,1;250,1;ABACO S.P.A.;5325258DE8;SALDO Fatt.n. 2020140000608  del 04/02/2020 AGGIO RISCOSSIONE COATTIVA ICI IMU E TASI LOTTO 5 RENDICONTO DELLA GESTIONE AL 31/01/2020 ABACO SPA CIG. 5325258DE8;11/02/2020;332;0;0;1;Spese correnti;3;Acquisto di beni e servizi;2;Acquisto di servizi;3;Aggi di riscossione;999;Altri aggi di riscossione n.a.c.;14/02/2020
344;1;9999999;66,83;66,83;ABACO S.P.A.;5325258DE8;SALDO Fatt.n. 2020140000609  del 04/02/2020 AGGIO RISCOSSIONE COATTIVA ICI IMU E TASI LOTTO 6 RENDICONTO DELLA GESTIONE AL 31/01/2020 ABACO SPA CIG. 5325258DE8;11/02/2020;332;0;0;1;Spese correnti;3;Acquisto di beni e servizi;2;Acquisto di servizi;3;Aggi di riscossione;999;Altri aggi di riscossione n.a.c.;14/02/2020
345;1;9999999;50,02;50,02;ABACO S.P.A.;5325258DE8;SALDO Fatt.n. 2020140000610  del 04/02/2020 AGGIO RISCOSSIONE COATTIVA ICI IMU E TASI LOTTO 8 RENDICONTO DELLA GESTIONE AL 31/01/2020 ABACO SPA CIG. 5325258DE8;11/02/2020;332;0;0;1;Spese correnti;3;Acquisto di beni e servizi;2;Acquisto di servizi;3;Aggi di riscossione;999;Altri aggi di riscossione n.a.c.;14/02/2020
346;1;9999999;69,22;69,22;ABACO S.P.A.;766214493F;SALDO Fatt.n. 2020120000770  del 06/02/2020 AGGIO RISCOSSIONE ICP CONTO ABACO SPA RENDICONTO DELLA GESTIONE AL 31/01/2020 CIG.766214493F;11/02/2020;332;0;1228;1;Spese correnti;3;Acquisto di beni e servizi;2;Acquisto di servizi;3;Aggi di riscossione;999;Altri aggi di riscossione n.a.c.;14/02/2020
347;1;9999999;150;150;OMESSO NOMINATIVO NEL RISPETTO DELLA NORMATIVA SULLA PROTEZIONE DATI PERSONALI; ;FEBBRAIO 2020 MINIMO VITALE;11/02/2020;4157;0;33;1;Spese correnti;4;Trasferimenti correnti;2;Trasferimenti correnti a Famiglie;2;Interventi assistenziali;999;Altri assegni e sussidi assistenziali;27/02/2020
348;1;9999999;200;200;OMESSO NOMINATIVO NEL RISPETTO DELLA NORMATIVA SULLA PROTEZIONE DATI PERSONALI; ;FEBBRAIO 2020 MINIMO VITALE;11/02/2020;4157;0;34;1;Spese correnti;4;Trasferimenti correnti;2;Trasferimenti correnti a Famiglie;2;Interventi assistenziali;999;Altri assegni e sussidi assistenziali;14/02/2020
349;1;9999999;130;130;OMESSO NOMINATIVO NEL RISPETTO DELLA NORMATIVA SULLA PROTEZIONE DATI PERSONALI; ;FEBBRAIO 2020 MINIMO VITALE;11/02/2020;4157;0;32;1;Spese correnti;4;Trasferimenti correnti;2;Trasferimenti correnti a Famiglie;2;Interventi assistenziali;999;Altri assegni e sussidi assistenziali;24/02/2020
350;1;9999999;250;250;OMESSO NOMINATIVO NEL RISPETTO DELLA NORMATIVA SULLA PROTEZIONE DATI PERSONALI; ;FEBBRAIO 2020 MINIMO VITALE;11/02/2020;4157;0;35;1;Spese correnti;4;Trasferimenti correnti;2;Trasferimenti correnti a Famiglie;2;Interventi assistenziali;999;Altri assegni e sussidi assistenziali;14/02/2020
351;1;9999999;100;100;OMESSO NOMINATIVO NEL RISPETTO DELLA NORMATIVA SULLA PROTEZIONE DATI PERSONALI; ;FEBBRAIO 2020 MINIMO VITALE;11/02/2020;4157;0;1077;1;Spese correnti;4;Trasferimenti correnti;2;Trasferimenti correnti a Famiglie;2;Interventi assistenziali;999;Altri assegni e sussidi assistenziali;21/02/2020
352;1;9999999;250;250;OMESSO NOMINATIVO NEL RISPETTO DELLA NORMATIVA SULLA PROTEZIONE DATI PERSONALI; ;FEBBRAIO 2020 MINIMO VITALE;11/02/2020;4157;0;1079;1;Spese correnti;4;Trasferimenti correnti;2;Trasferimenti correnti a Famiglie;2;Interventi assistenziali;999;Altri assegni e sussidi assistenziali;26/02/2020
353;1;9999999;600;600;OMESSO NOMINATIVO NEL RISPETTO DELLA NORMATIVA SULLA PROTEZIONE DATI PERSONALI; ;FEBBRAIO 2020 MINIMO VITALE;11/02/2020;4157;0;31;1;Spese correnti;4;Trasferimenti correnti;2;Trasferimenti correnti a Famiglie;2;Interventi assistenziali;999;Altri assegni e sussidi assistenziali;13/02/2020
354;1;9999999;56,13;56,13;C/C/P 1039683022 ICP - PUBB.AFFISSIONI; ;SPESE GESTIONE  ICP E DPA CONTO ENTE RENDICONTO GENNAIO 2020;11/02/2020;146;0;0;1;Spese correnti;3;Acquisto di beni e servizi;2;Acquisto di servizi;17;Servizi finanziari;999;Spese per servizi finanziari n.a.c.;13/02/2020
355;1;9999999;200;200;OMESSO NOMINATIVO NEL RISPETTO DELLA NORMATIVA SULLA PROTEZIONE DATI PERSONALI; ;GENNAIO 2020 PROGETTO RIA;11/02/2020;3957;54;1099;1;Spese correnti;4;Trasferimenti correnti;2;Trasferimenti correnti a Famiglie;5;Altri trasferimenti a famiglie;999;Altri trasferimenti a famiglie n.a.c.;13/02/2020
356;1;9999999;200;200;OMESSO NOMINATIVO NEL RISPETTO DELLA NORMATIVA SULLA PROTEZIONE DATI PERSONALI; ;GENNAIO 2020 PROGETTI RIA;11/02/2020;3957;54;1099;1;Spese correnti;4;Trasferimenti correnti;2;Trasferimenti correnti a Famiglie;5;Altri trasferimenti a famiglie;999;Altri trasferimenti a famiglie n.a.c.;13/02/2020
357;1;9999999;200;200;OMESSO NOMINATIVO NEL RISPETTO DELLA NORMATIVA SULLA PROTEZIONE DATI PERSONALI; ;GENNAIO 2020 PROGETTI RIA;11/02/2020;3957;54;1099;1;Spese correnti;4;Trasferimenti correnti;2;Trasferimenti correnti a Famiglie;5;Altri trasferimenti a famiglie;999;Altri trasferimenti a famiglie n.a.c.;18/02/2020
358;1;9999999;200;200;OMESSO NOMINATIVO NEL RISPETTO DELLA NORMATIVA SULLA PROTEZIONE DATI PERSONALI; ;GENNAIO 2020 PROGETTI RIA;11/02/2020;3957;54;1099;1;Spese correnti;4;Trasferimenti correnti;2;Trasferimenti correnti a Famiglie;5;Altri trasferimenti a famiglie;999;Altri trasferimenti a famiglie n.a.c.;13/02/2020
359;1;9999999;200;200;OMESSO NOMINATIVO NEL RISPETTO DELLA NORMATIVA SULLA PROTEZIONE DATI PERSONALI; ;GENNAIO 2020 PROGETTI RIA;11/02/2020;3957;54;1099;1;Spese correnti;4;Trasferimenti correnti;2;Trasferimenti correnti a Famiglie;5;Altri trasferimenti a famiglie;999;Altri trasferimenti a famiglie n.a.c.;19/02/2020
360;1;9999999;200;200;OMESSO NOMINATIVO NEL RISPETTO DELLA NORMATIVA SULLA PROTEZIONE DATI PERSONALI; ;GENNAIO 2020 PROGETTI RIA;11/02/2020;3957;54;1099;1;Spese correnti;4;Trasferimenti correnti;2;Trasferimenti correnti a Famiglie;5;Altri trasferimenti a famiglie;999;Altri trasferimenti a famiglie n.a.c.;13/02/2020
361;1;9999999;200;200;OMESSO NOMINATIVO NEL RISPETTO DELLA NORMATIVA SULLA PROTEZIONE DATI PERSONALI; ;GENNAIO 2020 PROGETTI RIA;11/02/2020;3957;54;1099;1;Spese correnti;4;Trasferimenti correnti;2;Trasferimenti correnti a Famiglie;5;Altri trasferimenti a famiglie;999;Altri trasferimenti a famiglie n.a.c.;13/02/2020
362;1;9999999;200;200;OMESSO NOMINATIVO NEL RISPETTO DELLA NORMATIVA SULLA PROTEZIONE DATI PERSONALI; ;GENNAIO 2020 PROGETTI RIA;11/02/2020;3957;54;1099;1;Spese correnti;4;Trasferimenti correnti;2;Trasferimenti correnti a Famiglie;5;Altri trasferimenti a famiglie;999;Altri trasferimenti a famiglie n.a.c.;13/02/2020
363;1;9999999;200;200;OMESSO NOMINATIVO NEL RISPETTO DELLA NORMATIVA SULLA PROTEZIONE DATI PERSONALI; ;GENNAIO 2020 PROGETTI RIA;11/02/2020;3957;54;1099;1;Spese correnti;4;Trasferimenti correnti;2;Trasferimenti correnti a Famiglie;5;Altri trasferimenti a famiglie;999;Altri trasferimenti a famiglie n.a.c.;13/02/2020
364;1;9999999;1.968,02;1.968,02;FORNITECNICA S.R.L.;Z88269EF2B;Fatt.n. 000026PA20  del 17/01/2020 COSTO COPIA PERIODO GENNAIO - MARZO 2020;11/02/2020;748;0;18;1;Spese correnti;3;Acquisto di beni e servizi;2;Acquisto di servizi;19;Servizi informatici e di telecomunicazioni;5;Servizi per i sistemi e relativa manutenzione;13/02/2020
365;1;9999999;292,79;664,56;CONVERGE SPA;Z9D1FAB040;Fatt.n. 20300889  del 31/01/2020 NOLEGGIO APPARECCHIATURE MULTIFUNZIONE - PERIODO 01.11-31.01.2020;11/02/2020;748;0;534;1;Spese correnti;3;Acquisto di beni e servizi;2;Acquisto di servizi;19;Servizi informatici e di telecomunicazioni;9;Servizi per le postazioni di lavoro e relativa manutenzione;13/02/2020
365;2;9999999;371,77;664,56;CONVERGE SPA;Z9D1FAB040;Fatt.n. 20300627  del 21/01/2020 NOLEGGIO APPARECCHIATURE MULTIFUNZIONE PER UTC;11/02/2020;748;0;534;1;Spese correnti;3;Acquisto di beni e servizi;2;Acquisto di servizi;19;Servizi informatici e di telecomunicazioni;9;Servizi per le postazioni di lavoro e relativa manutenzione;13/02/2020
366;1;9999999;4.148,00;4.148,00;ACCATRE SRL;ZDB25C4D80;Fatt.n. 200020/1  del 13/01/2020 SERVIZI DI CONSERVAZIONE DOCUMENTALE E SUPPORTO ALLA REDAZIONE STATO PATRIMONIALE;11/02/2020;748;0;1244;1;Spese correnti;3;Acquisto di beni e servizi;2;Acquisto di servizi;19;Servizi informatici e di telecomunicazioni;7;Servizi di gestione documentale;13/02/2020
367;1;9999999;2.869,44;2.869,44;TREXOM SRL;Z272B8EBB4;Fatt.n. 6/2/2020  del 31/01/2020 CONTRATTO DI MANUTENZIONE HW. E SW. TRIENNIO 2020 - 2021 - 2022;11/02/2020;748;0;59;1;Spese correnti;3;Acquisto di beni e servizi;2;Acquisto di servizi;19;Servizi informatici e di telecomunicazioni;5;Servizi per i sistemi e relativa manutenzione;13/02/2020
368;1;9999999;187,38;187,38;ARUBA SPA;ZF12B8EA43;Fatt.n. 20PAS0000202  del 31/01/2020 SERVIZI DI HOSTING WEB;11/02/2020;748;0;60;1;Spese correnti;3;Acquisto di beni e servizi;2;Acquisto di servizi;19;Servizi informatici e di telecomunicazioni;3;Servizi per l'interoperabilità e la cooperazione;13/02/2020
369;1;9999999;4.755,56;4.755,56;DATAPIANO SRL;ZC52B8ED1C;Fatt.n. S-7  del 31/01/2020 CONTRATTO DI MANUTENZIONE ED ASSISTENZA SOFTWARE DI GESTIONE UFFICIO TECNICO EDILIZIA PRIVATA 2020;11/02/2020;748;0;68;1;Spese correnti;3;Acquisto di beni e servizi;2;Acquisto di servizi;19;Servizi informatici e di telecomunicazioni;1;Gestione e manutenzione applicazioni;13/02/2020
370;1;9999999;507,52;507,52;NE-T BY TELERETE NORDEST SRL;Z4E2BB06B0;Fatt.n. IT  000035  del 31/01/2020 CASELLA PEC MASSIVA - CANONE ANNO 2020;11/02/2020;748;0;81;1;Spese correnti;3;Acquisto di beni e servizi;2;Acquisto di servizi;19;Servizi informatici e di telecomunicazioni;3;Servizi per l'interoperabilità e la cooperazione;13/02/2020
371;1;9999999;1.808,60;1.808,60;INFOCLIP SRL;ZE52B9E9DF;ACQUISTO DI QUOTIDIANI E RIVISTE PER IL RINNOVO E LAGGIORNAMENTO DEL PATRIMONIO LIBRARIO E DOCUMENTI;13/02/2020;1820;0;85;1;Spese correnti;3;Acquisto di beni e servizi;1;Acquisto di beni;1;Giornali, riviste e pubblicazioni;1;Giornali e riviste;14/02/2020
372;1;9999999;1.600,00;1.600,00;ASSOCIAZIONE CULTURALE CREATIVITA'; ;CONTRIBUTO PER ATTIVITA IN OCCASIONE DELLA COMMEMORAZIONE DELLA GIORNATA DELLA MEMORIA 27 GENNAIO 2020;13/02/2020;1859;0;84;1;Spese correnti;4;Trasferimenti correnti;4;Trasferimenti correnti a Istituzioni Sociali Private;1;Trasferimenti correnti a Istituzioni Sociali Private;1;Trasferimenti correnti a Istituzioni Sociali Private;14/02/2020
373;1;9999999;16.165,00;16.165,00;HALLEY VENETO SRL;Z01280AB1F;Fatt.n. 1/200080  del 21/01/2020 CANONE DI MANUTENZIONE SOFTWARE APPLICATIVO - ASSISTENZA IMMEDIA  ANNO 2020;13/02/2020;748;0;558;1;Spese correnti;3;Acquisto di beni e servizi;2;Acquisto di servizi;19;Servizi informatici e di telecomunicazioni;1;Gestione e manutenzione applicazioni;14/02/2020
374;1;9999999;500;500;LABS LABORATORIO SOLIDALE ONLUS; ;SALDO MANIFESTAZIONI SOCIO CULTURALI 2019;13/02/2020;4059;0;176;1;Spese correnti;4;Trasferimenti correnti;4;Trasferimenti correnti a Istituzioni Sociali Private;1;Trasferimenti correnti a Istituzioni Sociali Private;1;Trasferimenti correnti a Istituzioni Sociali Private;14/02/2020
375;1;9999999;509,6;509,6;MY CONSTRUCTION SRL;7,86E+13;Fatt.n. 002042000017  del 04/02/2020  LAVORI DI CONSOLIDAMENTO E RESTAURO DEI CORNICIONI MARCAPIANODI VILLA FARSETTI - CERTIFICATO DI PAGAMENTO N. 3 FINALE;13/02/2020;7450;4;401;2;Spese in conto capitale;2;Investimenti fissi lordi e acquisto di terreni;1;Beni materiali;10;Beni immobili di valore culturale, storico ed artistico;999;Beni immobili di valore culturale, storico ed artistico n.a.c.;14/02/2020
376;1;9999999;25,19;1.198,63;ENEL ENERGIA SPA;77999756FD;Fatt.n. 004000070687  del 08/01/2020 DICEMBRE 2019 - CONSUMI PARCHEGGIO C.C PRISMA;13/02/2020;134;31;1158;1;Spese correnti;3;Acquisto di beni e servizi;2;Acquisto di servizi;5;Utenze e canoni;4;Energia elettrica;14/02/2020
376;2;9999999;55,71;1.198,63;ENEL ENERGIA SPA;77999756FD;Fatt.n. 004000070679  del 08/01/2020 DICEMBRE 2019 - CONSUMI ALLOGGIO VIA DON GALLERANI;13/02/2020;134;31;1158;1;Spese correnti;3;Acquisto di beni e servizi;2;Acquisto di servizi;5;Utenze e canoni;4;Energia elettrica;14/02/2020
376;3;9999999;91,3;1.198,63;ENEL ENERGIA SPA;77999756FD;Fatt.n. 004000070652  del 08/01/2020 DICEMBRE 2019 - CONSUMI MERCATO CALTANA;13/02/2020;134;31;1158;1;Spese correnti;3;Acquisto di beni e servizi;2;Acquisto di servizi;5;Utenze e canoni;4;Energia elettrica;14/02/2020
376;4;9999999;114,14;1.198,63;ENEL ENERGIA SPA;77999756FD;Fatt.n. 004000070612  del 08/01/2020 DICEMBRE 2019 - CONSUMI FONTANA VETERNIGO;13/02/2020;134;31;1158;1;Spese correnti;3;Acquisto di beni e servizi;2;Acquisto di servizi;5;Utenze e canoni;4;Energia elettrica;14/02/2020
376;5;9999999;133,07;1.198,63;ENEL ENERGIA SPA;77999756FD;Fatt.n. 004000070562  del 08/01/2020 DICEMBRE 2019 - CONSUMI PARCHEGGIO SMS;13/02/2020;134;31;1158;1;Spese correnti;3;Acquisto di beni e servizi;2;Acquisto di servizi;5;Utenze e canoni;4;Energia elettrica;14/02/2020
376;6;9999999;138,38;1.198,63;ENEL ENERGIA SPA;77999756FD;Fatt.n. 004000070658  del 08/01/2020 DICEMBRE 2019 - CONSUMI MERCATO SMS;13/02/2020;134;31;1158;1;Spese correnti;3;Acquisto di beni e servizi;2;Acquisto di servizi;5;Utenze e canoni;4;Energia elettrica;14/02/2020
376;7;9999999;147,63;1.198,63;ENEL ENERGIA SPA;77999756FD;Fatt.n. 004000070650  del 08/01/2020 DICEMBRE 2019 - CONSUMI MERCATO CASELLE;13/02/2020;134;31;1158;1;Spese correnti;3;Acquisto di beni e servizi;2;Acquisto di servizi;5;Utenze e canoni;4;Energia elettrica;14/02/2020
376;8;9999999;220,88;1.198,63;ENEL ENERGIA SPA;77999756FD;Fatt.n. 004000070615  del 08/01/2020 DICEMBRE 2019 - CONSUMI P.ZZA S.D.A. CALTANA;13/02/2020;134;31;1158;1;Spese correnti;3;Acquisto di beni e servizi;2;Acquisto di servizi;5;Utenze e canoni;4;Energia elettrica;14/02/2020
376;9;9999999;272,33;1.198,63;ENEL ENERGIA SPA;77999756FD;Fatt.n. 004000070561  del 08/01/2020 DICEMBRE 2019 - CONSUMI ALLOGGIO VIA OLIMPIA SMS;13/02/2020;134;31;1158;1;Spese correnti;3;Acquisto di beni e servizi;2;Acquisto di servizi;5;Utenze e canoni;4;Energia elettrica;14/02/2020
377;1;9999999;240;240;ENEL ENERGIA SPA;77999756FD;Fatt.n. 004000070694  del 08/01/2020 DICEMBRE 2019 - CONSUMI  MEDICINA DI GRUPPO - SEDE MUNICIPALE;13/02/2020;134;31;1158;1;Spese correnti;3;Acquisto di beni e servizi;2;Acquisto di servizi;5;Utenze e canoni;4;Energia elettrica;14/02/2020
378;1;9999999;957,72;957,72;ENEL ENERGIA SPA;77999756FD;Fatt.n. 004000070694  del 08/01/2020 DICEMBRE 2019 - CONSUMI  MEDICINA DI GRUPPO - SEDE MUNICIPALE;13/02/2020;134;31;1158;1;Spese correnti;3;Acquisto di beni e servizi;2;Acquisto di servizi;5;Utenze e canoni;4;Energia elettrica;14/02/2020
379;1;9999999;43,25;43,25;ENEL ENERGIA SPA;77999756FD;Fatt.n. 004000070680  del 08/01/2020 DICEMBRE 2019 - CONSUMI CIMITERO CALTANA - LAMPADE VOTIVE;13/02/2020;134;31;1158;1;Spese correnti;3;Acquisto di beni e servizi;2;Acquisto di servizi;5;Utenze e canoni;4;Energia elettrica;14/02/2020
380;1;9999999;8,26;8,26;ENEL ENERGIA SPA;77999756FD;Fatt.n. 004000070609  del 08/01/2020 DICEMBRE 2019 - CONSUMI CIMITERO SMS - LAMPADE VOTIVE;13/02/2020;134;31;1158;1;Spese correnti;3;Acquisto di beni e servizi;2;Acquisto di servizi;5;Utenze e canoni;4;Energia elettrica;14/02/2020
381;1;9999999;10,31;10,31;ENEL ENERGIA SPA;77999756FD;Fatt.n. 004000070567  del 08/01/2020 DICEMBRE 2019 - CONSUMI CIMITERO S.ANGELO - LAMPADE VOTIVE;13/02/2020;134;31;1158;1;Spese correnti;3;Acquisto di beni e servizi;2;Acquisto di servizi;5;Utenze e canoni;4;Energia elettrica;14/02/2020
382;1;9999999;8,61;8,61;ENEL ENERGIA SPA;77999756FD;Fatt.n. 004000070597  del 08/01/2020 DICEMBRE 2019 - CONSUMI  CIMITERO VETERNIGO - LAMPADE VOTIVE;13/02/2020;134;31;1158;1;Spese correnti;3;Acquisto di beni e servizi;2;Acquisto di servizi;5;Utenze e canoni;4;Energia elettrica;14/02/2020
383;1;9999999;13,22;13,22;ENEL ENERGIA SPA;77999756FD;Fatt.n. 004000070617  del 08/01/2020 DICEMBRE 2019 - CONSUMI CIMITERO CASELLE - LAMPADE VOTIVE;13/02/2020;134;31;1158;1;Spese correnti;3;Acquisto di beni e servizi;2;Acquisto di servizi;5;Utenze e canoni;4;Energia elettrica;14/02/2020
384;1;9999999;301,26;301,26;ENEL ENERGIA SPA;77999756FD;Fatt.n. 004006599380  del 14/01/2020 DICEMBRE 2019 - CONSUMI  PALESTRA SMS;13/02/2020;134;31;1158;1;Spese correnti;3;Acquisto di beni e servizi;2;Acquisto di servizi;5;Utenze e canoni;4;Energia elettrica;14/02/2020
385;1;9999999;301,25;301,25;ENEL ENERGIA SPA;77999756FD;Fatt.n. 004006599380  del 14/01/2020 DICEMBRE 2019 - CONSUMI  PALESTRA SMS;13/02/2020;134;31;1158;1;Spese correnti;3;Acquisto di beni e servizi;2;Acquisto di servizi;5;Utenze e canoni;4;Energia elettrica;14/02/2020
386;1;9999999;237,24;237,24;ENEL ENERGIA SPA;77999756FD;Fatt.n. 004000070667  del 08/01/2020 DICEMBRE 2019 - CONSUMI SCUOLA MEDIA SMS;13/02/2020;134;31;1158;1;Spese correnti;3;Acquisto di beni e servizi;2;Acquisto di servizi;5;Utenze e canoni;4;Energia elettrica;14/02/2020
387;1;9999999;1.358,81;1.358,81;ENEL ENERGIA SPA;77999756FD;Fatt.n. 004000070667  del 08/01/2020 DICEMBRE 2019 - CONSUMI SCUOLA MEDIA SMS;13/02/2020;1334;30;117;1;Spese correnti;3;Acquisto di beni e servizi;2;Acquisto di servizi;5;Utenze e canoni;4;Energia elettrica;14/02/2020
388;1;9999999;190,47;190,47;ENEL ENERGIA SPA;77999756FD;Fatt.n. 004000070676  del 08/01/2020 DICEMBRE 2019 - CONSUMI PALESTRA CASELLE;13/02/2020;1334;30;117;1;Spese correnti;3;Acquisto di beni e servizi;2;Acquisto di servizi;5;Utenze e canoni;4;Energia elettrica;14/02/2020
389;1;9999999;233;233;ENEL ENERGIA SPA;77999756FD;Fatt.n. 004000070583  del 08/01/2020 DICEMBRE 2019 - CONSUMI ILLUMINAZIONE PUBBLICA;13/02/2020;1334;30;117;1;Spese correnti;3;Acquisto di beni e servizi;2;Acquisto di servizi;5;Utenze e canoni;4;Energia elettrica;14/02/2020
390;1;9999999;569,23;569,23;ENEL ENERGIA SPA;77999756FD;Fatt.n. 004000070583  del 08/01/2020 DICEMBRE 2019 - CONSUMI ILLUMINAZIONE PUBBLICA;13/02/2020;1334;30;117;1;Spese correnti;3;Acquisto di beni e servizi;2;Acquisto di servizi;5;Utenze e canoni;4;Energia elettrica;14/02/2020
391;1;9999999;250;250;ENEL ENERGIA SPA;77999756FD;Fatt.n. 004000070636  del 08/01/2020 DICEMBRE 2019 - CONSUMI SC. ELEM-PALESTRA STIGLIANO;13/02/2020;1334;30;117;1;Spese correnti;3;Acquisto di beni e servizi;2;Acquisto di servizi;5;Utenze e canoni;4;Energia elettrica;14/02/2020
392;1;9999999;219,35;219,35;ENEL ENERGIA SPA;77999756FD;Fatt.n. 004000070636  del 08/01/2020 DICEMBRE 2019 - CONSUMI SC. ELEM-PALESTRA STIGLIANO;13/02/2020;1334;30;117;1;Spese correnti;3;Acquisto di beni e servizi;2;Acquisto di servizi;5;Utenze e canoni;4;Energia elettrica;14/02/2020
393;1;9999999;517,77;517,77;ENEL ENERGIA SPA;77999756FD;Fatt.n. 004000070643  del 08/01/2020 DICEMBRE 2019 - CONSUMI PALESTRA CALTANA;13/02/2020;1334;30;117;1;Spese correnti;3;Acquisto di beni e servizi;2;Acquisto di servizi;5;Utenze e canoni;4;Energia elettrica;14/02/2020
394;1;9999999;285;285;ENEL ENERGIA SPA;77999756FD;Fatt.n. 004000070633  del 08/01/2020 DICEMBRE 2019 - CONSUMI  SC. ELEM-PALESTRA - ASILO S.ANGELO;13/02/2020;1334;30;117;1;Spese correnti;3;Acquisto di beni e servizi;2;Acquisto di servizi;5;Utenze e canoni;4;Energia elettrica;14/02/2020
395;1;9999999;874,35;874,35;ENEL ENERGIA SPA;77999756FD;Fatt.n. 004000070633  del 08/01/2020 DICEMBRE 2019 - CONSUMI  SC. ELEM-PALESTRA - ASILO S.ANGELO;13/02/2020;1334;30;117;1;Spese correnti;3;Acquisto di beni e servizi;2;Acquisto di servizi;5;Utenze e canoni;4;Energia elettrica;14/02/2020
396;1;9999999;75,02;75,02;ENEL ENERGIA SPA;77999756FD;Fatt.n. 004000070638  del 08/01/2020 DICEMBRE 2019 - CONSUMI IMP.SPORT. SMS;13/02/2020;1334;30;1159;1;Spese correnti;3;Acquisto di beni e servizi;2;Acquisto di servizi;5;Utenze e canoni;4;Energia elettrica;14/02/2020
397;1;9999999;121,49;121,49;ENEL ENERGIA SPA;77999756FD;Fatt.n. 004000070565  del 08/01/2020 DICEMBRE 2019 - CONSUMI  IMP. SPORT. CASELLE;13/02/2020;1334;30;1159;1;Spese correnti;3;Acquisto di beni e servizi;2;Acquisto di servizi;5;Utenze e canoni;4;Energia elettrica;14/02/2020
398;1;9999999;500;500;ENEL ENERGIA SPA;77999756FD;Fatt.n. 004000070667  del 08/01/2020 DICEMBRE 2019 - CONSUMI SCUOLA MEDIA SMS;13/02/2020;1834;0;1160;1;Spese correnti;3;Acquisto di beni e servizi;2;Acquisto di servizi;5;Utenze e canoni;4;Energia elettrica;14/02/2020
399;1;9999999;190,46;190,46;ENEL ENERGIA SPA;77999756FD;Fatt.n. 004000070676  del 08/01/2020 DICEMBRE 2019 - CONSUMI PALESTRA CASELLE;13/02/2020;1934;0;119;1;Spese correnti;3;Acquisto di beni e servizi;2;Acquisto di servizi;5;Utenze e canoni;4;Energia elettrica;14/02/2020
400;1;9999999;233;233;ENEL ENERGIA SPA;77999756FD;Fatt.n. 004000070583  del 08/01/2020 DICEMBRE 2019 - CONSUMI ILLUMINAZIONE PUBBLICA;13/02/2020;1934;0;119;1;Spese correnti;3;Acquisto di beni e servizi;2;Acquisto di servizi;5;Utenze e canoni;4;Energia elettrica;14/02/2020
401;1;9999999;250;250;ENEL ENERGIA SPA;77999756FD;Fatt.n. 004000070636  del 08/01/2020 DICEMBRE 2019 - CONSUMI SC. ELEM-PALESTRA STIGLIANO;13/02/2020;1934;0;119;1;Spese correnti;3;Acquisto di beni e servizi;2;Acquisto di servizi;5;Utenze e canoni;4;Energia elettrica;14/02/2020
402;1;9999999;517,78;517,78;ENEL ENERGIA SPA;77999756FD;Fatt.n. 004000070643  del 08/01/2020 DICEMBRE 2019 - CONSUMI PALESTRA CALTANA;13/02/2020;1934;0;119;1;Spese correnti;3;Acquisto di beni e servizi;2;Acquisto di servizi;5;Utenze e canoni;4;Energia elettrica;14/02/2020
403;1;9999999;285;285;ENEL ENERGIA SPA;77999756FD;Fatt.n. 004000070633  del 08/01/2020 DICEMBRE 2019 - CONSUMI  SC. ELEM-PALESTRA - ASILO S.ANGELO;13/02/2020;1934;0;119;1;Spese correnti;3;Acquisto di beni e servizi;2;Acquisto di servizi;5;Utenze e canoni;4;Energia elettrica;14/02/2020
404;1;9999999;194,2;194,2;ENEL ENERGIA SPA;77999756FD;Fatt.n. 004000070638  del 08/01/2020 DICEMBRE 2019 - CONSUMI IMP.SPORT. SMS;13/02/2020;1934;0;1161;1;Spese correnti;3;Acquisto di beni e servizi;2;Acquisto di servizi;5;Utenze e canoni;4;Energia elettrica;14/02/2020
405;1;9999999;32,17;437,72;ENEL ENERGIA SPA;77999756FD;Fatt.n. 004000070610  del 08/01/2020 DICEMBRE 2019 - CONSUMI  ECOCENTRO COMUNALE;13/02/2020;3534;0;1162;1;Spese correnti;3;Acquisto di beni e servizi;2;Acquisto di servizi;5;Utenze e canoni;4;Energia elettrica;14/02/2020
405;2;9999999;405,55;437,72;ENEL ENERGIA SPA;77999756FD;Fatt.n. 004000070696  del 08/01/2020 DICEMBRE 2019 - CONSUMI MAGAZZINO COMUNALE;13/02/2020;3534;0;1162;1;Spese correnti;3;Acquisto di beni e servizi;2;Acquisto di servizi;5;Utenze e canoni;4;Energia elettrica;14/02/2020
406;1;9999999;137,17;137,17;ENEL ENERGIA SPA;77999756FD;Fatt.n. 004000070565  del 08/01/2020 DICEMBRE 2019 - CONSUMI  IMP. SPORT. CASELLE;13/02/2020;3534;0;1162;1;Spese correnti;3;Acquisto di beni e servizi;2;Acquisto di servizi;5;Utenze e canoni;4;Energia elettrica;14/02/2020
407;1;9999999;78,87;78,87;ENEL ENERGIA SPA;77999756FD;Fatt.n. 004000070667  del 08/01/2020 DICEMBRE 2019 - CONSUMI SCUOLA MEDIA SMS;13/02/2020;3534;0;1162;1;Spese correnti;3;Acquisto di beni e servizi;2;Acquisto di servizi;5;Utenze e canoni;4;Energia elettrica;14/02/2020
408;1;9999999;174,87;174,87;ENEL ENERGIA SPA;77999756FD;Fatt.n. 004000070588  del 08/01/2020 DICEMBRE 2019 - CONSUMI ILLUMINAZIONE PUBBLICA;13/02/2020;3544;0;124;1;Spese correnti;3;Acquisto di beni e servizi;2;Acquisto di servizi;15;Contratti di servizio pubblico;15;Contratti di servizio per l'illuminazione pubblica;14/02/2020
409;1;9999999;19,87;1.780,23;ENEL ENERGIA SPA;77999756FD;Fatt.n. 004000070614  del 08/01/2020 DICEMBRE 2019 - CONSUMI ILLUMINAZIONE PUBBLICA;13/02/2020;3544;0;124;1;Spese correnti;3;Acquisto di beni e servizi;2;Acquisto di servizi;15;Contratti di servizio pubblico;15;Contratti di servizio per l'illuminazione pubblica;14/02/2020
409;2;9999999;28,07;1.780,23;ENEL ENERGIA SPA;77999756FD;Fatt.n. 004000070571  del 08/01/2020 DICEMBRE 2019 - CONSUMI ILLUMINAZIONE PUBBLICA;13/02/2020;3544;0;124;1;Spese correnti;3;Acquisto di beni e servizi;2;Acquisto di servizi;15;Contratti di servizio pubblico;15;Contratti di servizio per l'illuminazione pubblica;14/02/2020
409;3;9999999;70,08;1.780,23;ENEL ENERGIA SPA;77999756FD;Fatt.n. 004000070563  del 08/01/2020 DICEMBRE 2019 - CONSUMI ILLUMINAZIONE PUBBLICA;13/02/2020;3544;0;124;1;Spese correnti;3;Acquisto di beni e servizi;2;Acquisto di servizi;15;Contratti di servizio pubblico;15;Contratti di servizio per l'illuminazione pubblica;14/02/2020
409;4;9999999;149,16;1.780,23;ENEL ENERGIA SPA;77999756FD;Fatt.n. 004000070603  del 08/01/2020 DICEMBRE 2019 - CONSUMI ILLUMINAZIONE PUBBLICA;13/02/2020;3544;0;124;1;Spese correnti;3;Acquisto di beni e servizi;2;Acquisto di servizi;15;Contratti di servizio pubblico;15;Contratti di servizio per l'illuminazione pubblica;14/02/2020
409;5;9999999;223,17;1.780,23;ENEL ENERGIA SPA;77999756FD;Fatt.n. 004000070688  del 08/01/2020 DICEMBRE 2019 - CONSUMI ILLUMINAZIONE PUBBLICA;13/02/2020;3544;0;124;1;Spese correnti;3;Acquisto di beni e servizi;2;Acquisto di servizi;15;Contratti di servizio pubblico;15;Contratti di servizio per l'illuminazione pubblica;14/02/2020
409;6;9999999;233,97;1.780,23;ENEL ENERGIA SPA;77999756FD;Fatt.n. 004000070662  del 08/01/2020 DICEMBRE 2019 - CONSUMI ILLUMINAZIONE PUBBLICA;13/02/2020;3544;0;124;1;Spese correnti;3;Acquisto di beni e servizi;2;Acquisto di servizi;15;Contratti di servizio pubblico;15;Contratti di servizio per l'illuminazione pubblica;14/02/2020
409;7;9999999;307,76;1.780,23;ENEL ENERGIA SPA;77999756FD;Fatt.n. 004000070591  del 08/01/2020 DICEMBRE 2019 - CONSUMI ILLUMINAZIONE PUBBLICA;13/02/2020;3544;0;124;1;Spese correnti;3;Acquisto di beni e servizi;2;Acquisto di servizi;15;Contratti di servizio pubblico;15;Contratti di servizio per l'illuminazione pubblica;14/02/2020
409;8;9999999;326,87;1.780,23;ENEL ENERGIA SPA;77999756FD;Fatt.n. 004000070653  del 08/01/2020 DICEMBRE 2019 - CONSUMI ILLUMINAZIONE PUBBLICA;13/02/2020;3544;0;124;1;Spese correnti;3;Acquisto di beni e servizi;2;Acquisto di servizi;15;Contratti di servizio pubblico;15;Contratti di servizio per l'illuminazione pubblica;14/02/2020
409;9;9999999;421,28;1.780,23;ENEL ENERGIA SPA;77999756FD;Fatt.n. 004000070608  del 08/01/2020 DICEMBRE 2019 - CONSUMI ILLUMINAZIONE PUBBLICA;13/02/2020;3544;0;124;1;Spese correnti;3;Acquisto di beni e servizi;2;Acquisto di servizi;15;Contratti di servizio pubblico;15;Contratti di servizio per l'illuminazione pubblica;14/02/2020
410;1;9999999;19,03;2.002,91;ENEL ENERGIA SPA;77999756FD;Fatt.n. 004000070645  del 08/01/2020 DICEMBRE 2019 - CONSUMI ILLUMINAZIONE PUBBLICA;13/02/2020;3544;0;124;1;Spese correnti;3;Acquisto di beni e servizi;2;Acquisto di servizi;15;Contratti di servizio pubblico;15;Contratti di servizio per l'illuminazione pubblica;14/02/2020
410;2;9999999;36,99;2.002,91;ENEL ENERGIA SPA;77999756FD;Fatt.n. 004000070690  del 08/01/2020 DICEMBRE 2019 - CONSUMI ILLUMINAZIONE PUBBLICA;13/02/2020;3544;0;124;1;Spese correnti;3;Acquisto di beni e servizi;2;Acquisto di servizi;15;Contratti di servizio pubblico;15;Contratti di servizio per l'illuminazione pubblica;14/02/2020
410;3;9999999;53,27;2.002,91;ENEL ENERGIA SPA;77999756FD;Fatt.n. 004000070616  del 08/01/2020 DICEMBRE 2019 - CONSUMI ILLUMINAZIONE PUBBLICA;13/02/2020;3544;0;124;1;Spese correnti;3;Acquisto di beni e servizi;2;Acquisto di servizi;15;Contratti di servizio pubblico;15;Contratti di servizio per l'illuminazione pubblica;14/02/2020
410;4;9999999;64,55;2.002,91;ENEL ENERGIA SPA;77999756FD;Fatt.n. 004000070651  del 08/01/2020 DICEMBRE 2019 - CONSUMI ILLUMINAZIONE PUBBLICA;13/02/2020;3544;0;124;1;Spese correnti;3;Acquisto di beni e servizi;2;Acquisto di servizi;15;Contratti di servizio pubblico;15;Contratti di servizio per l'illuminazione pubblica;14/02/2020
410;5;9999999;115,2;2.002,91;ENEL ENERGIA SPA;77999756FD;Fatt.n. 004000070698  del 08/01/2020 DICEMBRE 2019 - CONSUMI ILLUMINAZIONE PUBBLICA;13/02/2020;3544;0;124;1;Spese correnti;3;Acquisto di beni e servizi;2;Acquisto di servizi;15;Contratti di servizio pubblico;15;Contratti di servizio per l'illuminazione pubblica;14/02/2020
410;6;9999999;155,23;2.002,91;ENEL ENERGIA SPA;77999756FD;Fatt.n. 004000070660  del 08/01/2020 DICEMBRE 2019 - CONSUMI ILLUMINAZIONE PUBBLICA;13/02/2020;3544;0;124;1;Spese correnti;3;Acquisto di beni e servizi;2;Acquisto di servizi;15;Contratti di servizio pubblico;15;Contratti di servizio per l'illuminazione pubblica;14/02/2020
410;7;9999999;191,48;2.002,91;ENEL ENERGIA SPA;77999756FD;Fatt.n. 004000070675  del 08/01/2020 DICEMBRE 2019 - CONSUMI ILLUMINAZIONE PUBBLICA;13/02/2020;3544;0;124;1;Spese correnti;3;Acquisto di beni e servizi;2;Acquisto di servizi;15;Contratti di servizio pubblico;15;Contratti di servizio per l'illuminazione pubblica;14/02/2020
410;8;9999999;393,61;2.002,91;ENEL ENERGIA SPA;77999756FD;Fatt.n. 004000070607  del 08/01/2020 DICEMBRE 2019 - CONSUMI ILLUMINAZIONE PUBBLICA;13/02/2020;3544;0;124;1;Spese correnti;3;Acquisto di beni e servizi;2;Acquisto di servizi;15;Contratti di servizio pubblico;15;Contratti di servizio per l'illuminazione pubblica;14/02/2020
410;9;9999999;481,84;2.002,91;ENEL ENERGIA SPA;77999756FD;Fatt.n. 004000070568  del 08/01/2020 DICEMBRE 2019 - CONSUMI ILLUMINAZIONE PUBBLICA;13/02/2020;3544;0;124;1;Spese correnti;3;Acquisto di beni e servizi;2;Acquisto di servizi;15;Contratti di servizio pubblico;15;Contratti di servizio per l'illuminazione pubblica;14/02/2020
410;10;9999999;491,71;2.002,91;ENEL ENERGIA SPA;77999756FD;Fatt.n. 004000070637  del 08/01/2020 DICEMBRE 2019 - CONSUMI ILLUMINAZIONE PUBBLICA;13/02/2020;3544;0;124;1;Spese correnti;3;Acquisto di beni e servizi;2;Acquisto di servizi;15;Contratti di servizio pubblico;15;Contratti di servizio per l'illuminazione pubblica;14/02/2020
411;1;9999999;14,2;3.418,97;ENEL ENERGIA SPA;77999756FD;Fatt.n. 004006887126  del 15/01/2020 DICEMBRE 2019 - CONSUMI ILLUMINAZIONE PUBBLICA;13/02/2020;3544;0;124;1;Spese correnti;3;Acquisto di beni e servizi;2;Acquisto di servizi;15;Contratti di servizio pubblico;15;Contratti di servizio per l'illuminazione pubblica;14/02/2020
411;2;9999999;68,63;3.418,97;ENEL ENERGIA SPA;77999756FD;Fatt.n. 004006887117  del 15/01/2020 DICEMBRE 2019 - CONSUMI ILLUMINAZIONE PUBBLICA;13/02/2020;3544;0;124;1;Spese correnti;3;Acquisto di beni e servizi;2;Acquisto di servizi;15;Contratti di servizio pubblico;15;Contratti di servizio per l'illuminazione pubblica;14/02/2020
411;3;9999999;68,63;3.418,97;ENEL ENERGIA SPA;77999756FD;Fatt.n. 004006887119  del 15/01/2020 DICEMBRE 2019 - CONSUMI ILLUMINAZIONE PUBBLICA;13/02/2020;3544;0;124;1;Spese correnti;3;Acquisto di beni e servizi;2;Acquisto di servizi;15;Contratti di servizio pubblico;15;Contratti di servizio per l'illuminazione pubblica;14/02/2020
411;4;9999999;68,63;3.418,97;ENEL ENERGIA SPA;77999756FD;Fatt.n. 004006887121  del 15/01/2020 DICEMBRE 2019 - CONSUMI ILLUMINAZIONE PUBBLICA;13/02/2020;3544;0;124;1;Spese correnti;3;Acquisto di beni e servizi;2;Acquisto di servizi;15;Contratti di servizio pubblico;15;Contratti di servizio per l'illuminazione pubblica;14/02/2020
411;5;9999999;101,28;3.418,97;ENEL ENERGIA SPA;77999756FD;Fatt.n. 004006887116  del 15/01/2020 DICEMBRE 2019 - CONSUMI ILLUMINAZIONE PUBBLICA;13/02/2020;3544;0;124;1;Spese correnti;3;Acquisto di beni e servizi;2;Acquisto di servizi;15;Contratti di servizio pubblico;15;Contratti di servizio per l'illuminazione pubblica;14/02/2020
411;6;9999999;137,3;3.418,97;ENEL ENERGIA SPA;77999756FD;Fatt.n. 004006887118  del 15/01/2020 DICEMBRE 2019 - CONSUMI ILLUMINAZIONE PUBBLICA;13/02/2020;3544;0;124;1;Spese correnti;3;Acquisto di beni e servizi;2;Acquisto di servizi;15;Contratti di servizio pubblico;15;Contratti di servizio per l'illuminazione pubblica;14/02/2020
411;7;9999999;225,99;3.418,97;ENEL ENERGIA SPA;77999756FD;Fatt.n. 004006887125  del 15/01/2020 DICEMBRE 2019 - CONSUMI ILLUMINAZIONE PUBBLICA;13/02/2020;3544;0;124;1;Spese correnti;3;Acquisto di beni e servizi;2;Acquisto di servizi;15;Contratti di servizio pubblico;15;Contratti di servizio per l'illuminazione pubblica;14/02/2020
411;8;9999999;274,62;3.418,97;ENEL ENERGIA SPA;77999756FD;Fatt.n. 004006887120  del 15/01/2020 DICEMBRE 2019 - CONSUMI ILLUMINAZIONE PUBBLICA;13/02/2020;3544;0;124;1;Spese correnti;3;Acquisto di beni e servizi;2;Acquisto di servizi;15;Contratti di servizio pubblico;15;Contratti di servizio per l'illuminazione pubblica;14/02/2020
411;9;9999999;427,28;3.418,97;ENEL ENERGIA SPA;77999756FD;Fatt.n. 004006887122  del 15/01/2020 DICEMBRE 2019 - CONSUMI ILLUMINAZIONE PUBBLICA;13/02/2020;3544;0;124;1;Spese correnti;3;Acquisto di beni e servizi;2;Acquisto di servizi;15;Contratti di servizio pubblico;15;Contratti di servizio per l'illuminazione pubblica;14/02/2020
411;10;9999999;523,56;3.418,97;ENEL ENERGIA SPA;77999756FD;Fatt.n. 004006887124  del 15/01/2020 DICEMBRE 2019 - CONSUMI ILLUMINAZIONE PUBBLICA;13/02/2020;3544;0;124;1;Spese correnti;3;Acquisto di beni e servizi;2;Acquisto di servizi;15;Contratti di servizio pubblico;15;Contratti di servizio per l'illuminazione pubblica;14/02/2020
411;11;9999999;665,42;3.418,97;ENEL ENERGIA SPA;77999756FD;Fatt.n. 004006887123  del 15/01/2020  DICEMBRE 2019 - CONSUMI ILLUMINAZIONE PUBBLICA;13/02/2020;3544;0;124;1;Spese correnti;3;Acquisto di beni e servizi;2;Acquisto di servizi;15;Contratti di servizio pubblico;15;Contratti di servizio per l'illuminazione pubblica;14/02/2020
411;12;9999999;843,43;3.418,97;ENEL ENERGIA SPA;77999756FD;Fatt.n. 004006599378  del 14/01/2020 DICEMBRE 2019 - CONSUMI ILLUMINAZIONE PUBBLICA;13/02/2020;3544;0;124;1;Spese correnti;3;Acquisto di beni e servizi;2;Acquisto di servizi;15;Contratti di servizio pubblico;15;Contratti di servizio per l'illuminazione pubblica;14/02/2020
412;1;9999999;3,06;2.539,69;ENEL ENERGIA SPA;77999756FD;Fatt.n. 004000070635  del 08/01/2020 DICEMBRE 2019 - CONSUMI ILLUMINAZIONE PUBBLICA;13/02/2020;3544;0;1165;1;Spese correnti;3;Acquisto di beni e servizi;2;Acquisto di servizi;15;Contratti di servizio pubblico;15;Contratti di servizio per l'illuminazione pubblica;14/02/2020
412;2;9999999;10,86;2.539,69;ENEL ENERGIA SPA;77999756FD;Fatt.n. 004000070669  del 08/01/2020 DICEMBRE 2019 - CONSUMI ILLUMINAZIONE PUBBLICA;13/02/2020;3544;0;1165;1;Spese correnti;3;Acquisto di beni e servizi;2;Acquisto di servizi;15;Contratti di servizio pubblico;15;Contratti di servizio per l'illuminazione pubblica;14/02/2020
412;3;9999999;79,76;2.539,69;ENEL ENERGIA SPA;77999756FD;Fatt.n. 004000070683  del 08/01/2020 DICEMBRE 2019 - CONSUMI ILLUMINAZIONE PUBBLICA;13/02/2020;3544;0;1165;1;Spese correnti;3;Acquisto di beni e servizi;2;Acquisto di servizi;15;Contratti di servizio pubblico;15;Contratti di servizio per l'illuminazione pubblica;14/02/2020
412;4;9999999;110,17;2.539,69;ENEL ENERGIA SPA;77999756FD;Fatt.n. 004000070677  del 08/01/2020 DICEMBRE 2019 - CONSUMI ILLUMINAZIONE PUBBLICA;13/02/2020;3544;0;1165;1;Spese correnti;3;Acquisto di beni e servizi;2;Acquisto di servizi;15;Contratti di servizio pubblico;15;Contratti di servizio per l'illuminazione pubblica;14/02/2020
412;5;9999999;130,95;2.539,69;ENEL ENERGIA SPA;77999756FD;Fatt.n. 004000070655  del 08/01/2020 DICEMBRE 2019 - CONSUMI ILLUMINAZIONE PUBBLICA;13/02/2020;3544;0;1165;1;Spese correnti;3;Acquisto di beni e servizi;2;Acquisto di servizi;15;Contratti di servizio pubblico;15;Contratti di servizio per l'illuminazione pubblica;14/02/2020
412;6;9999999;134,29;2.539,69;ENEL ENERGIA SPA;77999756FD;Fatt.n. 004000070689  del 08/01/2020 DICEMBRE 2019 - CONSUMI ILLUMINAZIONE PUBBLICA;13/02/2020;3544;0;1165;1;Spese correnti;3;Acquisto di beni e servizi;2;Acquisto di servizi;15;Contratti di servizio pubblico;15;Contratti di servizio per l'illuminazione pubblica;14/02/2020
412;7;9999999;262,67;2.539,69;ENEL ENERGIA SPA;77999756FD;Fatt.n. 004000070594  del 08/01/2020 DICEMBRE 2019 - CONSUMI ILLUMINAZIONE PUBBLICA;13/02/2020;3544;0;1165;1;Spese correnti;3;Acquisto di beni e servizi;2;Acquisto di servizi;15;Contratti di servizio pubblico;15;Contratti di servizio per l'illuminazione pubblica;14/02/2020
412;8;9999999;345,39;2.539,69;ENEL ENERGIA SPA;77999756FD;Fatt.n. 004000070661  del 08/01/2020 DICEMBRE 2019 - CONSUMI ILLUMINAZIONE PUBBLICA;13/02/2020;3544;0;1165;1;Spese correnti;3;Acquisto di beni e servizi;2;Acquisto di servizi;15;Contratti di servizio pubblico;15;Contratti di servizio per l'illuminazione pubblica;14/02/2020
412;9;9999999;637,83;2.539,69;ENEL ENERGIA SPA;77999756FD;Fatt.n. 004000070613  del 08/01/2020 DICEMBRE 2019 - CONSUMI ILLUMINAZIONE PUBBLICA;13/02/2020;3544;0;1165;1;Spese correnti;3;Acquisto di beni e servizi;2;Acquisto di servizi;15;Contratti di servizio pubblico;15;Contratti di servizio per l'illuminazione pubblica;14/02/2020
412;10;9999999;824,71;2.539,69;ENEL ENERGIA SPA;77999756FD;Fatt.n. 004000070577  del 08/01/2020 DICEMBRE 2019 - CONSUMI ILLUMINAZIONE PUBBLICA;13/02/2020;3544;0;1165;1;Spese correnti;3;Acquisto di beni e servizi;2;Acquisto di servizi;15;Contratti di servizio pubblico;15;Contratti di servizio per l'illuminazione pubblica;14/02/2020
413;1;9999999;8,86;1.629,07;ENEL ENERGIA SPA;77999756FD;Fatt.n. 004000070682  del 08/01/2020 DICEMBRE 2019 - CONSUMI ILLUMINAZIONE PUBBLICA;13/02/2020;3544;0;1165;1;Spese correnti;3;Acquisto di beni e servizi;2;Acquisto di servizi;15;Contratti di servizio pubblico;15;Contratti di servizio per l'illuminazione pubblica;14/02/2020
413;2;9999999;9,27;1.629,07;ENEL ENERGIA SPA;77999756FD;Fatt.n. 004000070570  del 08/01/2020 DICEMBRE 2019 - CONSUMI ILLUMINAZIONE PUBBLICA;13/02/2020;3544;0;1165;1;Spese correnti;3;Acquisto di beni e servizi;2;Acquisto di servizi;15;Contratti di servizio pubblico;15;Contratti di servizio per l'illuminazione pubblica;14/02/2020
413;3;9999999;15,09;1.629,07;ENEL ENERGIA SPA;77999756FD;Fatt.n. 004000070589  del 08/01/2020 DICEMBRE 2019 - CONSUMI ILLUMINAZIONE PUBBLICA;13/02/2020;3544;0;1165;1;Spese correnti;3;Acquisto di beni e servizi;2;Acquisto di servizi;15;Contratti di servizio pubblico;15;Contratti di servizio per l'illuminazione pubblica;14/02/2020
413;4;9999999;16,62;1.629,07;ENEL ENERGIA SPA;77999756FD;Fatt.n. 004000070592  del 08/01/2020 DICEMBRE 2019 - CONSUMI ILLUMINAZIONE PUBBLICA;13/02/2020;3544;0;1165;1;Spese correnti;3;Acquisto di beni e servizi;2;Acquisto di servizi;15;Contratti di servizio pubblico;15;Contratti di servizio per l'illuminazione pubblica;14/02/2020
413;5;9999999;56,55;1.629,07;ENEL ENERGIA SPA;77999756FD;Fatt.n. 004000070580  del 08/01/2020 DICEMBRE 2019 - CONSUMI ILLUMINAZIONE PUBBLICA;13/02/2020;3544;0;1165;1;Spese correnti;3;Acquisto di beni e servizi;2;Acquisto di servizi;15;Contratti di servizio pubblico;15;Contratti di servizio per l'illuminazione pubblica;14/02/2020
413;6;9999999;63,78;1.629,07;ENEL ENERGIA SPA;77999756FD;Fatt.n. 004000070587  del 08/01/2020 DICEMBRE 2019 - CONSUMI ILLUMINAZIONE PUBBLICA;13/02/2020;3544;0;1165;1;Spese correnti;3;Acquisto di beni e servizi;2;Acquisto di servizi;15;Contratti di servizio pubblico;15;Contratti di servizio per l'illuminazione pubblica;14/02/2020
413;7;9999999;76,3;1.629,07;ENEL ENERGIA SPA;77999756FD;Fatt.n. 004000070623  del 08/01/2020 DICEMBRE 2019 - CONSUMI ILLUMINAZIONE PUBBLICA;13/02/2020;3544;0;1165;1;Spese correnti;3;Acquisto di beni e servizi;2;Acquisto di servizi;15;Contratti di servizio pubblico;15;Contratti di servizio per l'illuminazione pubblica;14/02/2020
413;8;9999999;300,28;1.629,07;ENEL ENERGIA SPA;77999756FD;Fatt.n. 004000070663  del 08/01/2020 DICEMBRE 2019 - CONSUMI ILLUMINAZIONE PUBBLICA;13/02/2020;3544;0;1165;1;Spese correnti;3;Acquisto di beni e servizi;2;Acquisto di servizi;15;Contratti di servizio pubblico;15;Contratti di servizio per l'illuminazione pubblica;14/02/2020
413;9;9999999;421,71;1.629,07;ENEL ENERGIA SPA;77999756FD;Fatt.n. 004000070586  del 08/01/2020 DICEMBRE 2019 - CONSUMI ILLUMINAZIONE PUBBLICA;13/02/2020;3544;0;1165;1;Spese correnti;3;Acquisto di beni e servizi;2;Acquisto di servizi;15;Contratti di servizio pubblico;15;Contratti di servizio per l'illuminazione pubblica;14/02/2020
413;10;9999999;660,61;1.629,07;ENEL ENERGIA SPA;77999756FD;Fatt.n. 004000070579  del 08/01/2020 DICEMBRE 2019 - CONSUMI ILLUMINAZIONE PUBBLICA;13/02/2020;3544;0;1165;1;Spese correnti;3;Acquisto di beni e servizi;2;Acquisto di servizi;15;Contratti di servizio pubblico;15;Contratti di servizio per l'illuminazione pubblica;14/02/2020
414;1;9999999;25,46;1.589,95;ENEL ENERGIA SPA;77999756FD;Fatt.n. 004000070673  del 08/01/2020 DICEMBRE 2019 - CONSUMI ILLUMINAZIONE PUBBLICA;13/02/2020;3544;0;1165;1;Spese correnti;3;Acquisto di beni e servizi;2;Acquisto di servizi;15;Contratti di servizio pubblico;15;Contratti di servizio per l'illuminazione pubblica;14/02/2020
414;2;9999999;27,89;1.589,95;ENEL ENERGIA SPA;77999756FD;Fatt.n. 004000070574  del 08/01/2020 DICEMBRE 2019 - CONSUMI ILLUMINAZIONE PUBBLICA;13/02/2020;3544;0;1165;1;Spese correnti;3;Acquisto di beni e servizi;2;Acquisto di servizi;15;Contratti di servizio pubblico;15;Contratti di servizio per l'illuminazione pubblica;14/02/2020
414;3;9999999;31,12;1.589,95;ENEL ENERGIA SPA;77999756FD;Fatt.n. 004000070665  del 08/01/2020 DICEMBRE 2019 - CONSUMI ILLUMINAZIONE PUBBLICA;13/02/2020;3544;0;1165;1;Spese correnti;3;Acquisto di beni e servizi;2;Acquisto di servizi;15;Contratti di servizio pubblico;15;Contratti di servizio per l'illuminazione pubblica;14/02/2020
414;4;9999999;49,3;1.589,95;ENEL ENERGIA SPA;77999756FD;Fatt.n. 004000070582  del 08/01/2020 DICEMBRE 2019 - CONSUMI ILLUMINAZIONE PUBBLICA;13/02/2020;3544;0;1165;1;Spese correnti;3;Acquisto di beni e servizi;2;Acquisto di servizi;15;Contratti di servizio pubblico;15;Contratti di servizio per l'illuminazione pubblica;14/02/2020
414;5;9999999;76,52;1.589,95;ENEL ENERGIA SPA;77999756FD;Fatt.n. 004000070659  del 08/01/2020 DICEMBRE 2019 - CONSUMI ILLUMINAZIONE PUBBLICA;13/02/2020;3544;0;1165;1;Spese correnti;3;Acquisto di beni e servizi;2;Acquisto di servizi;15;Contratti di servizio pubblico;15;Contratti di servizio per l'illuminazione pubblica;14/02/2020
414;6;9999999;78,29;1.589,95;ENEL ENERGIA SPA;77999756FD;Fatt.n. 004000070630  del 08/01/2020 DICEMBRE 2019 - CONSUMI ILLUMINAZIONE PUBBLICA;13/02/2020;3544;0;1165;1;Spese correnti;3;Acquisto di beni e servizi;2;Acquisto di servizi;15;Contratti di servizio pubblico;15;Contratti di servizio per l'illuminazione pubblica;14/02/2020
414;7;9999999;116,77;1.589,95;ENEL ENERGIA SPA;77999756FD;Fatt.n. 004000070566  del 08/01/2020 DICEMBRE 2019 - CONSUMI ILLUMINAZIONE PUBBLICA;13/02/2020;3544;0;1165;1;Spese correnti;3;Acquisto di beni e servizi;2;Acquisto di servizi;15;Contratti di servizio pubblico;15;Contratti di servizio per l'illuminazione pubblica;14/02/2020
414;8;9999999;142,41;1.589,95;ENEL ENERGIA SPA;77999756FD;Fatt.n. 004000070572  del 08/01/2020 DICEMBRE 2019 - CONSUMI ILLUMINAZIONE PUBBLICA;13/02/2020;3544;0;1165;1;Spese correnti;3;Acquisto di beni e servizi;2;Acquisto di servizi;15;Contratti di servizio pubblico;15;Contratti di servizio per l'illuminazione pubblica;14/02/2020
414;9;9999999;206,36;1.589,95;ENEL ENERGIA SPA;77999756FD;Fatt.n. 004000070618  del 08/01/2020 DICEMBRE 2019 - CONSUMI ILLUMINAZIONE PUBBLICA;13/02/2020;3544;0;1165;1;Spese correnti;3;Acquisto di beni e servizi;2;Acquisto di servizi;15;Contratti di servizio pubblico;15;Contratti di servizio per l'illuminazione pubblica;14/02/2020
414;10;9999999;835,83;1.589,95;ENEL ENERGIA SPA;77999756FD;Fatt.n. 004000070629  del 08/01/2020 DICEMBRE 2019 - CONSUMI ILLUMINAZIONE PUBBLICA;13/02/2020;3544;0;1165;1;Spese correnti;3;Acquisto di beni e servizi;2;Acquisto di servizi;15;Contratti di servizio pubblico;15;Contratti di servizio per l'illuminazione pubblica;14/02/2020
415;1;9999999;17,64;1.764,38;ENEL ENERGIA SPA;77999756FD;Fatt.n. 004000070654  del 08/01/2020 DICEMBRE 2019 - CONSUMI ILLUMINAZIONE PUBBLICA;13/02/2020;3544;0;1165;1;Spese correnti;3;Acquisto di beni e servizi;2;Acquisto di servizi;15;Contratti di servizio pubblico;15;Contratti di servizio per l'illuminazione pubblica;14/02/2020
415;2;9999999;18,12;1.764,38;ENEL ENERGIA SPA;77999756FD;Fatt.n. 004000070595  del 08/01/2020 DICEMBRE 2019 - CONSUMI ILLUMINAZIONE PUBBLICA;13/02/2020;3544;0;1165;1;Spese correnti;3;Acquisto di beni e servizi;2;Acquisto di servizi;15;Contratti di servizio pubblico;15;Contratti di servizio per l'illuminazione pubblica;14/02/2020
415;3;9999999;56,55;1.764,38;ENEL ENERGIA SPA;77999756FD;Fatt.n. 004000070611  del 08/01/2020 DICEMBRE 2019 - CONSUMI ILLUMINAZIONE PUBBLICA;13/02/2020;3544;0;1165;1;Spese correnti;3;Acquisto di beni e servizi;2;Acquisto di servizi;15;Contratti di servizio pubblico;15;Contratti di servizio per l'illuminazione pubblica;14/02/2020
415;4;9999999;57,01;1.764,38;ENEL ENERGIA SPA;77999756FD;Fatt.n. 004000070647  del 08/01/2020 DICEMBRE 2019 - CONSUMI ILLUMINAZIONE PUBBLICA;13/02/2020;3544;0;1165;1;Spese correnti;3;Acquisto di beni e servizi;2;Acquisto di servizi;15;Contratti di servizio pubblico;15;Contratti di servizio per l'illuminazione pubblica;14/02/2020
415;5;9999999;100,39;1.764,38;ENEL ENERGIA SPA;77999756FD;Fatt.n. 004000070649  del 08/01/2020 DICEMBRE 2019 - CONSUMI ILLUMINAZIONE PUBBLICA;13/02/2020;3544;0;1165;1;Spese correnti;3;Acquisto di beni e servizi;2;Acquisto di servizi;15;Contratti di servizio pubblico;15;Contratti di servizio per l'illuminazione pubblica;14/02/2020
415;6;9999999;108,02;1.764,38;ENEL ENERGIA SPA;77999756FD;Fatt.n. 004000070626  del 08/01/2020 DICEMBRE 2019 - CONSUMI ILLUMINAZIONE PUBBLICA;13/02/2020;3544;0;1165;1;Spese correnti;3;Acquisto di beni e servizi;2;Acquisto di servizi;15;Contratti di servizio pubblico;15;Contratti di servizio per l'illuminazione pubblica;14/02/2020
415;7;9999999;137,99;1.764,38;ENEL ENERGIA SPA;77999756FD;Fatt.n. 004000070599  del 08/01/2020 DICEMBRE 2019 - CONSUMI ILLUMINAZIONE PUBBLICA;13/02/2020;3544;0;1165;1;Spese correnti;3;Acquisto di beni e servizi;2;Acquisto di servizi;15;Contratti di servizio pubblico;15;Contratti di servizio per l'illuminazione pubblica;14/02/2020
415;8;9999999;173,45;1.764,38;ENEL ENERGIA SPA;77999756FD;Fatt.n. 004000070601  del 08/01/2020 DICEMBRE 2019 - CONSUMI ILLUMINAZIONE PUBBLICA;13/02/2020;3544;0;1165;1;Spese correnti;3;Acquisto di beni e servizi;2;Acquisto di servizi;15;Contratti di servizio pubblico;15;Contratti di servizio per l'illuminazione pubblica;14/02/2020
415;9;9999999;528,98;1.764,38;ENEL ENERGIA SPA;77999756FD;Fatt.n. 004000070575  del 08/01/2020 DICEMBRE 2019 - CONSUMI ILLUMINAZIONE PUBBLICA;13/02/2020;3544;0;1165;1;Spese correnti;3;Acquisto di beni e servizi;2;Acquisto di servizi;15;Contratti di servizio pubblico;15;Contratti di servizio per l'illuminazione pubblica;14/02/2020
415;10;9999999;566,23;1.764,38;ENEL ENERGIA SPA;77999756FD;Fatt.n. 004000070632  del 08/01/2020 DICEMBRE 2019 - CONSUMI ILLUMINAZIONE PUBBLICA;13/02/2020;3544;0;1165;1;Spese correnti;3;Acquisto di beni e servizi;2;Acquisto di servizi;15;Contratti di servizio pubblico;15;Contratti di servizio per l'illuminazione pubblica;14/02/2020
416;1;9999999;21,46;4.229,65;ENEL ENERGIA SPA;77999756FD;Fatt.n. 004000070656  del 08/01/2020 DICEMBRE 2019 - CONSUMI ILLUMINAZIONE PUBBLICA;13/02/2020;3544;0;1165;1;Spese correnti;3;Acquisto di beni e servizi;2;Acquisto di servizi;15;Contratti di servizio pubblico;15;Contratti di servizio per l'illuminazione pubblica;14/02/2020
416;2;9999999;28,79;4.229,65;ENEL ENERGIA SPA;77999756FD;Fatt.n. 004000070639  del 08/01/2020 DICEMBRE 2019 - CONSUMI ILLUMINAZIONE PUBBLICA;13/02/2020;3544;0;1165;1;Spese correnti;3;Acquisto di beni e servizi;2;Acquisto di servizi;15;Contratti di servizio pubblico;15;Contratti di servizio per l'illuminazione pubblica;14/02/2020
416;3;9999999;36,99;4.229,65;ENEL ENERGIA SPA;77999756FD;Fatt.n. 004000070657  del 08/01/2020 DICEMBRE 2019 - CONSUMI ILLUMINAZIONE PUBBLICA;13/02/2020;3544;0;1165;1;Spese correnti;3;Acquisto di beni e servizi;2;Acquisto di servizi;15;Contratti di servizio pubblico;15;Contratti di servizio per l'illuminazione pubblica;14/02/2020
416;4;9999999;41,11;4.229,65;ENEL ENERGIA SPA;77999756FD;Fatt.n. 004000070642  del 08/01/2020 DICEMBRE 2019 - CONSUMI ILLUMINAZIONE PUBBLICA;13/02/2020;3544;0;1165;1;Spese correnti;3;Acquisto di beni e servizi;2;Acquisto di servizi;15;Contratti di servizio pubblico;15;Contratti di servizio per l'illuminazione pubblica;14/02/2020
416;5;9999999;103,02;4.229,65;ENEL ENERGIA SPA;77999756FD;Fatt.n. 004000070604  del 08/01/2020 DICEMBRE 2019 - CONSUMI ILLUMINAZIONE PUBBLICA;13/02/2020;3544;0;1165;1;Spese correnti;3;Acquisto di beni e servizi;2;Acquisto di servizi;15;Contratti di servizio pubblico;15;Contratti di servizio per l'illuminazione pubblica;14/02/2020
416;6;9999999;176,07;4.229,65;ENEL ENERGIA SPA;77999756FD;Fatt.n. 004000070681  del 08/01/2020 DICEMBRE 2019 - CONSUMI ILLUMINAZIONE PUBBLICA;13/02/2020;3544;0;1165;1;Spese correnti;3;Acquisto di beni e servizi;2;Acquisto di servizi;15;Contratti di servizio pubblico;15;Contratti di servizio per l'illuminazione pubblica;14/02/2020
416;7;9999999;584,43;4.229,65;ENEL ENERGIA SPA;77999756FD;Fatt.n. 004000070605  del 08/01/2020 DICEMBRE 2019 - CONSUMI ILLUMINAZIONE PUBBLICA;13/02/2020;3544;0;1165;1;Spese correnti;3;Acquisto di beni e servizi;2;Acquisto di servizi;15;Contratti di servizio pubblico;15;Contratti di servizio per l'illuminazione pubblica;14/02/2020
416;8;9999999;922,55;4.229,65;ENEL ENERGIA SPA;77999756FD;Fatt.n. 004000070620  del 08/01/2020 DICEMBRE 2019 - CONSUMI ILLUMINAZIONE PUBBLICA;13/02/2020;3544;0;1165;1;Spese correnti;3;Acquisto di beni e servizi;2;Acquisto di servizi;15;Contratti di servizio pubblico;15;Contratti di servizio per l'illuminazione pubblica;14/02/2020
416;9;9999999;999,4;4.229,65;ENEL ENERGIA SPA;77999756FD;Fatt.n. 004000070625  del 08/01/2020 DICEMBRE 2019 - CONSUMI ILLUMINAZIONE PUBBLICA;13/02/2020;3544;0;1165;1;Spese correnti;3;Acquisto di beni e servizi;2;Acquisto di servizi;15;Contratti di servizio pubblico;15;Contratti di servizio per l'illuminazione pubblica;14/02/2020
416;10;9999999;1.315,83;4.229,65;ENEL ENERGIA SPA;77999756FD;Fatt.n. 004000070634  del 08/01/2020 DICEMBRE 2019 - CONSUMI ILLUMINAZIONE PUBBLICA;13/02/2020;3544;0;1165;1;Spese correnti;3;Acquisto di beni e servizi;2;Acquisto di servizi;15;Contratti di servizio pubblico;15;Contratti di servizio per l'illuminazione pubblica;14/02/2020
417;1;9999999;11,1;1.327,48;ENEL ENERGIA SPA;77999756FD;Fatt.n. 004000070602  del 08/01/2020 DICEMBRE 2019 - CONSUMI ILLUMINAZIONE PUBBLICA;13/02/2020;3544;0;1165;1;Spese correnti;3;Acquisto di beni e servizi;2;Acquisto di servizi;15;Contratti di servizio pubblico;15;Contratti di servizio per l'illuminazione pubblica;14/02/2020
417;2;9999999;22,61;1.327,48;ENEL ENERGIA SPA;77999756FD;Fatt.n. 004000070686  del 08/01/2020 DICEMBRE 2019 - CONSUMI ILLUMINAZIONE PUBBLICA;13/02/2020;3544;0;1165;1;Spese correnti;3;Acquisto di beni e servizi;2;Acquisto di servizi;15;Contratti di servizio pubblico;15;Contratti di servizio per l'illuminazione pubblica;14/02/2020
417;3;9999999;28,79;1.327,48;ENEL ENERGIA SPA;77999756FD;Fatt.n. 004000070619  del 08/01/2020 DICEMBRE 2019 - CONSUMI ILLUMINAZIONE PUBBLICA;13/02/2020;3544;0;1165;1;Spese correnti;3;Acquisto di beni e servizi;2;Acquisto di servizi;15;Contratti di servizio pubblico;15;Contratti di servizio per l'illuminazione pubblica;14/02/2020
417;4;9999999;33,77;1.327,48;ENEL ENERGIA SPA;77999756FD;Fatt.n. 004000070670  del 08/01/2020 DICEMBRE 2019 - CONSUMI ILLUMINAZIONE PUBBLICA;13/02/2020;3544;0;1165;1;Spese correnti;3;Acquisto di beni e servizi;2;Acquisto di servizi;15;Contratti di servizio pubblico;15;Contratti di servizio per l'illuminazione pubblica;14/02/2020
417;5;9999999;65,71;1.327,48;ENEL ENERGIA SPA;77999756FD;Fatt.n. 004000070664  del 08/01/2020 DICEMBRE 2019 - CONSUMI ILLUMINAZIONE PUBBLICA;13/02/2020;3544;0;1165;1;Spese correnti;3;Acquisto di beni e servizi;2;Acquisto di servizi;15;Contratti di servizio pubblico;15;Contratti di servizio per l'illuminazione pubblica;14/02/2020
417;6;9999999;185,73;1.327,48;ENEL ENERGIA SPA;77999756FD;Fatt.n. 004000070644  del 08/01/2020 DICEMBRE 2019 - CONSUMI ILLUMINAZIONE PUBBLICA;13/02/2020;3544;0;1165;1;Spese correnti;3;Acquisto di beni e servizi;2;Acquisto di servizi;15;Contratti di servizio pubblico;15;Contratti di servizio per l'illuminazione pubblica;14/02/2020
417;7;9999999;208,75;1.327,48;ENEL ENERGIA SPA;77999756FD;Fatt.n. 004000070640  del 08/01/2020 DICEMBRE 2019 - CONSUMI ILLUMINAZIONE PUBBLICA;13/02/2020;3544;0;1165;1;Spese correnti;3;Acquisto di beni e servizi;2;Acquisto di servizi;15;Contratti di servizio pubblico;15;Contratti di servizio per l'illuminazione pubblica;14/02/2020
417;8;9999999;216,03;1.327,48;ENEL ENERGIA SPA;77999756FD;Fatt.n. 004000070621  del 08/01/2020 DICEMBRE 2019 - CONSUMI ILLUMINAZIONE PUBBLICA;13/02/2020;3544;0;1165;1;Spese correnti;3;Acquisto di beni e servizi;2;Acquisto di servizi;15;Contratti di servizio pubblico;15;Contratti di servizio per l'illuminazione pubblica;14/02/2020
417;9;9999999;241,13;1.327,48;ENEL ENERGIA SPA;77999756FD;Fatt.n. 004000070622  del 08/01/2020 DICEMBRE 2019 - CONSUMI ILLUMINAZIONE PUBBLICA;13/02/2020;3544;0;1165;1;Spese correnti;3;Acquisto di beni e servizi;2;Acquisto di servizi;15;Contratti di servizio pubblico;15;Contratti di servizio per l'illuminazione pubblica;14/02/2020
417;10;9999999;313,86;1.327,48;ENEL ENERGIA SPA;77999756FD;Fatt.n. 004000070628  del 08/01/2020 DICEMBRE 2019 - CONSUMI ILLUMINAZIONE PUBBLICA;13/02/2020;3544;0;1165;1;Spese correnti;3;Acquisto di beni e servizi;2;Acquisto di servizi;15;Contratti di servizio pubblico;15;Contratti di servizio per l'illuminazione pubblica;14/02/2020
418;1;9999999;15,09;2.384,58;ENEL ENERGIA SPA;77999756FD;Fatt.n. 004000070674  del 08/01/2020 DICEMBRE 2019 - CONSUMI ILLUMINAZIONE PUBBLICA;13/02/2020;3544;0;1165;1;Spese correnti;3;Acquisto di beni e servizi;2;Acquisto di servizi;15;Contratti di servizio pubblico;15;Contratti di servizio per l'illuminazione pubblica;14/02/2020
418;2;9999999;38,55;2.384,58;ENEL ENERGIA SPA;77999756FD;Fatt.n. 004000070648  del 08/01/2020 DICEMBRE 2019 - CONSUMI ILLUMINAZIONE PUBBLICA;13/02/2020;3544;0;1165;1;Spese correnti;3;Acquisto di beni e servizi;2;Acquisto di servizi;15;Contratti di servizio pubblico;15;Contratti di servizio per l'illuminazione pubblica;14/02/2020
418;3;9999999;114,36;2.384,58;ENEL ENERGIA SPA;77999756FD;Fatt.n. 004000070672  del 08/01/2020 DICEMBRE 2019 - CONSUMI ILLUMINAZIONE PUBBLICA;13/02/2020;3544;0;1165;1;Spese correnti;3;Acquisto di beni e servizi;2;Acquisto di servizi;15;Contratti di servizio pubblico;15;Contratti di servizio per l'illuminazione pubblica;14/02/2020
418;4;9999999;115,86;2.384,58;ENEL ENERGIA SPA;77999756FD;Fatt.n. 004000070590  del 08/01/2020 DICEMBRE 2019 - CONSUMI ILLUMINAZIONE PUBBLICA;13/02/2020;3544;0;1165;1;Spese correnti;3;Acquisto di beni e servizi;2;Acquisto di servizi;15;Contratti di servizio pubblico;15;Contratti di servizio per l'illuminazione pubblica;14/02/2020
418;5;9999999;136,21;2.384,58;ENEL ENERGIA SPA;77999756FD;Fatt.n. 004000070646  del 08/01/2020 DICEMBRE 2019 - CONSUMI ILLUMINAZIONE PUBBLICA;13/02/2020;3544;0;1165;1;Spese correnti;3;Acquisto di beni e servizi;2;Acquisto di servizi;15;Contratti di servizio pubblico;15;Contratti di servizio per l'illuminazione pubblica;14/02/2020
418;6;9999999;221,43;2.384,58;ENEL ENERGIA SPA;77999756FD;Fatt.n. 004000070685  del 08/01/2020 DICEMBRE 2019 - CONSUMI ILLUMINAZIONE PUBBLICA;13/02/2020;3544;0;1165;1;Spese correnti;3;Acquisto di beni e servizi;2;Acquisto di servizi;15;Contratti di servizio pubblico;15;Contratti di servizio per l'illuminazione pubblica;14/02/2020
418;7;9999999;352,24;2.384,58;ENEL ENERGIA SPA;77999756FD;Fatt.n. 004000070624  del 08/01/2020 DICEMBRE 2019 - CONSUMI ILLUMINAZIONE PUBBLICA;13/02/2020;3544;0;1165;1;Spese correnti;3;Acquisto di beni e servizi;2;Acquisto di servizi;15;Contratti di servizio pubblico;15;Contratti di servizio per l'illuminazione pubblica;14/02/2020
418;8;9999999;365,79;2.384,58;ENEL ENERGIA SPA;77999756FD;Fatt.n. 004000070641  del 08/01/2020 DICEMBRE 2019 - CONSUMI ILLUMINAZIONE PUBBLICA;13/02/2020;3544;0;1165;1;Spese correnti;3;Acquisto di beni e servizi;2;Acquisto di servizi;15;Contratti di servizio pubblico;15;Contratti di servizio per l'illuminazione pubblica;14/02/2020
418;9;9999999;454,72;2.384,58;ENEL ENERGIA SPA;77999756FD;Fatt.n. 004000070691  del 08/01/2020 DICEMBRE 2019 - CONSUMI ILLUMINAZIONE PUBBLICA;13/02/2020;3544;0;1165;1;Spese correnti;3;Acquisto di beni e servizi;2;Acquisto di servizi;15;Contratti di servizio pubblico;15;Contratti di servizio per l'illuminazione pubblica;14/02/2020
418;10;9999999;570,33;2.384,58;ENEL ENERGIA SPA;77999756FD;Fatt.n. 004000070695  del 08/01/2020 DICEMBRE 2019 - CONSUMI ILLUMINAZIONE PUBBLICA;13/02/2020;3544;0;1165;1;Spese correnti;3;Acquisto di beni e servizi;2;Acquisto di servizi;15;Contratti di servizio pubblico;15;Contratti di servizio per l'illuminazione pubblica;14/02/2020
419;1;9999999;10,3;829,05;ENEL ENERGIA SPA;77999756FD;Fatt.n. 004000070693  del 08/01/2020 DICEMBRE 2019 - CONSUMI ILLUMINAZIONE PUBBLICA;13/02/2020;3544;0;1165;1;Spese correnti;3;Acquisto di beni e servizi;2;Acquisto di servizi;15;Contratti di servizio pubblico;15;Contratti di servizio per l'illuminazione pubblica;14/02/2020
419;2;9999999;11,77;829,05;ENEL ENERGIA SPA;77999756FD;Fatt.n. 004006599379  del 14/01/2020 DICEMBRE 2019 - CONSUMI ILLUMINAZIONE PUBBLICA;13/02/2020;3544;0;1165;1;Spese correnti;3;Acquisto di beni e servizi;2;Acquisto di servizi;15;Contratti di servizio pubblico;15;Contratti di servizio per l'illuminazione pubblica;14/02/2020
419;3;9999999;13,33;829,05;ENEL ENERGIA SPA;7376631C76;Fatt.n. 004006599375  del 14/01/2020 DICEMBRE 2019 - CONSUMI ILLUMINAZIONE PUBBLICA;13/02/2020;3544;0;1165;1;Spese correnti;3;Acquisto di beni e servizi;2;Acquisto di servizi;15;Contratti di servizio pubblico;15;Contratti di servizio per l'illuminazione pubblica;14/02/2020
419;4;9999999;19,03;829,05;ENEL ENERGIA SPA;77999756FD;Fatt.n. 004000070627  del 08/01/2020 DICEMBRE 2019 - CONSUMI ILLUMINAZIONE PUBBLICA;13/02/2020;3544;0;1165;1;Spese correnti;3;Acquisto di beni e servizi;2;Acquisto di servizi;15;Contratti di servizio pubblico;15;Contratti di servizio per l'illuminazione pubblica;14/02/2020
419;5;9999999;36,56;829,05;ENEL ENERGIA SPA;77999756FD;Fatt.n. 004000070678  del 08/01/2020 DICEMBRE 2019 - CONSUMI ILLUMINAZIONE PUBBLICA;13/02/2020;3544;0;1165;1;Spese correnti;3;Acquisto di beni e servizi;2;Acquisto di servizi;15;Contratti di servizio pubblico;15;Contratti di servizio per l'illuminazione pubblica;14/02/2020
419;6;9999999;40,7;829,05;ENEL ENERGIA SPA;77999756FD;Fatt.n. 004000070593  del 08/01/2020 DICEMBRE 2019 - CONSUMI ILLUMINAZIONE PUBBLICA;13/02/2020;3544;0;1165;1;Spese correnti;3;Acquisto di beni e servizi;2;Acquisto di servizi;15;Contratti di servizio pubblico;15;Contratti di servizio per l'illuminazione pubblica;14/02/2020
419;7;9999999;58,88;829,05;ENEL ENERGIA SPA;77999756FD;Fatt.n. 004006599376  del 14/01/2020 DICEMBRE 2019 - CONSUMI ILLUMINAZIONE PUBBLICA;13/02/2020;3544;0;1165;1;Spese correnti;3;Acquisto di beni e servizi;2;Acquisto di servizi;15;Contratti di servizio pubblico;15;Contratti di servizio per l'illuminazione pubblica;14/02/2020
419;8;9999999;205,91;829,05;ENEL ENERGIA SPA;77999756FD;Fatt.n. 004000070600  del 08/01/2020 DICEMBRE 2019 - CONSUMI ILLUMINAZIONE PUBBLICA;13/02/2020;3544;0;1165;1;Spese correnti;3;Acquisto di beni e servizi;2;Acquisto di servizi;15;Contratti di servizio pubblico;15;Contratti di servizio per l'illuminazione pubblica;14/02/2020
419;9;9999999;208,57;829,05;ENEL ENERGIA SPA;77999756FD;Fatt.n. 004006599377  del 14/01/2020 DICEMBRE 2019 - CONSUMI ILLUMINAZIONE PUBBLICA;13/02/2020;3544;0;1165;1;Spese correnti;3;Acquisto di beni e servizi;2;Acquisto di servizi;15;Contratti di servizio pubblico;15;Contratti di servizio per l'illuminazione pubblica;14/02/2020
419;10;9999999;224;829,05;ENEL ENERGIA SPA;77999756FD;Fatt.n. 004006599381  del 14/01/2020 DICEMBRE 2019 - CONSUMI ILLUMINAZIONE PUBBLICA;13/02/2020;3544;0;1165;1;Spese correnti;3;Acquisto di beni e servizi;2;Acquisto di servizi;15;Contratti di servizio pubblico;15;Contratti di servizio per l'illuminazione pubblica;14/02/2020
420;1;9999999;21,05;1.590,57;ENEL ENERGIA SPA;77999756FD;Fatt.n. 004000070585  del 08/01/2020 DICEMBRE 2019 - CONSUMI ILLUMINAZIONE PUBBLICA;13/02/2020;3544;0;1165;1;Spese correnti;3;Acquisto di beni e servizi;2;Acquisto di servizi;15;Contratti di servizio pubblico;15;Contratti di servizio per l'illuminazione pubblica;14/02/2020
420;2;9999999;24,08;1.590,57;ENEL ENERGIA SPA;77999756FD;Fatt.n. 004000070631  del 08/01/2020 DICEMBRE 2019 - CONSUMI ILLUMINAZIONE PUBBLICA;13/02/2020;3544;0;1165;1;Spese correnti;3;Acquisto di beni e servizi;2;Acquisto di servizi;15;Contratti di servizio pubblico;15;Contratti di servizio per l'illuminazione pubblica;14/02/2020
420;3;9999999;48,65;1.590,57;ENEL ENERGIA SPA;77999756FD;Fatt.n. 004000070697  del 08/01/2020 DICEMBRE 2019 - CONSUMI ILLUMINAZIONE PUBBLICA;13/02/2020;3544;0;1165;1;Spese correnti;3;Acquisto di beni e servizi;2;Acquisto di servizi;15;Contratti di servizio pubblico;15;Contratti di servizio per l'illuminazione pubblica;14/02/2020
420;4;9999999;49,93;1.590,57;ENEL ENERGIA SPA;77999756FD;Fatt.n. 004000070666  del 08/01/2020 DICEMBRE 2019 - CONSUMI ILLUMINAZIONE PUBBLICA;13/02/2020;3544;0;1165;1;Spese correnti;3;Acquisto di beni e servizi;2;Acquisto di servizi;15;Contratti di servizio pubblico;15;Contratti di servizio per l'illuminazione pubblica;14/02/2020
420;5;9999999;129,61;1.590,57;ENEL ENERGIA SPA;77999756FD;Fatt.n. 004000070581  del 08/01/2020 DICEMBRE 2019 - CONSUMI ILLUMINAZIONE PUBBLICA;13/02/2020;3544;0;1165;1;Spese correnti;3;Acquisto di beni e servizi;2;Acquisto di servizi;15;Contratti di servizio pubblico;15;Contratti di servizio per l'illuminazione pubblica;14/02/2020
420;6;9999999;143,69;1.590,57;ENEL ENERGIA SPA;77999756FD;Fatt.n. 004000070684  del 08/01/2020 DICEMBRE 2019 - CONSUMI ILLUMINAZIONE PUBBLICA;13/02/2020;3544;0;1165;1;Spese correnti;3;Acquisto di beni e servizi;2;Acquisto di servizi;15;Contratti di servizio pubblico;15;Contratti di servizio per l'illuminazione pubblica;14/02/2020
420;7;9999999;186,36;1.590,57;ENEL ENERGIA SPA;77999756FD;Fatt.n. 004000070569  del 08/01/2020 DICEMBRE 2019 - CONSUMI ILLUMINAZIONE PUBBLICA;13/02/2020;3544;0;1165;1;Spese correnti;3;Acquisto di beni e servizi;2;Acquisto di servizi;15;Contratti di servizio pubblico;15;Contratti di servizio per l'illuminazione pubblica;14/02/2020
420;8;9999999;199,74;1.590,57;ENEL ENERGIA SPA;77999756FD;Fatt.n. 004000070692  del 08/01/2020 DICEMBRE 2019 - CONSUMI ILLUMINAZIONE PUBBLICA;13/02/2020;3544;0;1165;1;Spese correnti;3;Acquisto di beni e servizi;2;Acquisto di servizi;15;Contratti di servizio pubblico;15;Contratti di servizio per l'illuminazione pubblica;14/02/2020
420;9;9999999;207,67;1.590,57;ENEL ENERGIA SPA;77999756FD;Fatt.n. 004000070596  del 08/01/2020 DICEMBRE 2019 - CONSUMI ILLUMINAZIONE PUBBLICA;13/02/2020;3544;0;1165;1;Spese correnti;3;Acquisto di beni e servizi;2;Acquisto di servizi;15;Contratti di servizio pubblico;15;Contratti di servizio per l'illuminazione pubblica;14/02/2020
420;10;9999999;579,79;1.590,57;ENEL ENERGIA SPA;77999756FD;Fatt.n. 004000070573  del 08/01/2020 DICEMBRE 2019 - CONSUMI ILLUMINAZIONE PUBBLICA;13/02/2020;3544;0;1165;1;Spese correnti;3;Acquisto di beni e servizi;2;Acquisto di servizi;15;Contratti di servizio pubblico;15;Contratti di servizio per l'illuminazione pubblica;14/02/2020
421;1;9999999;554,91;554,91;ENEL ENERGIA SPA;77999756FD;Fatt.n. 004000070588  del 08/01/2020 DICEMBRE 2019 - CONSUMI ILLUMINAZIONE PUBBLICA;13/02/2020;3544;0;1165;1;Spese correnti;3;Acquisto di beni e servizi;2;Acquisto di servizi;15;Contratti di servizio pubblico;15;Contratti di servizio per l'illuminazione pubblica;14/02/2020
422;1;9999999;862,28;1.999,45;ENEL ENERGIA SPA;77999756FD;Fatt.n. 004000070564  del 08/01/2020 DICEMBRE 2019 - CONSUMI VILLA FARSETTI;13/02/2020;4234;0;1163;1;Spese correnti;3;Acquisto di beni e servizi;2;Acquisto di servizi;5;Utenze e canoni;4;Energia elettrica;14/02/2020
422;2;9999999;1.137,17;1.999,45;ENEL ENERGIA SPA;77999756FD;Fatt.n. 004000070606  del 08/01/2020 DICEMBRE 2019 - CONSUMI VILLA FARSETTI;13/02/2020;4234;0;1163;1;Spese correnti;3;Acquisto di beni e servizi;2;Acquisto di servizi;5;Utenze e canoni;4;Energia elettrica;14/02/2020
423;1;9999999;227,82;1.046,98;ENEL ENERGIA SPA;77999756FD;Fatt.n. 004000070584  del 08/01/2020 DICEMBRE 2019 - CONSUMI SC. ELEM. SMS;13/02/2020;4234;0;1163;1;Spese correnti;3;Acquisto di beni e servizi;2;Acquisto di servizi;5;Utenze e canoni;4;Energia elettrica;14/02/2020
423;2;9999999;374,64;1.046,98;ENEL ENERGIA SPA;77999756FD;Fatt.n. 004000070578  del 08/01/2020 DICEMBRE 2019 - CONSUMI SC. ELEM. CALTANA;13/02/2020;4234;0;1163;1;Spese correnti;3;Acquisto di beni e servizi;2;Acquisto di servizi;5;Utenze e canoni;4;Energia elettrica;14/02/2020
423;3;9999999;444,52;1.046,98;ENEL ENERGIA SPA;77999756FD;Fatt.n. 004000070671  del 08/01/2020 DICEMBRE 2019 - CONSUMI ILLUMINAZIONE PUBBLICA;13/02/2020;4234;0;1163;1;Spese correnti;3;Acquisto di beni e servizi;2;Acquisto di servizi;5;Utenze e canoni;4;Energia elettrica;14/02/2020
424;1;9999999;432,05;432,05;ENEL ENERGIA SPA;77999756FD;Fatt.n. 004000070667  del 08/01/2020 DICEMBRE 2019 - CONSUMI SCUOLA MEDIA SMS;13/02/2020;4234;0;1163;1;Spese correnti;3;Acquisto di beni e servizi;2;Acquisto di servizi;5;Utenze e canoni;4;Energia elettrica;14/02/2020
425;1;9999999;100;100;ENEL ENERGIA SPA;77999756FD;Fatt.n. 004000070680  del 08/01/2020 DICEMBRE 2019 - CONSUMI CIMITERO CALTANA - LAMPADE VOTIVE;13/02/2020;4434;0;1164;1;Spese correnti;3;Acquisto di beni e servizi;2;Acquisto di servizi;5;Utenze e canoni;4;Energia elettrica;14/02/2020
426;1;9999999;57;57;ENEL ENERGIA SPA;77999756FD;Fatt.n. 004000070609  del 08/01/2020 DICEMBRE 2019 - CONSUMI CIMITERO SMS - LAMPADE VOTIVE;13/02/2020;4434;0;1164;1;Spese correnti;3;Acquisto di beni e servizi;2;Acquisto di servizi;5;Utenze e canoni;4;Energia elettrica;14/02/2020
427;1;9999999;49,81;49,81;ENEL ENERGIA SPA;77999756FD;Fatt.n. 004000070576  del 08/01/2020 DICEMBRE 2019 - CONSUMI  CIMITERO STIGLIANO - LAMPADE VOTIVE;13/02/2020;4434;0;1164;1;Spese correnti;3;Acquisto di beni e servizi;2;Acquisto di servizi;5;Utenze e canoni;4;Energia elettrica;14/02/2020
428;1;9999999;56;56;ENEL ENERGIA SPA;77999756FD;Fatt.n. 004000070567  del 08/01/2020 DICEMBRE 2019 - CONSUMI CIMITERO S.ANGELO - LAMPADE VOTIVE;13/02/2020;4434;0;1164;1;Spese correnti;3;Acquisto di beni e servizi;2;Acquisto di servizi;5;Utenze e canoni;4;Energia elettrica;14/02/2020
429;1;9999999;32;32;ENEL ENERGIA SPA;77999756FD;Fatt.n. 004000070597  del 08/01/2020 DICEMBRE 2019 - CONSUMI  CIMITERO VETERNIGO - LAMPADE VOTIVE;13/02/2020;4434;0;1164;1;Spese correnti;3;Acquisto di beni e servizi;2;Acquisto di servizi;5;Utenze e canoni;4;Energia elettrica;14/02/2020
430;1;9999999;62,21;62,21;ENEL ENERGIA SPA;77999756FD;Fatt.n. 004000070617  del 08/01/2020 DICEMBRE 2019 - CONSUMI CIMITERO CASELLE - LAMPADE VOTIVE;13/02/2020;4434;0;1164;1;Spese correnti;3;Acquisto di beni e servizi;2;Acquisto di servizi;5;Utenze e canoni;4;Energia elettrica;14/02/2020
431;1;9999999;4.393,85;4.393,85;SUSANNA SILVIA; ;Fatt.n. 11  del 29/01/2020 COMPENSO COMPONENTE COLLEGIO DEI REVISORI - PERIODO LUGLIO- DICEMBRE 2019;13/02/2020;230;0;1167;1;Spese correnti;3;Acquisto di beni e servizi;2;Acquisto di servizi;1;Organi e incarichi istituzionali dell'amministrazione;8;Compensi agli organi istituzionali di revisione, di controllo ed altri incarichi istituzionali dell'amministrazione;14/02/2020
432;1;9999999;500;500;NOI ASSOCIAZIONE DI VETERNIGO; ;CONTRIBUTO PER ATTIVITA DI PUBBLICA UTILITA;17/02/2020;4059;0;105;1;Spese correnti;4;Trasferimenti correnti;4;Trasferimenti correnti a Istituzioni Sociali Private;1;Trasferimenti correnti a Istituzioni Sociali Private;1;Trasferimenti correnti a Istituzioni Sociali Private;18/02/2020
433;1;9999999;650;650;MANO AMICA - GRUPPO SALESE DI IMPEGNO SOCIALE O.D.V.; ;GENNAIO 2020 VIGILANZA SCUOLE;17/02/2020;1257;0;99;1;Spese correnti;4;Trasferimenti correnti;4;Trasferimenti correnti a Istituzioni Sociali Private;1;Trasferimenti correnti a Istituzioni Sociali Private;1;Trasferimenti correnti a Istituzioni Sociali Private;18/02/2020
434;1;9999999;200;200;LABS LABORATORIO SOLIDALE ONLUS; ;GENNAIO 2020 ACCOMPAGNAMENTO RAGAZZI PALESTRA - CALTANA;17/02/2020;1257;0;96;1;Spese correnti;4;Trasferimenti correnti;4;Trasferimenti correnti a Istituzioni Sociali Private;1;Trasferimenti correnti a Istituzioni Sociali Private;1;Trasferimenti correnti a Istituzioni Sociali Private;18/02/2020
435;1;9999999;1.400,00;1.400,00;LABS LABORATORIO SOLIDALE ONLUS; ;GENNAIO 2020 VIGILANZA SCUOLE;17/02/2020;1257;0;96;1;Spese correnti;4;Trasferimenti correnti;4;Trasferimenti correnti a Istituzioni Sociali Private;1;Trasferimenti correnti a Istituzioni Sociali Private;1;Trasferimenti correnti a Istituzioni Sociali Private;18/02/2020
436;1;9999999;400;400;LABS LABORATORIO SOLIDALE ONLUS; ;CONTRIBUTO PER CERIMONIA DI CONSEGNA BORSE DI STUDIO;17/02/2020;1859;0;97;1;Spese correnti;4;Trasferimenti correnti;4;Trasferimenti correnti a Istituzioni Sociali Private;1;Trasferimenti correnti a Istituzioni Sociali Private;1;Trasferimenti correnti a Istituzioni Sociali Private;18/02/2020
437;1;9999999;11.430,75;11.430,75;MAG JLT SPA;Z802B81861;PAGAMENTO DELLA POLIZZA ASSICURATIVA RCA - LIBRO MATRICOLA 2020.;17/02/2020;992;0;61;1;Spese correnti;10;Altre spese correnti;4;Premi di assicurazione;1;Premi di assicurazione contro i danni;1;Premi di assicurazione su beni mobili;18/02/2020
439;1;9999999;185,11;185,11;IMPREDIL SRL;Z0C275A365;Fatt.n. 11  del 12/02/2020  VILLA FARSETTI STRALCIO 5 CONSOLIDAMENTO E RESTAURO DEL FRONTE OVEST;17/02/2020;7450;1;1223;2;Spese in conto capitale;2;Investimenti fissi lordi e acquisto di terreni;1;Beni materiali;10;Beni immobili di valore culturale, storico ed artistico;999;Beni immobili di valore culturale, storico ed artistico n.a.c.;18/02/2020
440;1;9999999;4.053,88;4.053,88;COOP.SOCIALE PRIMAVERA SOC.COOP.SOC.ONLUS;ZC628289BE;Fatt.n. 18/PA  del 27/01/2020 GENNAIO  2020 - SERVIZIO DI PULIZIAE SANIFICAZIONE UFFICI COMUNALI - INTERVENTI STRAORDINARI PERIODO GIU-DIC'19;18/02/2020;142;0;535;1;Spese correnti;3;Acquisto di beni e servizi;2;Acquisto di servizi;13;Servizi ausiliari per il funzionamento dell'ente;2;Servizi di pulizia e lavanderia;20/02/2020
441;1;9999999;891,82;891,82;GLOBEX MVR S.R.L.;Z111FF33BF;Fatt.n. FATTPA 9_20  del 27/01/2020 NOLEGGIO CABINE VELO OK N. 17 BIMESTRE DICEMBRE 2019-GENNAIO 2020;18/02/2020;1136;0;572;1;Spese correnti;3;Acquisto di beni e servizi;2;Acquisto di servizi;7;Utilizzo di beni di terzi;8;Noleggi di impianti e macchinari;20/02/2020
442;1;9999999;2.196,00;2.196,00;NOISICURI PROJECT S.R.L.;Z512AF5525;Fatt.n. 28  del 31/01/2020 SERVIZIO DI SUPPORTO ALLA POLIZIA LOCALE PER CONTROLLO VELOCITA' - GENNAIO 2019 SALDO;18/02/2020;1149;0;1278;1;Spese correnti;3;Acquisto di beni e servizi;2;Acquisto di servizi;99;Altri servizi;999;Altri servizi diversi n.a.c.;20/02/2020
443;1;9999999;2.755,25;2.755,25;TIM SPA;Z6629CE5ED;Fatt.n. 6820200105001825  del 23/01/2020 MANUTENZIONE ED AGGIORNAMENTO RETE WIFI PLESSI SCOLASTICI;18/02/2020;7440;0;993;2;Spese in conto capitale;2;Investimenti fissi lordi e acquisto di terreni;1;Beni materiali;7;Hardware;4;Apparati di telecomunicazione;20/02/2020
444;1;9999999;14.591,20;14.591,20;MANERA GLORIA SABINA;Z6A2814ACE;Fatt.n. 0000001  del 24/01/2020 INCARICO DI DIREZIONE LAVORI PER   INTERVENTO DI RESTAURO E CONSOLIDAMENTO FRONTE OVEST STRALCIO 5 DI VILLA FARSETTI E LA LAVORI DI CONSOLIDAMENTO E RESTAUROCORNICIONI MARCAPIANO VILLA FARSETTI;18/02/2020;7450;1;1223;2;Spese in conto capitale;2;Investimenti fissi lordi e acquisto di terreni;1;Beni materiali;10;Beni immobili di valore culturale, storico ed artistico;999;Beni immobili di valore culturale, storico ed artistico n.a.c.;20/02/2020
445;1;9999999;4.948,32;4.948,32;ANDRICH SIRO;ZCB280D7C3;Fatt.n. 0000002  del 24/01/2020 INCARICO PER COORDINAMENTO SICUREZZA PER INTERVENTO DI RESTAURO E CONSOLIDAMENTO FRONTE OVEST STRALCIO 5 DI VILLA FARSETTI E LA LAVORI DI CONSOLIDAMENTO E RESTAUROCORNICIONI MARCAPIANO VILLA FARSETTI;18/02/2020;7450;1;1223;2;Spese in conto capitale;2;Investimenti fissi lordi e acquisto di terreni;1;Beni materiali;10;Beni immobili di valore culturale, storico ed artistico;999;Beni immobili di valore culturale, storico ed artistico n.a.c.;20/02/2020
446;1;9999999;891,82;891,82;GLOBEX MVR S.R.L.;Z111FF33BF;Fatt.n. FATTPA 9_20  del 27/01/2020 NOLEGGIO CABINE VELO OK N. 17 BIMESTRE DICEMBRE 2019-GENNAIO 2020;18/02/2020;1136;0;572;1;Spese correnti;3;Acquisto di beni e servizi;2;Acquisto di servizi;7;Utilizzo di beni di terzi;8;Noleggi di impianti e macchinari;20/02/2020
447;1;9999999;187,4;187,4;COMUNE DI VENEZIA-DIR.AFFARI GENERALI; ;LIQUIDAZIONE SPESE PER IL FUNZIONAMENTO DELLA 6^ SOTTOCOMMISSIONE ELETTORALE CIRCONDARIALE. 2^ SEMESTRE ANNO 2019;18/02/2020;651;0;1377;1;Spese correnti;4;Trasferimenti correnti;1;Trasferimenti correnti a Amministrazioni Pubbliche;2;Trasferimenti correnti a Amministrazioni Locali;3;Trasferimenti correnti a Comuni;20/02/2020
448;1;9999999;126;126;ORTOFRUTTA TOMAELLO E GIORNALI DI TOMAELLO G.CARLO;Z152B9E9B2;Fatt.n. 1/PA  del 31/01/2020 GENNAIO 2020 - FORNITURA QUOTIDIANI;18/02/2020;1820;0;74;1;Spese correnti;3;Acquisto di beni e servizi;1;Acquisto di beni;1;Giornali, riviste e pubblicazioni;1;Giornali e riviste;20/02/2020
449;1;9999999;8.186,72;8.186,72;DIVERSI-AMMINISTRATORI COM.LI; ;STIPENDI MESE DI FEBBRAIO 20;19/02/2020;30;99;0;1;Spese correnti;3;Acquisto di beni e servizi;2;Acquisto di servizi;1;Organi e incarichi istituzionali dell'amministrazione;1;Organi istituzionali dell'amministrazione - Indennità;26/02/2020
523;1;9999999;2.858,70;2.858,70;VODAFONE ITALIA SPA;Z6C2BED875;Fatt.n. AM01045890  del 18/01/2020 PERIODO 15 NOVEMBRE 2019 - 13 GENNAIO 2020 - TELEFONIA FISSA E MOBILE;19/02/2020;134;32;131;1;Spese correnti;3;Acquisto di beni e servizi;2;Acquisto di servizi;5;Utenze e canoni;1;Telefonia fissa;21/02/2020
524;1;9999999;1.147,28;1.147,28;VODAFONE ITALIA SPA;Z6C2BED875;Fatt.n. AM01046036  del 18/01/2020 PERIODO 15 NOVEMBRE 2019 - 13 GENNAIO 2020 - TELEFONIA FISSA E MOBILE;19/02/2020;134;32;131;1;Spese correnti;3;Acquisto di beni e servizi;2;Acquisto di servizi;5;Utenze e canoni;1;Telefonia fissa;21/02/2020
525;1;9999999;861,45;861,45;VODAFONE ITALIA SPA;Z6C2BED875;Fatt.n. AM01045841  del 18/01/2020 PERIODO 15 NOVEMBRE 2019 - 13 GENNAIO 2020 - TELEFONIA FISSA E MOBILE SCUOLE;19/02/2020;134;32;1105;1;Spese correnti;3;Acquisto di beni e servizi;2;Acquisto di servizi;5;Utenze e canoni;2;Telefonia mobile;21/02/2020
526;1;9999999;44,26;44,26;VODAFONE ITALIA SPA;Z6C2BED875;Fatt.n. AM01045916  del 18/01/2020 PERIODO 15 NOVEMBRE 2019 - 13 GENNAIO 2020 - TELEFONIA FISSA E MOBILE - FABBRICATI COMUNALI;19/02/2020;134;30;180;1;Spese correnti;3;Acquisto di beni e servizi;2;Acquisto di servizi;5;Utenze e canoni;1;Telefonia fissa;21/02/2020
527;1;9999999;1.016,67;1.016,67;VODAFONE ITALIA SPA;Z6C2BED875;Fatt.n. AM01045916  del 18/01/2020 PERIODO 15 NOVEMBRE 2019 - 13 GENNAIO 2020 - TELEFONIA FISSA E MOBILE - FABBRICATI COMUNALI;19/02/2020;134;32;131;1;Spese correnti;3;Acquisto di beni e servizi;2;Acquisto di servizi;5;Utenze e canoni;1;Telefonia fissa;21/02/2020
528;1;9999999;38,76;38,76;C/C/P 15453301 SERVIZIO DI TESORERIA COM; ;PRELEVAMENTO N. 4/2020 - FEBBRAIO 2020 - PERIODO 01-15.01.2020;20/02/2020;146;0;0;1;Spese correnti;3;Acquisto di beni e servizi;2;Acquisto di servizi;17;Servizi finanziari;999;Spese per servizi finanziari n.a.c.;21/02/2020
529;1;9999999;139,93;139,93;ZAMENGO UGO; ;GETTONE DI PRESENZA AI COMPONENTI DEL CONSIGLIO COMUNALE COMMISSIONI II SEMESTRE 2019 DECURTATO CONTRIBUTO VOLONTARIO EMERGENZE ACQUA ALTA VENEZIA;20/02/2020;30;99;116;1;Spese correnti;3;Acquisto di beni e servizi;2;Acquisto di servizi;1;Organi e incarichi istituzionali dell'amministrazione;1;Organi istituzionali dell'amministrazione - Indennità;21/02/2020
530;1;9999999;99,95;99,95;MERLO ENRICO; ;GETTONE DI PRESENZA AI COMPONENTI DEL CONSIGLIO COMUNALE COMMISSIONI II SEMESTRE 2019 DECURTATO CONTRIBUTO VOLONTARIO EMERGENZE ACQUA ALTA VENEZIA;20/02/2020;30;99;116;1;Spese correnti;3;Acquisto di beni e servizi;2;Acquisto di servizi;1;Organi e incarichi istituzionali dell'amministrazione;1;Organi istituzionali dell'amministrazione - Indennità;21/02/2020
531;1;9999999;139,93;139,93;MIELE LUIGINO; ;GETTONE DI PRESENZA AI COMPONENTI DEL CONSIGLIO COMUNALE COMMISSIONI II SEMESTRE 2019 DECURTATO CONTRIBUTO VOLONTARIO EMERGENZE ACQUA ALTA VENEZIA;20/02/2020;30;99;116;1;Spese correnti;3;Acquisto di beni e servizi;2;Acquisto di servizi;1;Organi e incarichi istituzionali dell'amministrazione;1;Organi istituzionali dell'amministrazione - Indennità;21/02/2020
532;1;9999999;159,92;159,92;RAGAZZO GABRIELE; ;GETTONE DI PRESENZA AI COMPONENTI DEL CONSIGLIO COMUNALE COMMISSIONI II SEMESTRE 2019 DECURTATO CONTRIBUTO VOLONTARIO EMERGENZE ACQUA ALTA VENEZIA;20/02/2020;30;99;116;1;Spese correnti;3;Acquisto di beni e servizi;2;Acquisto di servizi;1;Organi e incarichi istituzionali dell'amministrazione;1;Organi istituzionali dell'amministrazione - Indennità;21/02/2020
533;1;9999999;79,96;79,96;CARRILLO ANGELA; ;GETTONE DI PRESENZA AI COMPONENTI DEL CONSIGLIO COMUNALE COMMISSIONI II SEMESTRE 2019 DECURTATO CONTRIBUTO VOLONTARIO EMERGENZE ACQUA ALTA VENEZIA;20/02/2020;30;99;116;1;Spese correnti;3;Acquisto di beni e servizi;2;Acquisto di servizi;1;Organi e incarichi istituzionali dell'amministrazione;1;Organi istituzionali dell'amministrazione - Indennità;21/02/2020
534;1;9999999;139,93;139,93;BASSO MARIA CHIARA; ;GETTONE DI PRESENZA AI COMPONENTI DEL CONSIGLIO COMUNALE COMMISSIONI II SEMESTRE 2019 DECURTATO CONTRIBUTO VOLONTARIO EMERGENZE ACQUA ALTA VENEZIA;20/02/2020;30;99;116;1;Spese correnti;3;Acquisto di beni e servizi;2;Acquisto di servizi;1;Organi e incarichi istituzionali dell'amministrazione;1;Organi istituzionali dell'amministrazione - Indennità;21/02/2020
535;1;9999999;119,94;119,94;BERTOLIN MONICA; ;GETTONE DI PRESENZA AI COMPONENTI DEL CONSIGLIO COMUNALE COMMISSIONI II SEMESTRE 2019 DECURTATO CONTRIBUTO VOLONTARIO EMERGENZE ACQUA ALTA VENEZIA;20/02/2020;30;99;116;1;Spese correnti;3;Acquisto di beni e servizi;2;Acquisto di servizi;1;Organi e incarichi istituzionali dell'amministrazione;1;Organi istituzionali dell'amministrazione - Indennità;21/02/2020
536;1;9999999;159,92;159,92;ZANCHIN ALESSIO; ;GETTONE DI PRESENZA AI COMPONENTI DEL CONSIGLIO COMUNALE COMMISSIONI II SEMESTRE 2019 DECURTATO CONTRIBUTO VOLONTARIO EMERGENZE ACQUA ALTA VENEZIA;20/02/2020;30;99;116;1;Spese correnti;3;Acquisto di beni e servizi;2;Acquisto di servizi;1;Organi e incarichi istituzionali dell'amministrazione;1;Organi istituzionali dell'amministrazione - Indennità;21/02/2020
537;1;9999999;159,92;159,92;MOGNO GLENDA; ;GETTONE DI PRESENZA AI COMPONENTI DEL CONSIGLIO COMUNALE COMMISSIONI II SEMESTRE 2019 DECURTATO CONTRIBUTO VOLONTARIO EMERGENZE ACQUA ALTA VENEZIA;20/02/2020;30;99;116;1;Spese correnti;3;Acquisto di beni e servizi;2;Acquisto di servizi;1;Organi e incarichi istituzionali dell'amministrazione;1;Organi istituzionali dell'amministrazione - Indennità;21/02/2020
538;1;9999999;179,91;179,91;BASSO GIOIA; ;GETTONE DI PRESENZA AI COMPONENTI DEL CONSIGLIO COMUNALE COMMISSIONI II SEMESTRE 2019 DECURTATO CONTRIBUTO VOLONTARIO EMERGENZE ACQUA ALTA VENEZIA;20/02/2020;30;99;116;1;Spese correnti;3;Acquisto di beni e servizi;2;Acquisto di servizi;1;Organi e incarichi istituzionali dell'amministrazione;1;Organi istituzionali dell'amministrazione - Indennità;21/02/2020
539;1;9999999;159,92;159,92;ANDREELLO GIULIANA; ;GETTONE DI PRESENZA AI COMPONENTI DEL CONSIGLIO COMUNALE COMMISSIONI II SEMESTRE 2019 DECURTATO CONTRIBUTO VOLONTARIO EMERGENZE ACQUA ALTA VENEZIA;20/02/2020;30;99;116;1;Spese correnti;3;Acquisto di beni e servizi;2;Acquisto di servizi;1;Organi e incarichi istituzionali dell'amministrazione;1;Organi istituzionali dell'amministrazione - Indennità;21/02/2020
540;1;9999999;159,92;159,92;RODIGHIERO GIUSEPPE; ;GETTONE DI PRESENZA AI COMPONENTI DEL CONSIGLIO COMUNALE COMMISSIONI II SEMESTRE 2019 DECURTATO CONTRIBUTO VOLONTARIO EMERGENZE ACQUA ALTA VENEZIA;20/02/2020;30;99;116;1;Spese correnti;3;Acquisto di beni e servizi;2;Acquisto di servizi;1;Organi e incarichi istituzionali dell'amministrazione;1;Organi istituzionali dell'amministrazione - Indennità;21/02/2020
541;1;9999999;119,94;119,94;COLETTO CRISTIANO; ;GETTONE DI PRESENZA AI COMPONENTI DEL CONSIGLIO COMUNALE COMMISSIONI II SEMESTRE 2019 DECURTATO CONTRIBUTO VOLONTARIO EMERGENZE ACQUA ALTA VENEZIA;20/02/2020;30;99;116;1;Spese correnti;3;Acquisto di beni e servizi;2;Acquisto di servizi;1;Organi e incarichi istituzionali dell'amministrazione;1;Organi istituzionali dell'amministrazione - Indennità;21/02/2020
542;1;9999999;219,89;219,89;VANZETTO GIOVANNI; ;GETTONE DI PRESENZA AI COMPONENTI DEL CONSIGLIO COMUNALE COMMISSIONI II SEMESTRE 2019 DECURTATO CONTRIBUTO VOLONTARIO EMERGENZE ACQUA ALTA VENEZIA;20/02/2020;30;99;116;1;Spese correnti;3;Acquisto di beni e servizi;2;Acquisto di servizi;1;Organi e incarichi istituzionali dell'amministrazione;1;Organi istituzionali dell'amministrazione - Indennità;21/02/2020
543;1;9999999;159,92;159,92;GIORDAN CHRISTIAN; ;GETTONE DI PRESENZA AI COMPONENTI DEL CONSIGLIO COMUNALE COMMISSIONI II SEMESTRE 2019 DECURTATO CONTRIBUTO VOLONTARIO EMERGENZE ACQUA ALTA VENEZIA;20/02/2020;30;99;116;1;Spese correnti;3;Acquisto di beni e servizi;2;Acquisto di servizi;1;Organi e incarichi istituzionali dell'amministrazione;1;Organi istituzionali dell'amministrazione - Indennità;21/02/2020
545;1;9999999;2.070,03;2.070,03;FERRINOX SRL UNIPERSONALE;Z302B05013;Fatt.n. 3/CFPA  del 31/01/2020 PORTABICICLETTE CARLOS VERNICIATO;20/02/2020;8483;0;1315;2;Spese in conto capitale;2;Investimenti fissi lordi e acquisto di terreni;1;Beni materiali;9;Beni immobili;16;Impianti sportivi;21/02/2020
546;1;9999999;200;200;LABS LABORATORIO SOLIDALE ONLUS; ;GENNAIO 2020 PROGETTO P3A;20/02/2020;1859;0;97;1;Spese correnti;4;Trasferimenti correnti;4;Trasferimenti correnti a Istituzioni Sociali Private;1;Trasferimenti correnti a Istituzioni Sociali Private;1;Trasferimenti correnti a Istituzioni Sociali Private;21/02/2020
547;1;9999999;2.000,00;2.000,00;MANO AMICA - GRUPPO SALESE DI IMPEGNO SOCIALE O.D.V.; ;ACCONTO PROGETTO DI PROMOZIONE DELLA LETTURA;20/02/2020;1859;0;100;1;Spese correnti;4;Trasferimenti correnti;4;Trasferimenti correnti a Istituzioni Sociali Private;1;Trasferimenti correnti a Istituzioni Sociali Private;1;Trasferimenti correnti a Istituzioni Sociali Private;21/02/2020
548;1;9999999;541,89;541,89;COMUNE DI S.MARIA DI SALA; ;CONTRIBUTO IFEL RENDICONTO IMU AL 24/02/2020;24/02/2020;332;0;1228;1;Spese correnti;3;Acquisto di beni e servizi;2;Acquisto di servizi;3;Aggi di riscossione;999;Altri aggi di riscossione n.a.c.;28/02/2020
549;1;9999999;16,5;16,5;V.E.R.I.T.A.S. SPA; ;Fatt.n. 600005534557  del 03/02/2020 PERIODO 12.01.2018-11.12.2019 - CONSUMI MEDICINA DI GRUPPO - SEDE MUNICIPALE;25/02/2020;134;30;52;1;Spese correnti;3;Acquisto di beni e servizi;2;Acquisto di servizi;5;Utenze e canoni;5;Acqua;27/02/2020
550;1;9999999;8,8;8,8;V.E.R.I.T.A.S. SPA; ;Fatt.n. 600005534563  del 03/02/2020 PERIODO 01.11.2019-31.12.2019 - ANTINCENDIO MEDICINA DI GRUPPO - SEDE MUNICIPALE;25/02/2020;134;30;52;1;Spese correnti;3;Acquisto di beni e servizi;2;Acquisto di servizi;5;Utenze e canoni;5;Acqua;27/02/2020
551;1;9999999;11,27;284,22;V.E.R.I.T.A.S. SPA; ;Fatt.n. 600005534583  del 03/02/2020 PERIODO 01.11.2019-31.12.2019 - CONSUMI PER MANIFESTAZIONI CALTANA;25/02/2020;134;31;53;1;Spese correnti;3;Acquisto di beni e servizi;2;Acquisto di servizi;5;Utenze e canoni;5;Acqua;27/02/2020
551;2;9999999;12,59;284,22;V.E.R.I.T.A.S. SPA; ;Fatt.n. 600005534589  del 03/02/2020 PERIODO 01.11.2019-31.12.2019 - CONSUMI FONTANA VETERNIGO;25/02/2020;134;31;53;1;Spese correnti;3;Acquisto di beni e servizi;2;Acquisto di servizi;5;Utenze e canoni;5;Acqua;27/02/2020
551;3;9999999;19,17;284,22;V.E.R.I.T.A.S. SPA; ;Fatt.n. 600005534590  del 03/02/2020 PERIODO 01.11.2019-31.12.2019 - CONSUMI MERCATO SMS;25/02/2020;134;31;53;1;Spese correnti;3;Acquisto di beni e servizi;2;Acquisto di servizi;5;Utenze e canoni;5;Acqua;27/02/2020
551;4;9999999;19,17;284,22;V.E.R.I.T.A.S. SPA; ;Fatt.n. 600005534503  del 03/02/2020 PERIODO 01.11.2019-31.12.2019 - CONSUMI PER MANIFESTAZIONI SMS;25/02/2020;134;31;53;1;Spese correnti;3;Acquisto di beni e servizi;2;Acquisto di servizi;5;Utenze e canoni;5;Acqua;27/02/2020
551;5;9999999;43,73;284,22;V.E.R.I.T.A.S. SPA; ;Fatt.n. 600005534570  del 03/02/2020 PERIODO 01.11.2019-31.12.2019 - ANTINCENDIO DISTRIBUTORE ACQUA SMS;25/02/2020;134;31;53;1;Spese correnti;3;Acquisto di beni e servizi;2;Acquisto di servizi;5;Utenze e canoni;5;Acqua;27/02/2020
551;6;9999999;43,73;284,22;V.E.R.I.T.A.S. SPA; ;Fatt.n. 600005534502  del 03/02/2020 PERIODO 01.11.2019-31.12.2019 - ANTINCENDIO PER MANIFESTAZIONI SMS;25/02/2020;134;31;53;1;Spese correnti;3;Acquisto di beni e servizi;2;Acquisto di servizi;5;Utenze e canoni;5;Acqua;27/02/2020
551;7;9999999;43,73;284,22;V.E.R.I.T.A.S. SPA; ;Fatt.n. 600005534585  del 03/02/2020 PERIODO 01.11.2019-31.12.2019 - ANTINCENDIO Z.I. SMS;25/02/2020;134;31;53;1;Spese correnti;3;Acquisto di beni e servizi;2;Acquisto di servizi;5;Utenze e canoni;5;Acqua;27/02/2020
551;8;9999999;43,73;284,22;V.E.R.I.T.A.S. SPA; ;Fatt.n. 600005534584  del 03/02/2020 PERIODO 01.11.2019-31.12.2019 - ANTINCENDIO Z.I. SMS;25/02/2020;134;31;53;1;Spese correnti;3;Acquisto di beni e servizi;2;Acquisto di servizi;5;Utenze e canoni;5;Acqua;27/02/2020
551;9;9999999;47,1;284,22;V.E.R.I.T.A.S. SPA; ;Fatt.n. 600005534569  del 03/02/2020 PERIODO 01.11.2019-31.12.2019 - CONSUMI MERCATO CASELLE;25/02/2020;134;31;53;1;Spese correnti;3;Acquisto di beni e servizi;2;Acquisto di servizi;5;Utenze e canoni;5;Acqua;27/02/2020
552;1;9999999;12,59;265,06;V.E.R.I.T.A.S. SPA; ;Fatt.n. 600005534581  del 03/02/2020 PERIODO 01.11.2019-31.12.2019 - CONSUMI PIAZZA S.D.A. CALTANA;25/02/2020;134;31;53;1;Spese correnti;3;Acquisto di beni e servizi;2;Acquisto di servizi;5;Utenze e canoni;5;Acqua;27/02/2020
552;2;9999999;14,58;265,06;V.E.R.I.T.A.S. SPA; ;Fatt.n. 600005534506  del 03/02/2020 PERIODO 01.11.2019-31.12.2019 - CONSUMI ALLOGGIO GUIOTTO;25/02/2020;134;31;53;1;Spese correnti;3;Acquisto di beni e servizi;2;Acquisto di servizi;5;Utenze e canoni;5;Acqua;27/02/2020
552;3;9999999;19,24;265,06;V.E.R.I.T.A.S. SPA; ;Fatt.n. 600005534580  del 03/02/2020 PERIODO 01.11.2019-31.12.2019 - CONSUMI PIAZZA ACTV CALTANA;25/02/2020;134;31;53;1;Spese correnti;3;Acquisto di beni e servizi;2;Acquisto di servizi;5;Utenze e canoni;5;Acqua;27/02/2020
552;4;9999999;43,73;265,06;V.E.R.I.T.A.S. SPA; ;Fatt.n. 600005534586  del 03/02/2020 PERIODO 01.11.2019-31.12.2019 - ANTINCENDIO PARCHEGGIO C.C. PRISMA;25/02/2020;134;31;53;1;Spese correnti;3;Acquisto di beni e servizi;2;Acquisto di servizi;5;Utenze e canoni;5;Acqua;27/02/2020
552;5;9999999;43,73;265,06;V.E.R.I.T.A.S. SPA; ;Fatt.n. 600005534587  del 03/02/2020 PERIODO 01.11.2019-31.12.2019 - ANTINCENDIO ALLOGGIO GUIOTTO;25/02/2020;134;31;53;1;Spese correnti;3;Acquisto di beni e servizi;2;Acquisto di servizi;5;Utenze e canoni;5;Acqua;27/02/2020
552;6;9999999;43,73;265,06;V.E.R.I.T.A.S. SPA; ;Fatt.n. 600005534582  del 03/02/2020 PERIODO 01.11.2019-31.12.2019 - ANTINCENDIO PARCHEGGIO STIGLIANO;25/02/2020;134;31;53;1;Spese correnti;3;Acquisto di beni e servizi;2;Acquisto di servizi;5;Utenze e canoni;5;Acqua;27/02/2020
552;7;9999999;43,73;265,06;V.E.R.I.T.A.S. SPA; ;Fatt.n. 600005534485  del 03/02/2020 PERIODO 01.11.2019-31.12.2019 - ANTINCENDIO PARCHEGGIO CASELLE;25/02/2020;134;31;53;1;Spese correnti;3;Acquisto di beni e servizi;2;Acquisto di servizi;5;Utenze e canoni;5;Acqua;27/02/2020
552;8;9999999;43,73;265,06;V.E.R.I.T.A.S. SPA; ;Fatt.n. 600005534510  del 03/02/2020 PERIODO 01.11.2019-31.12.2019 - ANTINCENDIO PIAZZA BEVILACQUA S.ANGELO;25/02/2020;134;31;53;1;Spese correnti;3;Acquisto di beni e servizi;2;Acquisto di servizi;5;Utenze e canoni;5;Acqua;27/02/2020
553;1;9999999;65,86;65,86;V.E.R.I.T.A.S. SPA; ;Fatt.n. 600005534557  del 03/02/2020 PERIODO 12.01.2018-11.12.2019 - CONSUMI MEDICINA DI GRUPPO - SEDE MUNICIPALE;25/02/2020;134;31;53;1;Spese correnti;3;Acquisto di beni e servizi;2;Acquisto di servizi;5;Utenze e canoni;5;Acqua;27/02/2020
554;1;9999999;34,93;34,93;V.E.R.I.T.A.S. SPA; ;Fatt.n. 600005534563  del 03/02/2020 PERIODO 01.11.2019-31.12.2019 - ANTINCENDIO MEDICINA DI GRUPPO - SEDE MUNICIPALE;25/02/2020;134;31;53;1;Spese correnti;3;Acquisto di beni e servizi;2;Acquisto di servizi;5;Utenze e canoni;5;Acqua;27/02/2020
555;1;9999999;169,49;169,49;V.E.R.I.T.A.S. SPA; ;Fatt.n. 600005534642  del 03/02/2020 PERIODO  01.11.2019-31.12.2019 - CONSUMI SC. ELEM - PALESTRA - ASILO S.ANGELO;25/02/2020;134;31;53;1;Spese correnti;3;Acquisto di beni e servizi;2;Acquisto di servizi;5;Utenze e canoni;5;Acqua;27/02/2020
556;1;9999999;156,92;156,92;V.E.R.I.T.A.S. SPA; ;Fatt.n. 600005534641  del 03/02/2020 PERIODO 31.10.2019-31.12.2019 - CONSUMI SC. ELEM - PALESTRA VETERNIGO;25/02/2020;134;31;53;1;Spese correnti;3;Acquisto di beni e servizi;2;Acquisto di servizi;5;Utenze e canoni;5;Acqua;27/02/2020
557;1;9999999;29;29;V.E.R.I.T.A.S. SPA; ;Fatt.n. 600005534639  del 03/02/2020 PERIODO 01.11.2019-31.12.2019 - CONSUMI SC. ELEM.  - PALESTRA STIGLIANO;25/02/2020;134;31;53;1;Spese correnti;3;Acquisto di beni e servizi;2;Acquisto di servizi;5;Utenze e canoni;5;Acqua;27/02/2020
558;1;9999999;24,68;24,68;V.E.R.I.T.A.S. SPA; ;Fatt.n. 600005534639  del 03/02/2020 PERIODO 01.11.2019-31.12.2019 - CONSUMI SC. ELEM.  - PALESTRA STIGLIANO;25/02/2020;134;31;53;1;Spese correnti;3;Acquisto di beni e servizi;2;Acquisto di servizi;5;Utenze e canoni;5;Acqua;27/02/2020
559;1;9999999;21,87;21,87;V.E.R.I.T.A.S. SPA; ;Fatt.n. 600005534508  del 03/02/2020 PERIODO 01.11.2019-31.12.2019 - ANTINCENDIO PALESTRA CALTANA;25/02/2020;1334;30;54;1;Spese correnti;3;Acquisto di beni e servizi;2;Acquisto di servizi;5;Utenze e canoni;5;Acqua;27/02/2020
560;1;9999999;62,35;62,35;V.E.R.I.T.A.S. SPA; ;Fatt.n. 600005534507  del 03/02/2020 PERIODO 01.11.2019-31.12.2019 - CONSUMI PALESTRA SMS;25/02/2020;1334;30;54;1;Spese correnti;3;Acquisto di beni e servizi;2;Acquisto di servizi;5;Utenze e canoni;5;Acqua;27/02/2020
561;1;9999999;90,29;90,29;V.E.R.I.T.A.S. SPA; ;Fatt.n. 600005534643  del 03/02/2020 PERIODO 01.11.2019-31.12.2019 - CONSUMI PALESTRA SMS;25/02/2020;1334;30;54;1;Spese correnti;3;Acquisto di beni e servizi;2;Acquisto di servizi;5;Utenze e canoni;5;Acqua;27/02/2020
562;1;9999999;9;9;V.E.R.I.T.A.S. SPA; ;Fatt.n. 600005534566  del 03/02/2020 PERIODO 01.11.2019-31.12.2019 - ANTINCENDIO SC. ELEM-PALESTRA CASELLE;25/02/2020;1334;30;54;1;Spese correnti;3;Acquisto di beni e servizi;2;Acquisto di servizi;5;Utenze e canoni;5;Acqua;27/02/2020
563;1;9999999;25,73;25,73;V.E.R.I.T.A.S. SPA; ;Fatt.n. 600005534566  del 03/02/2020 PERIODO 01.11.2019-31.12.2019 - ANTINCENDIO SC. ELEM-PALESTRA CASELLE;25/02/2020;1334;30;54;1;Spese correnti;3;Acquisto di beni e servizi;2;Acquisto di servizi;5;Utenze e canoni;5;Acqua;27/02/2020
564;1;9999999;12;12;V.E.R.I.T.A.S. SPA; ;Fatt.n. 600005534567  del 03/02/2020 PERIODO 01.11.2019-31.12.2019 - ANTINCENDIO SC. ELEM. - PALESTRA VETERNIGO;25/02/2020;1334;30;54;1;Spese correnti;3;Acquisto di beni e servizi;2;Acquisto di servizi;5;Utenze e canoni;5;Acqua;27/02/2020
565;1;9999999;19,73;19,73;V.E.R.I.T.A.S. SPA; ;Fatt.n. 600005534567  del 03/02/2020 PERIODO 01.11.2019-31.12.2019 - ANTINCENDIO SC. ELEM. - PALESTRA VETERNIGO;25/02/2020;1334;30;54;1;Spese correnti;3;Acquisto di beni e servizi;2;Acquisto di servizi;5;Utenze e canoni;5;Acqua;27/02/2020
566;1;9999999;9;9;V.E.R.I.T.A.S. SPA; ;Fatt.n. 600005534568  del 03/02/2020 PERIODO 01.11.2019-31.12.2019 - ANTINCENDIO SC. ELEM - PALESTRA - ASILO S.ANGELO;25/02/2020;1334;30;54;1;Spese correnti;3;Acquisto di beni e servizi;2;Acquisto di servizi;5;Utenze e canoni;5;Acqua;27/02/2020
567;1;9999999;25,73;25,73;V.E.R.I.T.A.S. SPA; ;Fatt.n. 600005534568  del 03/02/2020 PERIODO 01.11.2019-31.12.2019 - ANTINCENDIO SC. ELEM - PALESTRA - ASILO S.ANGELO;25/02/2020;1334;30;54;1;Spese correnti;3;Acquisto di beni e servizi;2;Acquisto di servizi;5;Utenze e canoni;5;Acqua;27/02/2020
568;1;9999999;15;15;V.E.R.I.T.A.S. SPA; ;Fatt.n. 600005534562  del 03/02/2020 PERIODO 01.11.2019-31.12.2019 - ANTINCENDIO SC. ELEM - PALESTRA STIGLIANO;25/02/2020;1334;30;54;1;Spese correnti;3;Acquisto di beni e servizi;2;Acquisto di servizi;5;Utenze e canoni;5;Acqua;27/02/2020
569;1;9999999;13,73;13,73;V.E.R.I.T.A.S. SPA; ;Fatt.n. 600005534562  del 03/02/2020 PERIODO 01.11.2019-31.12.2019 - ANTINCENDIO SC. ELEM - PALESTRA STIGLIANO;25/02/2020;1334;30;54;1;Spese correnti;3;Acquisto di beni e servizi;2;Acquisto di servizi;5;Utenze e canoni;5;Acqua;27/02/2020
570;1;9999999;19;19;V.E.R.I.T.A.S. SPA; ;Fatt.n. 600005534638  del 03/02/2020 PERIODO 01.11.2019-31.12.2019 - CONSUMI SC. ELEM - PALESTRA CASELLE;25/02/2020;1334;30;54;1;Spese correnti;3;Acquisto di beni e servizi;2;Acquisto di servizi;5;Utenze e canoni;5;Acqua;27/02/2020
571;1;9999999;58,29;58,29;V.E.R.I.T.A.S. SPA; ;Fatt.n. 600005534638  del 03/02/2020 PERIODO 01.11.2019-31.12.2019 - CONSUMI SC. ELEM - PALESTRA CASELLE;25/02/2020;1334;30;54;1;Spese correnti;3;Acquisto di beni e servizi;2;Acquisto di servizi;5;Utenze e canoni;5;Acqua;27/02/2020
572;1;9999999;56;56;V.E.R.I.T.A.S. SPA; ;Fatt.n. 600005534642  del 03/02/2020 PERIODO  01.11.2019-31.12.2019 - CONSUMI SC. ELEM - PALESTRA - ASILO S.ANGELO;25/02/2020;1334;30;54;1;Spese correnti;3;Acquisto di beni e servizi;2;Acquisto di servizi;5;Utenze e canoni;5;Acqua;27/02/2020
573;1;9999999;95;95;V.E.R.I.T.A.S. SPA; ;Fatt.n. 600005534641  del 03/02/2020 PERIODO 31.10.2019-31.12.2019 - CONSUMI SC. ELEM - PALESTRA VETERNIGO;25/02/2020;1334;30;54;1;Spese correnti;3;Acquisto di beni e servizi;2;Acquisto di servizi;5;Utenze e canoni;5;Acqua;27/02/2020
574;1;9999999;43,73;595,07;V.E.R.I.T.A.S. SPA; ;Fatt.n. 600005534559  del 03/02/2020 PERIODO 01.11.2019-31.12.2019 - ANTINCENDIO SCUOLA MEDIA SMS;25/02/2020;1834;0;55;1;Spese correnti;3;Acquisto di beni e servizi;2;Acquisto di servizi;5;Utenze e canoni;5;Acqua;27/02/2020
574;2;9999999;43,73;595,07;V.E.R.I.T.A.S. SPA; ;Fatt.n. 600005534565  del 03/02/2020 PERIODO 01.11.2019-31.12.2019 - ANTINCENDIO SC. ELEM. CALTANA;25/02/2020;1834;0;55;1;Spese correnti;3;Acquisto di beni e servizi;2;Acquisto di servizi;5;Utenze e canoni;5;Acqua;27/02/2020
574;3;9999999;115,41;595,07;V.E.R.I.T.A.S. SPA; ;Fatt.n. 600005534560  del 03/02/2020 PERIODO  01.11.2019-31.12.2019 - CONSUMI SC. ELEM. SMS;25/02/2020;1834;0;55;1;Spese correnti;3;Acquisto di beni e servizi;2;Acquisto di servizi;5;Utenze e canoni;5;Acqua;27/02/2020
574;4;9999999;140,22;595,07;V.E.R.I.T.A.S. SPA; ;Fatt.n. 600005534637  del 03/02/2020 PERIODO 01.11.2019-31.12.2019 - CONSUMI SC. ELEM. CALTANA;25/02/2020;1834;0;55;1;Spese correnti;3;Acquisto di beni e servizi;2;Acquisto di servizi;5;Utenze e canoni;5;Acqua;27/02/2020
574;5;9999999;251,98;595,07;V.E.R.I.T.A.S. SPA; ;Fatt.n. 600005534558  del 03/02/2020 PERIODO 01.11.2019-31.12.2019 - CONSUMI SCULA MEDIA SMS;25/02/2020;1834;0;55;1;Spese correnti;3;Acquisto di beni e servizi;2;Acquisto di servizi;5;Utenze e canoni;5;Acqua;27/02/2020
575;1;9999999;21,86;21,86;V.E.R.I.T.A.S. SPA; ;Fatt.n. 600005534508  del 03/02/2020 PERIODO 01.11.2019-31.12.2019 - ANTINCENDIO PALESTRA CALTANA;25/02/2020;1934;0;56;1;Spese correnti;3;Acquisto di beni e servizi;2;Acquisto di servizi;5;Utenze e canoni;5;Acqua;27/02/2020
576;1;9999999;62,35;62,35;V.E.R.I.T.A.S. SPA; ;Fatt.n. 600005534507  del 03/02/2020 PERIODO 01.11.2019-31.12.2019 - CONSUMI PALESTRA SMS;25/02/2020;1934;0;56;1;Spese correnti;3;Acquisto di beni e servizi;2;Acquisto di servizi;5;Utenze e canoni;5;Acqua;27/02/2020
577;1;9999999;90,3;90,3;V.E.R.I.T.A.S. SPA; ;Fatt.n. 600005534643  del 03/02/2020 PERIODO 01.11.2019-31.12.2019 - CONSUMI PALESTRA SMS;25/02/2020;1934;0;56;1;Spese correnti;3;Acquisto di beni e servizi;2;Acquisto di servizi;5;Utenze e canoni;5;Acqua;27/02/2020
578;1;9999999;9;9;V.E.R.I.T.A.S. SPA; ;Fatt.n. 600005534566  del 03/02/2020 PERIODO 01.11.2019-31.12.2019 - ANTINCENDIO SC. ELEM-PALESTRA CASELLE;25/02/2020;1934;0;56;1;Spese correnti;3;Acquisto di beni e servizi;2;Acquisto di servizi;5;Utenze e canoni;5;Acqua;27/02/2020
579;1;9999999;12;12;V.E.R.I.T.A.S. SPA; ;Fatt.n. 600005534567  del 03/02/2020 PERIODO 01.11.2019-31.12.2019 - ANTINCENDIO SC. ELEM. - PALESTRA VETERNIGO;25/02/2020;1934;0;56;1;Spese correnti;3;Acquisto di beni e servizi;2;Acquisto di servizi;5;Utenze e canoni;5;Acqua;27/02/2020
580;1;9999999;9;9;V.E.R.I.T.A.S. SPA; ;Fatt.n. 600005534568  del 03/02/2020 PERIODO 01.11.2019-31.12.2019 - ANTINCENDIO SC. ELEM - PALESTRA - ASILO S.ANGELO;25/02/2020;1934;0;56;1;Spese correnti;3;Acquisto di beni e servizi;2;Acquisto di servizi;5;Utenze e canoni;5;Acqua;27/02/2020
581;1;9999999;15;15;V.E.R.I.T.A.S. SPA; ;Fatt.n. 600005534562  del 03/02/2020 PERIODO 01.11.2019-31.12.2019 - ANTINCENDIO SC. ELEM - PALESTRA STIGLIANO;25/02/2020;1934;0;56;1;Spese correnti;3;Acquisto di beni e servizi;2;Acquisto di servizi;5;Utenze e canoni;5;Acqua;27/02/2020
582;1;9999999;19;19;V.E.R.I.T.A.S. SPA; ;Fatt.n. 600005534638  del 03/02/2020 PERIODO 01.11.2019-31.12.2019 - CONSUMI SC. ELEM - PALESTRA CASELLE;25/02/2020;1934;0;56;1;Spese correnti;3;Acquisto di beni e servizi;2;Acquisto di servizi;5;Utenze e canoni;5;Acqua;27/02/2020
583;1;9999999;56;56;V.E.R.I.T.A.S. SPA; ;Fatt.n. 600005534642  del 03/02/2020 PERIODO  01.11.2019-31.12.2019 - CONSUMI SC. ELEM - PALESTRA - ASILO S.ANGELO;25/02/2020;1934;0;56;1;Spese correnti;3;Acquisto di beni e servizi;2;Acquisto di servizi;5;Utenze e canoni;5;Acqua;27/02/2020
584;1;9999999;95;95;V.E.R.I.T.A.S. SPA; ;Fatt.n. 600005534641  del 03/02/2020 PERIODO 31.10.2019-31.12.2019 - CONSUMI SC. ELEM - PALESTRA VETERNIGO;25/02/2020;1934;0;56;1;Spese correnti;3;Acquisto di beni e servizi;2;Acquisto di servizi;5;Utenze e canoni;5;Acqua;27/02/2020
585;1;9999999;29;29;V.E.R.I.T.A.S. SPA; ;Fatt.n. 600005534639  del 03/02/2020 PERIODO 01.11.2019-31.12.2019 - CONSUMI SC. ELEM.  - PALESTRA STIGLIANO;25/02/2020;1934;0;56;1;Spese correnti;3;Acquisto di beni e servizi;2;Acquisto di servizi;5;Utenze e canoni;5;Acqua;27/02/2020
586;1;9999999;24,45;68,18;V.E.R.I.T.A.S. SPA; ;Fatt.n. 600005534572  del 03/02/2020 PERIODO 01.11.2019-31.12.2019 - CONSUMI MAGAZZINO COMUNALE;25/02/2020;3534;0;57;1;Spese correnti;3;Acquisto di beni e servizi;2;Acquisto di servizi;5;Utenze e canoni;5;Acqua;27/02/2020
586;2;9999999;43,73;68,18;V.E.R.I.T.A.S. SPA; ;Fatt.n. 600005534573  del 03/02/2020 PERIODO 01.11.2019-31.12.2019 - ANTINCENDIO MAGAZZINO COMUNALE;25/02/2020;3534;0;57;1;Spese correnti;3;Acquisto di beni e servizi;2;Acquisto di servizi;5;Utenze e canoni;5;Acqua;27/02/2020
587;1;9999999;17,62;61,35;V.E.R.I.T.A.S. SPA; ;Fatt.n. 600005534505  del 03/02/2020 PERIODO 01.11.2019-31.12.2019 - CONSUMI ECOCENTRO COMUNALE;25/02/2020;3534;0;57;1;Spese correnti;3;Acquisto di beni e servizi;2;Acquisto di servizi;5;Utenze e canoni;5;Acqua;27/02/2020
587;2;9999999;43,73;61,35;V.E.R.I.T.A.S. SPA; ;Fatt.n. 600005534504  del 03/02/2020 PERIODO 01.11.2019-31.12.2019 - ANTINCENDIO ECOCENTRO COMUNALE;25/02/2020;3534;0;57;1;Spese correnti;3;Acquisto di beni e servizi;2;Acquisto di servizi;5;Utenze e canoni;5;Acqua;27/02/2020
588;1;9999999;13,91;521,35;V.E.R.I.T.A.S. SPA; ;Fatt.n. 600005534576  del 03/02/2020 PERIODO 01.11.2019-31.12.2019 - CONSUMI CIMITERO VETERNIGO;25/02/2020;3534;0;57;1;Spese correnti;3;Acquisto di beni e servizi;2;Acquisto di servizi;5;Utenze e canoni;5;Acqua;27/02/2020
588;2;9999999;22,48;521,35;V.E.R.I.T.A.S. SPA; ;Fatt.n. 600005534578  del 03/02/2020 PERIODO 01.11.2019-31.12.2019 - CIMITERO CASELLE;25/02/2020;3534;0;57;1;Spese correnti;3;Acquisto di beni e servizi;2;Acquisto di servizi;5;Utenze e canoni;5;Acqua;27/02/2020
588;3;9999999;27,38;521,35;V.E.R.I.T.A.S. SPA; ;Fatt.n. 600005534579  del 03/02/2020 PERIODO 01.11.2019-31.12.2019 - CONSUMI CIMITERO STIGLIANO;25/02/2020;3534;0;57;1;Spese correnti;3;Acquisto di beni e servizi;2;Acquisto di servizi;5;Utenze e canoni;5;Acqua;27/02/2020
588;4;9999999;61,35;521,35;V.E.R.I.T.A.S. SPA; ;Fatt.n. 600005534575  del 03/02/2020 PERIODO 01.11.2019-31.12.2019 - CONSUMI CIMITERO CALTANA;25/02/2020;3534;0;57;1;Spese correnti;3;Acquisto di beni e servizi;2;Acquisto di servizi;5;Utenze e canoni;5;Acqua;27/02/2020
588;5;9999999;144,4;521,35;V.E.R.I.T.A.S. SPA; ;Fatt.n. 600005534574  del 03/02/2020 PERIODO 01.11.2019-31.12.2019 - CONSUMI CIMITERO SMS;25/02/2020;3534;0;57;1;Spese correnti;3;Acquisto di beni e servizi;2;Acquisto di servizi;5;Utenze e canoni;5;Acqua;27/02/2020
588;6;9999999;251,83;521,35;V.E.R.I.T.A.S. SPA; ;Fatt.n. 600005534577  del 03/02/2020 PERIODO  01.11.2019-31.12.2019 - CONSUMI CIMITERO S.ANGELO;25/02/2020;3534;0;57;1;Spese correnti;3;Acquisto di beni e servizi;2;Acquisto di servizi;5;Utenze e canoni;5;Acqua;27/02/2020
589;1;9999999;43,73;159,05;V.E.R.I.T.A.S. SPA; ;Fatt.n. 600005534571  del 03/02/2020 PERIODO 01.11.2019-31.12.2019 - ANTINCENDIO VILLA FARSETTI;25/02/2020;4234;0;58;1;Spese correnti;3;Acquisto di beni e servizi;2;Acquisto di servizi;5;Utenze e canoni;5;Acqua;27/02/2020
589;2;9999999;115,32;159,05;V.E.R.I.T.A.S. SPA; ;Fatt.n. 600005534509  del 03/02/2020 PERIODO 01.11.2019-31.12.2019 - CONSUMI VILLA FARSETTI;25/02/2020;4234;0;58;1;Spese correnti;3;Acquisto di beni e servizi;2;Acquisto di servizi;5;Utenze e canoni;5;Acqua;27/02/2020
590;1;9999999;2,5;10,98;V.E.R.I.T.A.S. SPA; ;SALDO Fatt.n. 600005534556  del 03/02/2020 PERIODO 01.11.2019-31.12.2019 - CONSUMI PIAZZA CASELLE;25/02/2020;1334;30;0;1;Spese correnti;3;Acquisto di beni e servizi;2;Acquisto di servizi;5;Utenze e canoni;5;Acqua;28/02/2020
590;2;9999999;3,98;10,98;V.E.R.I.T.A.S. SPA; ;SALDO Fatt.n. 600005534640  del 03/02/2020 PERIODO  01.11.2019-31.12.2019 - ANTINCENDIO PARCHEGGIO STIGLIANO;25/02/2020;1334;30;0;1;Spese correnti;3;Acquisto di beni e servizi;2;Acquisto di servizi;5;Utenze e canoni;5;Acqua;28/02/2020
590;3;9999999;4,5;10,98;V.E.R.I.T.A.S. SPA; ;SALDO Fatt.n. 600005534486  del 03/02/2020 PERIODO 01.11.2019-31.12.2019 - CONSUMI DISTRIBUTORE  ACQUA CASELLE;25/02/2020;1334;30;0;1;Spese correnti;3;Acquisto di beni e servizi;2;Acquisto di servizi;5;Utenze e canoni;5;Acqua;28/02/2020
591;1;9999999;384,3;384,3;SOLUZIONE SRL;Z202072366;Fatt.n. 0002100555  del 11/02/2020 MODELLI PER LA GESTIONE DEL PERSONALE - PRATICA ENTI ON LINE PER ABBONATI CON OLTRE 5000 AB.TI ABBONAMENTO TRIENNALE 2018-2019-2020 TERZA ANNUALITA' DAL 08.11.2019 AL 07.2020;25/02/2020;120;0;646;1;Spese correnti;3;Acquisto di beni e servizi;1;Acquisto di beni;1;Giornali, riviste e pubblicazioni;1;Giornali e riviste;27/02/2020
592;1;9999999;17.452,10;17.452,10;ALADINO SOC.COOP.SOCIALE;ZAC29B04C1;Fatt.n. 10/2  del 07/02/2020 MANUTENZIONE DEL PATRIMONIO ARBOREO E AREE VERDI TERRITORIO COMUNALE - 1 SAL;25/02/2020;2549;0;970;1;Spese correnti;3;Acquisto di beni e servizi;2;Acquisto di servizi;99;Altri servizi;9;Acquisto di sevizi per verde e arredo urbano;27/02/2020
593;1;9999999;36.578,99;36.578,99;EDILNOVA DI ZILLIO PAOLO;ZD82ABAEDE;Fatt.n. 3/03  del 07/02/2020 INTERVENTI STRAORDINARI DI RIPRISTINO INFRASTUTTURE STRADALI NEL TERRITORIO COMUNALE;25/02/2020;8503;0;1210;2;Spese in conto capitale;2;Investimenti fissi lordi e acquisto di terreni;1;Beni materiali;9;Beni immobili;12;Infrastrutture stradali;27/02/2020
594;1;0;200;200;OMESSO NOMINATIVO NEL RISPETTO DELLA NORMATIVA SULLA PROTEZIONE DATI PERSONALI; ;PAGAMENTO PER  INTERVENTI DI CONTENIMENTO DELLA DIFFUSIONE DELLA NUTRIA NEL TERRITORIO COMUNALE ANNO 2019;25/02/2020;2651;0;117;1;Spese correnti;4;Trasferimenti correnti;1;Trasferimenti correnti a Amministrazioni Pubbliche;2;Trasferimenti correnti a Amministrazioni Locali;999;Trasferimenti correnti a altre Amministrazioni Locali n.a.c.;25/02/2020
595;1;9999999;200;200;OMESSO NOMINATIVO NEL RISPETTO DELLA NORMATIVA SULLA PROTEZIONE DATI PERSONALI; ;PAGAMENTO PER  INTERVENTI DI CONTENIMENTO DELLA DIFFUSIONE DELLA NUTRIA NEL TERRITORIO COMUNALE ANNO 2019;25/02/2020;2651;0;117;1;Spese correnti;4;Trasferimenti correnti;1;Trasferimenti correnti a Amministrazioni Pubbliche;2;Trasferimenti correnti a Amministrazioni Locali;999;Trasferimenti correnti a altre Amministrazioni Locali n.a.c.;04/03/2020
596;1;9999999;200;200;OMESSO NOMINATIVO NEL RISPETTO DELLA NORMATIVA SULLA PROTEZIONE DATI PERSONALI; ;PAGAMENTO PER  INTERVENTI DI CONTENIMENTO DELLA DIFFUSIONE DELLA NUTRIA NEL TERRITORIO COMUNALE ANNO 2019;25/02/2020;2651;0;117;1;Spese correnti;4;Trasferimenti correnti;1;Trasferimenti correnti a Amministrazioni Pubbliche;2;Trasferimenti correnti a Amministrazioni Locali;999;Trasferimenti correnti a altre Amministrazioni Locali n.a.c.;10/03/2020
597;1;9999999;200;200;OMESSO NOMINATIVO NEL RISPETTO DELLA NORMATIVA SULLA PROTEZIONE DATI PERSONALI; ;PAGAMENTO PER  INTERVENTI DI CONTENIMENTO DELLA DIFFUSIONE DELLA NUTRIA NEL TERRITORIO COMUNALE ANNO 2019;25/02/2020;2651;0;117;1;Spese correnti;4;Trasferimenti correnti;1;Trasferimenti correnti a Amministrazioni Pubbliche;2;Trasferimenti correnti a Amministrazioni Locali;999;Trasferimenti correnti a altre Amministrazioni Locali n.a.c.;04/03/2020
598;1;9999999;419;419;OMESSO NOMINATIVO NEL RISPETTO DELLA NORMATIVA SULLA PROTEZIONE DATI PERSONALI; ;GENNAIO 2020 PROGETTO PERSONALIZZATO D INTERVENTO SOCIO-ASSISTENZIALE A SOSTEGNO DI NUCLEO FAMILIARE;25/02/2020;3757;0;1346;1;Spese correnti;4;Trasferimenti correnti;2;Trasferimenti correnti a Famiglie;5;Altri trasferimenti a famiglie;999;Altri trasferimenti a famiglie n.a.c.;27/02/2020
599;1;9999999;38,36;1.033,48;ENEL ENERGIA SPA;77999756FD;Fatt.n. 004007522345  del 06/02/2020 GENNAIO 2020 - CONSUMI PARCHEGGIO C.C. PRISMA;25/02/2020;134;31;116;1;Spese correnti;3;Acquisto di beni e servizi;2;Acquisto di servizi;5;Utenze e canoni;4;Energia elettrica;27/02/2020
599;2;9999999;51,86;1.033,48;ENEL ENERGIA SPA;77999756FD;Fatt.n. 004007522338  del 06/02/2020 GENNAIO 2020 - CONSUMI VIA DON GALLERANI;25/02/2020;134;31;116;1;Spese correnti;3;Acquisto di beni e servizi;2;Acquisto di servizi;5;Utenze e canoni;4;Energia elettrica;27/02/2020
599;3;9999999;88,05;1.033,48;ENEL ENERGIA SPA;77999756FD;Fatt.n. 004007522309  del 06/02/2020 GENNAIO 2020 - CONSUMI MERCATO CALTANA;25/02/2020;134;31;116;1;Spese correnti;3;Acquisto di beni e servizi;2;Acquisto di servizi;5;Utenze e canoni;4;Energia elettrica;27/02/2020
599;4;9999999;103,11;1.033,48;ENEL ENERGIA SPA;77999756FD;Fatt.n. 004007522269  del 06/02/2020 GENNAIO 2020 - CONSUMI FONTANA VETERNIGO;25/02/2020;134;31;116;1;Spese correnti;3;Acquisto di beni e servizi;2;Acquisto di servizi;5;Utenze e canoni;4;Energia elettrica;27/02/2020
599;5;9999999;118,49;1.033,48;ENEL ENERGIA SPA;77999756FD;Fatt.n. 004007522214  del 06/02/2020 GENNAIO 2020 - CONSUMI PARCHEGGIO OVALE SMS;25/02/2020;134;31;116;1;Spese correnti;3;Acquisto di beni e servizi;2;Acquisto di servizi;5;Utenze e canoni;4;Energia elettrica;27/02/2020
599;6;9999999;125,66;1.033,48;ENEL ENERGIA SPA;77999756FD;Fatt.n. 004007522315  del 06/02/2020 GENNAIO 2020 - CONSUMI MERCATO SMS;25/02/2020;134;31;116;1;Spese correnti;3;Acquisto di beni e servizi;2;Acquisto di servizi;5;Utenze e canoni;4;Energia elettrica;27/02/2020
599;7;9999999;140,03;1.033,48;ENEL ENERGIA SPA;77999756FD;Fatt.n. 004007522307  del 06/02/2020 GENNAIO 2020 - CONSUMI MERCATO CASELLE;25/02/2020;134;31;116;1;Spese correnti;3;Acquisto di beni e servizi;2;Acquisto di servizi;5;Utenze e canoni;4;Energia elettrica;27/02/2020
599;8;9999999;165,97;1.033,48;ENEL ENERGIA SPA;77999756FD;Fatt.n. 004007522272  del 06/02/2020 GENNAIO 2020 - CONSUMI PIAZZA S.D.A.;25/02/2020;134;31;116;1;Spese correnti;3;Acquisto di beni e servizi;2;Acquisto di servizi;5;Utenze e canoni;4;Energia elettrica;27/02/2020
599;9;9999999;201,95;1.033,48;ENEL ENERGIA SPA;77999756FD;Fatt.n. 004007522212  del 06/02/2020 GENNAIO 2020 - CONSUMI  ALLOGGIO VIA OLIMPIA SMS;25/02/2020;134;31;116;1;Spese correnti;3;Acquisto di beni e servizi;2;Acquisto di servizi;5;Utenze e canoni;4;Energia elettrica;27/02/2020
600;1;9999999;1.161,71;1.161,71;ENEL ENERGIA SPA;77999756FD;Fatt.n. 004007522352  del 06/02/2020 GENNAIO 2020 - CONSUMI SEDE MUNICIPALE;25/02/2020;134;31;116;1;Spese correnti;3;Acquisto di beni e servizi;2;Acquisto di servizi;5;Utenze e canoni;4;Energia elettrica;27/02/2020
601;1;9999999;8,93;8,93;ENEL ENERGIA SPA;77999756FD;Fatt.n. 004007522220  del 06/02/2020 GENNAIO 2020 - CONSUMI CIMITERO S.ANGELO - LAMPADE VOTIVE;25/02/2020;134;31;116;1;Spese correnti;3;Acquisto di beni e servizi;2;Acquisto di servizi;5;Utenze e canoni;4;Energia elettrica;27/02/2020
602;1;9999999;8,51;8,51;ENEL ENERGIA SPA;77999756FD;Fatt.n. 004007522266  del 06/02/2020 GENNAIO 2020 - CONSUMI CIMITERO SMS  - LAMPADE VOTIVE;25/02/2020;134;31;116;1;Spese correnti;3;Acquisto di beni e servizi;2;Acquisto di servizi;5;Utenze e canoni;4;Energia elettrica;27/02/2020
603;1;9999999;7,54;7,54;ENEL ENERGIA SPA;77999756FD;Fatt.n. 004007522274  del 06/02/2020 GENNAIO 2020 - CONSUMI CIMITERO CASELLE - LAMPADE VOTIVE;25/02/2020;134;31;116;1;Spese correnti;3;Acquisto di beni e servizi;2;Acquisto di servizi;5;Utenze e canoni;4;Energia elettrica;27/02/2020
604;1;9999999;20,11;20,11;ENEL ENERGIA SPA;77999756FD;Fatt.n. 004007522339  del 06/02/2020 GENNAIO 2020 - CONSUMI CIMITERO - LAMPADE VOTIVE;25/02/2020;134;31;116;1;Spese correnti;3;Acquisto di beni e servizi;2;Acquisto di servizi;5;Utenze e canoni;4;Energia elettrica;27/02/2020
605;1;9999999;7,19;7,19;ENEL ENERGIA SPA;77999756FD;Fatt.n. 004007522253  del 06/02/2020 GENNAIO 2020 - CONSUMI CIMITERO VETERNIGO - LAMPADE VOTIVE;25/02/2020;134;31;116;1;Spese correnti;3;Acquisto di beni e servizi;2;Acquisto di servizi;5;Utenze e canoni;4;Energia elettrica;27/02/2020
606;1;9999999;241,79;3.430,68;ENEL ENERGIA SPA;77999756FD;Fatt.n. 004007522239  del 06/02/2020 GENNAIO 2020 - CONSUMI SC. ELEM. SMS;25/02/2020;1334;30;117;1;Spese correnti;3;Acquisto di beni e servizi;2;Acquisto di servizi;5;Utenze e canoni;4;Energia elettrica;27/02/2020
606;2;9999999;485,06;3.430,68;ENEL ENERGIA SPA;77999756FD;Fatt.n. 004007522329  del 06/02/2020 GENNAIO 2020 - CONSUMI SC. ELEMENTARE CASELLE;25/02/2020;1334;30;117;1;Spese correnti;3;Acquisto di beni e servizi;2;Acquisto di servizi;5;Utenze e canoni;4;Energia elettrica;27/02/2020
606;3;9999999;2.703,83;3.430,68;ENEL ENERGIA SPA;77999756FD;Fatt.n. 004007522325  del 06/02/2020 GENNAIO 2020 - CONSUMI SC. MEDIA SMS;25/02/2020;1334;30;117;1;Spese correnti;3;Acquisto di beni e servizi;2;Acquisto di servizi;5;Utenze e canoni;4;Energia elettrica;27/02/2020
607;1;9999999;306,17;306,17;ENEL ENERGIA SPA;77999756FD;Fatt.n. 004007522330  del 06/02/2020 GENNAIO 2020 - CONSUMI PALESTRA SMS;25/02/2020;1334;30;117;1;Spese correnti;3;Acquisto di beni e servizi;2;Acquisto di servizi;5;Utenze e canoni;4;Energia elettrica;27/02/2020
